Body Name,Body,Service division categorisation,Expense Type,Date paid,Transaction Reference,Net,Supplier Name,Excluded/Redacted
East Lindsey District Council,http://statistics.data.gov.uk/id/local-authority/32UC,Leisure Operations,Other Private Contractors,05/09/13,IJ00025455,4162.14,COMPETITION LINE (UK) LTD,
East Lindsey District Council,http://statistics.data.gov.uk/id/local-authority/32UC,Corporate Management,Lincolnshire Legal Services,05/09/13,IJ00025488,18231.67,LINCOLNSHIRE COUNTY COUNCIL,
East Lindsey District Council,http://statistics.data.gov.uk/id/local-authority/32UC,Corporate Management,Lincolnshire Legal Services,05/09/13,IJ00025488,1021.00,LINCOLNSHIRE COUNTY COUNCIL,
East Lindsey District Council,http://statistics.data.gov.uk/id/local-authority/32UC,TL Property,Professional & Contractors Fees,05/09/13,IJ00025439,830.00,City Legal Agency Services,
East Lindsey District Council,http://statistics.data.gov.uk/id/local-authority/32UC,Hsg Advice & Homelessness TL,Telephones,05/09/13,IJ00025454,20.54,VODAFONE CORPORATE LIMITED,
East Lindsey District Council,http://statistics.data.gov.uk/id/local-authority/32UC,Hsg Advice & Homelessness TL,Telephones,05/09/13,IJ00025454,25.54,VODAFONE CORPORATE LIMITED,
East Lindsey District Council,http://statistics.data.gov.uk/id/local-authority/32UC,Hsg Advice & Homelessness TL,Other Miscellaneous Expenses,05/09/13,IJ00025548,525.00,WALTERS PROPERTY MARKETING,
East Lindsey District Council,http://statistics.data.gov.uk/id/local-authority/32UC,Hsg Advice & Homelessness TL,Bed and Breakfast Accommodation (Homelessness Service),05/09/13,IJ00025515,1771.00,THE BRACKENHURST GUESTHOUSE,
East Lindsey District Council,http://statistics.data.gov.uk/id/local-authority/32UC,Hsg Advice & Homelessness TL,Fuel & Oil,05/09/13,IJ00025453,58.34,AllStar Business Solutions Ltd,
East Lindsey District Council,http://statistics.data.gov.uk/id/local-authority/32UC,Customer Services Manager,Telephones,05/09/13,IJ00025606,142.35,BT PLC,
East Lindsey District Council,http://statistics.data.gov.uk/id/local-authority/32UC,Corporate Management,Telephones,05/09/13,IJ00025606,37.89,BT PLC,
East Lindsey District Council,http://statistics.data.gov.uk/id/local-authority/32UC,Corporate Management,Telephones,05/09/13,IJ00025606,2323.76,BT PLC,
East Lindsey District Council,http://statistics.data.gov.uk/id/local-authority/32UC,Corporate Management,Telephones,05/09/13,IJ00025606,52.71,BT PLC,
East Lindsey District Council,http://statistics.data.gov.uk/id/local-authority/32UC,Corporate Management,Telephones,05/09/13,IJ00025606,3.13,BT PLC,
East Lindsey District Council,http://statistics.data.gov.uk/id/local-authority/32UC,Economic & Tourism,Telephones,05/09/13,IJ00025606,169.63,BT PLC,
East Lindsey District Council,http://statistics.data.gov.uk/id/local-authority/32UC,Economic & Tourism,Telephones,05/09/13,IJ00025606,37.89,BT PLC
East Lindsey District Council,http://statistics.data.gov.uk/id/local-authority/32UC,Economic & Tourism,Telephones,05/09/13,IJ00025606,37.89,BT PLC
East Lindsey District Council,http://statistics.data.gov.uk/id/local-authority/32UC,Economic & Tourism,Telephones,05/09/13,IJ00025606,37.89,BT PLC
East Lindsey District Council,http://statistics.data.gov.uk/id/local-authority/32UC,Leisure Operations,Telephones,05/09/13,IJ00025606,8.83,BT PLC
East Lindsey District Council,http://statistics.data.gov.uk/id/local-authority/32UC,Leisure Operations,Telephones,05/09/13,IJ00025606,4.68,BT PLC
East Lindsey District Council,http://statistics.data.gov.uk/id/local-authority/32UC,Theatre Manager,Telephones,05/09/13,IJ00025606,112.67,BT PLC
East Lindsey District Council,http://statistics.data.gov.uk/id/local-authority/32UC,Theatre Manager,Telephones,05/09/13,IJ00025606,27.50,BT PLC
East Lindsey District Council,http://statistics.data.gov.uk/id/local-authority/32UC,Theatre Manager,Telephones,05/09/13,IJ00025606,27.50,BT PLC
East Lindsey District Council,http://statistics.data.gov.uk/id/local-authority/32UC,Corporate Management,Telephones,05/09/13,IJ00025606,284.97,BT PLC
East Lindsey District Council,http://statistics.data.gov.uk/id/local-authority/32UC,Customer Services Manager,Payments to Bodies in Respect of Income Collected,05/09/13,IJ00025561,674.65,GRAYSCROFT BUS SERVICES LTD
East Lindsey District Council,http://statistics.data.gov.uk/id/local-authority/32UC,Corporate Management,Other Miscellaneous Expenses,05/09/13,IJ00025583,500.00,NORTH KESTEVEN DISTRICT COUNCIL
East Lindsey District Council,http://statistics.data.gov.uk/id/local-authority/32UC,Theatre Manager,Performers and Entertainers Fees,05/09/13,IJ00025544,2837.16,JANICE SUTTON
East Lindsey District Council,http://statistics.data.gov.uk/id/local-authority/32UC,Theatre Manager,Performers and Entertainers Fees,05/09/13,IJ00025544,-905.15,JANICE SUTTON
East Lindsey District Council,http://statistics.data.gov.uk/id/local-authority/32UC,Theatre Manager,Performers and Entertainers Fees,05/09/13,IJ00025558,3796.59,ALAN FIELD ASSOCIATES LIMITED
East Lindsey District Council,http://statistics.data.gov.uk/id/local-authority/32UC,Theatre Manager,Performers and Entertainers Fees,05/09/13,IJ00025558,-210.00,ALAN FIELD ASSOCIATES LIMITED
East Lindsey District Council,http://statistics.data.gov.uk/id/local-authority/32UC,Waste Services Manager,Telephones,05/09/13,IJ00025454,128.59,VODAFONE CORPORATE LIMITED
East Lindsey District Council,http://statistics.data.gov.uk/id/local-authority/32UC,Communications Manager,Telephones,05/09/13,IJ00025454,44.48,VODAFONE CORPORATE LIMITED
East Lindsey District Council,http://statistics.data.gov.uk/id/local-authority/32UC,Development Control,Telephones,05/09/13,IJ00025454,12.85,VODAFONE CORPORATE LIMITED
East Lindsey District Council,http://statistics.data.gov.uk/id/local-authority/32UC,Enforcement Team Leader,Telephones,05/09/13,IJ00025454,23.17,VODAFONE CORPORATE LIMITED
East Lindsey District Council,http://statistics.data.gov.uk/id/local-authority/32UC,Enforcement Team Leader,Telephones,05/09/13,IJ00025454,21.61,VODAFONE CORPORATE LIMITED
East Lindsey District Council,http://statistics.data.gov.uk/id/local-authority/32UC,Enforcement Team Leader,Telephones,05/09/13,IJ00025454,44.05,VODAFONE CORPORATE LIMITED
East Lindsey District Council,http://statistics.data.gov.uk/id/local-authority/32UC,Building Control,Telephones,05/09/13,IJ00025454,13.95,VODAFONE CORPORATE LIMITED
East Lindsey District Council,http://statistics.data.gov.uk/id/local-authority/32UC,Hsg Private Sector TL,Telephones,05/09/13,IJ00025454,13.03,VODAFONE CORPORATE LIMITED
East Lindsey District Council,http://statistics.data.gov.uk/id/local-authority/32UC,Enforcement Team Leader,Telephones,05/09/13,IJ00025454,78.84,VODAFONE CORPORATE LIMITED
East Lindsey District Council,http://statistics.data.gov.uk/id/local-authority/32UC,Housing Support TL,Telephones,05/09/13,IJ00025454,396.09,VODAFONE CORPORATE LIMITED
East Lindsey District Council,http://statistics.data.gov.uk/id/local-authority/32UC,Hsg Private Sector TL,Telephones,05/09/13,IJ00025454,66.19,VODAFONE CORPORATE LIMITED
East Lindsey District Council,http://statistics.data.gov.uk/id/local-authority/32UC,Waste Services Manager,Telephones,05/09/13,IJ00025454,48.81,VODAFONE CORPORATE LIMITED
East Lindsey District Council,http://statistics.data.gov.uk/id/local-authority/32UC,Building Control,Telephones,05/09/13,IJ00025454,208.03,VODAFONE CORPORATE LIMITED
East Lindsey District Council,http://statistics.data.gov.uk/id/local-authority/32UC,Housing Support TL,Telephones,05/09/13,IJ00025454,235.55,VODAFONE CORPORATE LIMITED
East Lindsey District Council,http://statistics.data.gov.uk/id/local-authority/32UC,Economic & Tourism,Telephones,05/09/13,IJ00025454,2.81,VODAFONE CORPORATE LIMITED
East Lindsey District Council,http://statistics.data.gov.uk/id/local-authority/32UC,Corporate Management,Telephones,05/09/13,IJ00025454,3.91,VODAFONE CORPORATE LIMITED
East Lindsey District Council,http://statistics.data.gov.uk/id/local-authority/32UC,Corporate Management,Telephones,05/09/13,IJ00025454,59.63,VODAFONE CORPORATE LIMITED
East Lindsey District Council,http://statistics.data.gov.uk/id/local-authority/32UC,Commercial Team Leader,Telephones,05/09/13,IJ00025454,153.04,VODAFONE CORPORATE LIMITED
East Lindsey District Council,http://statistics.data.gov.uk/id/local-authority/32UC,Leisure Operations,Telephones,05/09/13,IJ00025454,10.96,VODAFONE CORPORATE LIMITED
East Lindsey District Council,http://statistics.data.gov.uk/id/local-authority/32UC,Leisure Operations,Telephones,05/09/13,IJ00025454,4.78,VODAFONE CORPORATE LIMITED
East Lindsey District Council,http://statistics.data.gov.uk/id/local-authority/32UC,Leisure Operations,Telephones,05/09/13,IJ00025454,45.73,VODAFONE CORPORATE LIMITED
East Lindsey District Council,http://statistics.data.gov.uk/id/local-authority/32UC,Leisure Operations,Telephones,05/09/13,IJ00025454,11.80,VODAFONE CORPORATE LIMITED
East Lindsey District Council,http://statistics.data.gov.uk/id/local-authority/32UC,Neighbourhood Services,Telephones,05/09/13,IJ00025454,115.33,VODAFONE CORPORATE LIMITED
East Lindsey District Council,http://statistics.data.gov.uk/id/local-authority/32UC,TL Property,Telephones,05/09/13,IJ00025454,101.09,VODAFONE CORPORATE LIMITED
East Lindsey District Council,http://statistics.data.gov.uk/id/local-authority/32UC,Theatre Manager,Telephones,05/09/13,IJ00025454,21.04,VODAFONE CORPORATE LIMITED
East Lindsey District Council,http://statistics.data.gov.uk/id/local-authority/32UC,Theatre Manager,Telephones,05/09/13,IJ00025454,49.82,VODAFONE CORPORATE LIMITED
East Lindsey District Council,http://statistics.data.gov.uk/id/local-authority/32UC,Neighbourhood Services,Telephones,05/09/13,IJ00025454,38.01,VODAFONE CORPORATE LIMITED
East Lindsey District Council,http://statistics.data.gov.uk/id/local-authority/32UC,Economic & Tourism,Telephones,05/09/13,IJ00025454,42.16,VODAFONE CORPORATE LIMITED
East Lindsey District Council,http://statistics.data.gov.uk/id/local-authority/32UC,Cultural & Related Services,Telephones,05/09/13,IJ00025454,37.19,VODAFONE CORPORATE LIMITED
East Lindsey District Council,http://statistics.data.gov.uk/id/local-authority/32UC,Cultural & Related Services,Telephones,05/09/13,IJ00025454,16.56,VODAFONE CORPORATE LIMITED
East Lindsey District Council,http://statistics.data.gov.uk/id/local-authority/32UC,"Performance, Governance & Commissioning",Telephones,05/09/13,IJ00025454,171.25,VODAFONE CORPORATE LIMITED
East Lindsey District Council,http://statistics.data.gov.uk/id/local-authority/32UC,Enforcement Team Leader,Telephones,05/09/13,IJ00025454,6.75,VODAFONE CORPORATE LIMITED
East Lindsey District Council,http://statistics.data.gov.uk/id/local-authority/32UC,Environment Team Leader,Telephones,05/09/13,IJ00025454,153.29,VODAFONE CORPORATE LIMITED
East Lindsey District Council,http://statistics.data.gov.uk/id/local-authority/32UC,Cultural & Related Services,Telephones,05/09/13,IJ00025454,36.12,VODAFONE CORPORATE LIMITED
East Lindsey District Council,http://statistics.data.gov.uk/id/local-authority/32UC,Cultural & Related Services,Telephones,05/09/13,IJ00025454,9.49,VODAFONE CORPORATE LIMITED
East Lindsey District Council,http://statistics.data.gov.uk/id/local-authority/32UC,Cultural & Related Services,Telephones,05/09/13,IJ00025454,39.32,VODAFONE CORPORATE LIMITED
East Lindsey District Council,http://statistics.data.gov.uk/id/local-authority/32UC,Cultural & Related Services,Telephones,05/09/13,IJ00025454,9.09,VODAFONE CORPORATE LIMITED
East Lindsey District Council,http://statistics.data.gov.uk/id/local-authority/32UC,Hsg Private Sector TL,Telephones,05/09/13,IJ00025454,44.91,VODAFONE CORPORATE LIMITED
East Lindsey District Council,http://statistics.data.gov.uk/id/local-authority/32UC,Housing Support TL,Telephones,05/09/13,IJ00025454,15.31,VODAFONE CORPORATE LIMITED
East Lindsey District Council,http://statistics.data.gov.uk/id/local-authority/32UC,"Performance, Governance & Commissioning",Telephones,05/09/13,IJ00025454,22.74,VODAFONE CORPORATE LIMITED
East Lindsey District Council,http://statistics.data.gov.uk/id/local-authority/32UC,Planning & Housing Policy Manager,Telephones,05/09/13,IJ00025454,40.47,VODAFONE CORPORATE LIMITED
East Lindsey District Council,http://statistics.data.gov.uk/id/local-authority/32UC,Economic & Tourism,Telephones,05/09/13,IJ00025454,108.62,VODAFONE CORPORATE LIMITED
East Lindsey District Council,http://statistics.data.gov.uk/id/local-authority/32UC,Economic & Tourism,Telephones,05/09/13,IJ00025454,2.81,VODAFONE CORPORATE LIMITED
East Lindsey District Council,http://statistics.data.gov.uk/id/local-authority/32UC,Cultural & Related Services,Telephones,05/09/13,IJ00025454,141.05,VODAFONE CORPORATE LIMITED
East Lindsey District Council,http://statistics.data.gov.uk/id/local-authority/32UC,Cultural & Related Services,Telephones,05/09/13,IJ00025454,5.62,VODAFONE CORPORATE LIMITED
East Lindsey District Council,http://statistics.data.gov.uk/id/local-authority/32UC,Neighbourhood Services,Telephones,05/09/13,IJ00025454,78.45,VODAFONE CORPORATE LIMITED
East Lindsey District Council,http://statistics.data.gov.uk/id/local-authority/32UC,Neighbourhood Services,Telephones,05/09/13,IJ00025454,150.60,VODAFONE CORPORATE LIMITED
East Lindsey District Council,http://statistics.data.gov.uk/id/local-authority/32UC,Neighbourhood Services,Telephones,05/09/13,IJ00025454,31.73,VODAFONE CORPORATE LIMITED
East Lindsey District Council,http://statistics.data.gov.uk/id/local-authority/32UC,Theatre Manager,Telephones,05/09/13,IJ00025454,2.81,VODAFONE CORPORATE LIMITED
East Lindsey District Council,http://statistics.data.gov.uk/id/local-authority/32UC,Corporate Management,Telephones,05/09/13,IJ00025454,24.41,VODAFONE CORPORATE LIMITED
East Lindsey District Council,http://statistics.data.gov.uk/id/local-authority/32UC,Enforcement Team Leader,Telephones,05/09/13,IJ00025454,13.50,VODAFONE CORPORATE LIMITED
East Lindsey District Council,http://statistics.data.gov.uk/id/local-authority/32UC,Enforcement Team Leader,Telephones,05/09/13,IJ00025454,6.75,VODAFONE CORPORATE LIMITED
East Lindsey District Council,http://statistics.data.gov.uk/id/local-authority/32UC,Enforcement Team Leader,Telephones,05/09/13,IJ00025454,6.75,VODAFONE CORPORATE LIMITED
East Lindsey District Council,http://statistics.data.gov.uk/id/local-authority/32UC,Enforcement Team Leader,Telephones,05/09/13,IJ00025454,33.75,VODAFONE CORPORATE LIMITED
East Lindsey District Council,http://statistics.data.gov.uk/id/local-authority/32UC,Enforcement Team Leader,Telephones,05/09/13,IJ00025454,6.75,VODAFONE CORPORATE LIMITED
East Lindsey District Council,http://statistics.data.gov.uk/id/local-authority/32UC,Enforcement Team Leader,Telephones,05/09/13,IJ00025454,6.75,VODAFONE CORPORATE LIMITED
East Lindsey District Council,http://statistics.data.gov.uk/id/local-authority/32UC,Enforcement Team Leader,Telephones,05/09/13,IJ00025454,20.25,VODAFONE CORPORATE LIMITED
East Lindsey District Council,http://statistics.data.gov.uk/id/local-authority/32UC,Enforcement Team Leader,Telephones,05/09/13,IJ00025454,6.75,VODAFONE CORPORATE LIMITED
East Lindsey District Council,http://statistics.data.gov.uk/id/local-authority/32UC,Enforcement Team Leader,Telephones,05/09/13,IJ00025454,13.50,VODAFONE CORPORATE LIMITED
East Lindsey District Council,http://statistics.data.gov.uk/id/local-authority/32UC,Enforcement Team Leader,Telephones,05/09/13,IJ00025454,6.75,VODAFONE CORPORATE LIMITED
East Lindsey District Council,http://statistics.data.gov.uk/id/local-authority/32UC,Enforcement Team Leader,Telephones,05/09/13,IJ00025454,6.75,VODAFONE CORPORATE LIMITED
East Lindsey District Council,http://statistics.data.gov.uk/id/local-authority/32UC,Enforcement Team Leader,Telephones,05/09/13,IJ00025454,6.75,VODAFONE CORPORATE LIMITED
East Lindsey District Council,http://statistics.data.gov.uk/id/local-authority/32UC,Enforcement Team Leader,Telephones,05/09/13,IJ00025454,6.75,VODAFONE CORPORATE LIMITED
East Lindsey District Council,http://statistics.data.gov.uk/id/local-authority/32UC,Enforcement Team Leader,Telephones,05/09/13,IJ00025454,13.50,VODAFONE CORPORATE LIMITED
East Lindsey District Council,http://statistics.data.gov.uk/id/local-authority/32UC,Enforcement Team Leader,Telephones,05/09/13,IJ00025454,6.75,VODAFONE CORPORATE LIMITED
East Lindsey District Council,http://statistics.data.gov.uk/id/local-authority/32UC,Enforcement Team Leader,Telephones,05/09/13,IJ00025454,6.75,VODAFONE CORPORATE LIMITED
East Lindsey District Council,http://statistics.data.gov.uk/id/local-authority/32UC,Enforcement Team Leader,Telephones,05/09/13,IJ00025454,6.75,VODAFONE CORPORATE LIMITED
East Lindsey District Council,http://statistics.data.gov.uk/id/local-authority/32UC,Enforcement Team Leader,Telephones,05/09/13,IJ00025454,6.75,VODAFONE CORPORATE LIMITED
East Lindsey District Council,http://statistics.data.gov.uk/id/local-authority/32UC,Enforcement Team Leader,Telephones,05/09/13,IJ00025454,13.50,VODAFONE CORPORATE LIMITED
East Lindsey District Council,http://statistics.data.gov.uk/id/local-authority/32UC,Enforcement Team Leader,Telephones,05/09/13,IJ00025454,13.50,VODAFONE CORPORATE LIMITED
East Lindsey District Council,http://statistics.data.gov.uk/id/local-authority/32UC,Enforcement Team Leader,Telephones,05/09/13,IJ00025454,6.75,VODAFONE CORPORATE LIMITED
East Lindsey District Council,http://statistics.data.gov.uk/id/local-authority/32UC,Enforcement Team Leader,Telephones,05/09/13,IJ00025454,6.75,VODAFONE CORPORATE LIMITED
East Lindsey District Council,http://statistics.data.gov.uk/id/local-authority/32UC,Enforcement Team Leader,Telephones,05/09/13,IJ00025454,20.25,VODAFONE CORPORATE LIMITED
East Lindsey District Council,http://statistics.data.gov.uk/id/local-authority/32UC,Enforcement Team Leader,Telephones,05/09/13,IJ00025454,13.50,VODAFONE CORPORATE LIMITED
East Lindsey District Council,http://statistics.data.gov.uk/id/local-authority/32UC,Enforcement Team Leader,Telephones,05/09/13,IJ00025454,6.75,VODAFONE CORPORATE LIMITED
East Lindsey District Council,http://statistics.data.gov.uk/id/local-authority/32UC,Enforcement Team Leader,Telephones,05/09/13,IJ00025454,13.50,VODAFONE CORPORATE LIMITED
East Lindsey District Council,http://statistics.data.gov.uk/id/local-authority/32UC,Enforcement Team Leader,Telephones,05/09/13,IJ00025454,13.50,VODAFONE CORPORATE LIMITED
East Lindsey District Council,http://statistics.data.gov.uk/id/local-authority/32UC,Enforcement Team Leader,Telephones,05/09/13,IJ00025454,6.75,VODAFONE CORPORATE LIMITED
East Lindsey District Council,http://statistics.data.gov.uk/id/local-authority/32UC,Enforcement Team Leader,Telephones,05/09/13,IJ00025454,20.25,VODAFONE CORPORATE LIMITED
East Lindsey District Council,http://statistics.data.gov.uk/id/local-authority/32UC,Enforcement Team Leader,Telephones,05/09/13,IJ00025454,6.75,VODAFONE CORPORATE LIMITED
East Lindsey District Council,http://statistics.data.gov.uk/id/local-authority/32UC,Enforcement Team Leader,Telephones,05/09/13,IJ00025454,13.50,VODAFONE CORPORATE LIMITED
East Lindsey District Council,http://statistics.data.gov.uk/id/local-authority/32UC,Enforcement Team Leader,Telephones,05/09/13,IJ00025454,6.75,VODAFONE CORPORATE LIMITED
East Lindsey District Council,http://statistics.data.gov.uk/id/local-authority/32UC,Enforcement Team Leader,Telephones,05/09/13,IJ00025454,13.50,VODAFONE CORPORATE LIMITED
East Lindsey District Council,http://statistics.data.gov.uk/id/local-authority/32UC,Enforcement Team Leader,Telephones,05/09/13,IJ00025454,13.50,VODAFONE CORPORATE LIMITED
East Lindsey District Council,http://statistics.data.gov.uk/id/local-authority/32UC,Enforcement Team Leader,Telephones,05/09/13,IJ00025454,6.75,VODAFONE CORPORATE LIMITED
East Lindsey District Council,http://statistics.data.gov.uk/id/local-authority/32UC,Enforcement Team Leader,Telephones,05/09/13,IJ00025454,6.75,VODAFONE CORPORATE LIMITED
East Lindsey District Council,http://statistics.data.gov.uk/id/local-authority/32UC,Enforcement Team Leader,Telephones,05/09/13,IJ00025454,6.75,VODAFONE CORPORATE LIMITED
East Lindsey District Council,http://statistics.data.gov.uk/id/local-authority/32UC,Enforcement Team Leader,Telephones,05/09/13,IJ00025454,6.75,VODAFONE CORPORATE LIMITED
East Lindsey District Council,http://statistics.data.gov.uk/id/local-authority/32UC,Enforcement Team Leader,Telephones,05/09/13,IJ00025454,6.75,VODAFONE CORPORATE LIMITED
East Lindsey District Council,http://statistics.data.gov.uk/id/local-authority/32UC,Enforcement Team Leader,Telephones,05/09/13,IJ00025454,6.75,VODAFONE CORPORATE LIMITED
East Lindsey District Council,http://statistics.data.gov.uk/id/local-authority/32UC,Enforcement Team Leader,Telephones,05/09/13,IJ00025454,6.75,VODAFONE CORPORATE LIMITED
East Lindsey District Council,http://statistics.data.gov.uk/id/local-authority/32UC,Enforcement Team Leader,Telephones,05/09/13,IJ00025454,13.50,VODAFONE CORPORATE LIMITED
East Lindsey District Council,http://statistics.data.gov.uk/id/local-authority/32UC,Enforcement Team Leader,Telephones,05/09/13,IJ00025454,6.75,VODAFONE CORPORATE LIMITED
East Lindsey District Council,http://statistics.data.gov.uk/id/local-authority/32UC,Enforcement Team Leader,Telephones,05/09/13,IJ00025454,6.75,VODAFONE CORPORATE LIMITED
East Lindsey District Council,http://statistics.data.gov.uk/id/local-authority/32UC,Enforcement Team Leader,Telephones,05/09/13,IJ00025454,6.75,VODAFONE CORPORATE LIMITED
East Lindsey District Council,http://statistics.data.gov.uk/id/local-authority/32UC,Enforcement Team Leader,Telephones,05/09/13,IJ00025454,6.75,VODAFONE CORPORATE LIMITED
East Lindsey District Council,http://statistics.data.gov.uk/id/local-authority/32UC,Enforcement Team Leader,Telephones,05/09/13,IJ00025454,6.75,VODAFONE CORPORATE LIMITED
East Lindsey District Council,http://statistics.data.gov.uk/id/local-authority/32UC,Enforcement Team Leader,Telephones,05/09/13,IJ00025454,6.75,VODAFONE CORPORATE LIMITED
East Lindsey District Council,http://statistics.data.gov.uk/id/local-authority/32UC,Enforcement Team Leader,Telephones,05/09/13,IJ00025454,6.75,VODAFONE CORPORATE LIMITED
East Lindsey District Council,http://statistics.data.gov.uk/id/local-authority/32UC,Enforcement Team Leader,Telephones,05/09/13,IJ00025454,6.75,VODAFONE CORPORATE LIMITED
East Lindsey District Council,http://statistics.data.gov.uk/id/local-authority/32UC,Enforcement Team Leader,Telephones,05/09/13,IJ00025454,6.75,VODAFONE CORPORATE LIMITED
East Lindsey District Council,http://statistics.data.gov.uk/id/local-authority/32UC,Enforcement Team Leader,Telephones,05/09/13,IJ00025454,6.75,VODAFONE CORPORATE LIMITED
East Lindsey District Council,http://statistics.data.gov.uk/id/local-authority/32UC,Hsg Private Sector TL,Grants and Contributions to Outside Bodies- No Service Recei,05/09/13,IJ00025477,3896.35,M & M GRANTHAM
East Lindsey District Council,http://statistics.data.gov.uk/id/local-authority/32UC,Theatre Manager,Materials and Consumables,05/09/13,IJ00025569,289.64,PHS GROUP PLC
East Lindsey District Council,http://statistics.data.gov.uk/id/local-authority/32UC,TL Property,Materials and Consumables,05/09/13,IJ00025569,73.52,PHS GROUP PLC
East Lindsey District Council,http://statistics.data.gov.uk/id/local-authority/32UC,Leisure Operations,Materials and Consumables,05/09/13,IJ00025569,8.00,PHS GROUP PLC
East Lindsey District Council,http://statistics.data.gov.uk/id/local-authority/32UC,Leisure Operations,Materials and Consumables,05/09/13,IJ00025569,118.77,PHS GROUP PLC
East Lindsey District Council,http://statistics.data.gov.uk/id/local-authority/32UC,Leisure Operations,Materials and Consumables,05/09/13,IJ00025569,262.45,PHS GROUP PLC
East Lindsey District Council,http://statistics.data.gov.uk/id/local-authority/32UC,TL Property,Materials and Consumables,05/09/13,IJ00025569,60.65,PHS GROUP PLC
East Lindsey District Council,http://statistics.data.gov.uk/id/local-authority/32UC,Economic & Tourism,Materials and Consumables,05/09/13,IJ00025569,72.00,PHS GROUP PLC
East Lindsey District Council,http://statistics.data.gov.uk/id/local-authority/32UC,Economic & Tourism,Materials and Consumables,05/09/13,IJ00025569,289.28,PHS GROUP PLC
East Lindsey District Council,http://statistics.data.gov.uk/id/local-authority/32UC,Leisure Operations,Cleaning Contract,05/09/13,IJ00025569,272.67,PHS GROUP PLC
East Lindsey District Council,http://statistics.data.gov.uk/id/local-authority/32UC,TL Property,Materials and Consumables,05/09/13,IJ00025569,163.83,PHS GROUP PLC
East Lindsey District Council,http://statistics.data.gov.uk/id/local-authority/32UC,Leisure Operations,Cleaning Contract,05/09/13,IJ00025569,2120.07,PHS GROUP PLC
East Lindsey District Council,http://statistics.data.gov.uk/id/local-authority/32UC,Theatre Manager,Materials and Consumables,05/09/13,IJ00025569,44.72,PHS GROUP PLC
East Lindsey District Council,http://statistics.data.gov.uk/id/local-authority/32UC,Enforcement Team Leader,Stationery,05/09/13,IJ00025468,2018.40,PAPERWORK UK LTD
East Lindsey District Council,http://statistics.data.gov.uk/id/local-authority/32UC,Enforcement Team Leader,Stationery,05/09/13,IJ00025469,540.00,PAPERWORK UK LTD
East Lindsey District Council,http://statistics.data.gov.uk/id/local-authority/32UC,Waste Services Manager,Fuel & Oil,05/09/13,IJ00025465,14224.17,WATSON PETROLEUM LTD
East Lindsey District Council,http://statistics.data.gov.uk/id/local-authority/32UC,Corporate Management,Postages,05/09/13,IJ00025608,9000.00,NEOPOST LTD
East Lindsey District Council,http://statistics.data.gov.uk/id/local-authority/32UC,Neighbourhood Services,Materials and Consumables,05/09/13,IJ00025571,1006.85,ESPO
East Lindsey District Council,http://statistics.data.gov.uk/id/local-authority/32UC,Neighbourhood Services,Materials and Consumables,05/09/13,IJ00025571,4906.30,ESPO
East Lindsey District Council,http://statistics.data.gov.uk/id/local-authority/32UC,Leisure Operations,Furniture and Equipment,05/09/13,IJ00025571,2.65,ESPO
East Lindsey District Council,http://statistics.data.gov.uk/id/local-authority/32UC,Leisure Operations,Stationery,05/09/13,IJ00025571,11.25,ESPO
East Lindsey District Council,http://statistics.data.gov.uk/id/local-authority/32UC,Leisure Operations,Cleaning Contract,05/09/13,IJ00025571,161.14,ESPO
East Lindsey District Council,http://statistics.data.gov.uk/id/local-authority/32UC,Corporate Management,Staff Training Expenses,05/09/13,IJ00025506,1395.00,CIPFA BUSINESS LIMITED
East Lindsey District Council,http://statistics.data.gov.uk/id/local-authority/32UC,Corporate Management,Professional & Contractors Fees,05/09/13,IJ00025612,650.00,CHRISTOPHER DONKIN
East Lindsey District Council,http://statistics.data.gov.uk/id/local-authority/32UC,Leisure Operations,Other Miscellaneous Expenses,05/09/13,IJ00025505,703.13,DEE BEE
East Lindsey District Council,http://statistics.data.gov.uk/id/local-authority/32UC,Waste Services Manager,Professional & Contractors Fees,05/09/13,IJ00025568,5630.00,MABLETHORPE & SUTTON TOWN COUNCIL
East Lindsey District Council,http://statistics.data.gov.uk/id/local-authority/32UC,Theatre Manager,Performers and Entertainers Fees,05/09/13,IJ00025547,3232.84,ORIGINAL ENTERTAINMENT PROGRAMMING LTD
East Lindsey District Council,http://statistics.data.gov.uk/id/local-authority/32UC,Theatre Manager,Performers and Entertainers Fees,05/09/13,IJ00025547,-589.90,ORIGINAL ENTERTAINMENT PROGRAMMING LTD
East Lindsey District Council,http://statistics.data.gov.uk/id/local-authority/32UC,Waste Services Manager,Agency Staff,05/09/13,IJ00025501,6960.35,CLOSE INVOICE FINANCE LTD
East Lindsey District Council,http://statistics.data.gov.uk/id/local-authority/32UC,Hsg Private Sector TL,Other Income,05/09/13,IJ00025479,-855.94,HUMBERSTONE BUILDING MAINTENANCE
East Lindsey District Council,http://statistics.data.gov.uk/id/local-authority/32UC,Hsg Private Sector TL,Grants and Contributions to Outside Bodies- No Service Recei,05/09/13,IJ00025479,5002.29,HUMBERSTONE BUILDING MAINTENANCE
East Lindsey District Council,http://statistics.data.gov.uk/id/local-authority/32UC,Cultural & Related Services,Grants and Contributions- Where a Service is Received,05/09/13,IJ00025451,3000.00,SOUNDLINCS
East Lindsey District Council,http://statistics.data.gov.uk/id/local-authority/32UC,Enforcement Team Leader,Telephones,05/09/13,IJ00025559,59.25,MULTIDATA (EUROPE)
East Lindsey District Council,http://statistics.data.gov.uk/id/local-authority/32UC,Theatre Manager,Internet Broadband Payments,05/09/13,IJ00025559,75.00,MULTIDATA (EUROPE)
East Lindsey District Council,http://statistics.data.gov.uk/id/local-authority/32UC,Information Technology,Telephones,05/09/13,IJ00025559,90.00,MULTIDATA (EUROPE)
East Lindsey District Council,http://statistics.data.gov.uk/id/local-authority/32UC,Information Technology,Internet Broadband Payments,05/09/13,IJ00025559,951.75,MULTIDATA (EUROPE)
East Lindsey District Council,http://statistics.data.gov.uk/id/local-authority/32UC,Enforcement Team Leader,Payments to Bodies in Respect of Income Collected,05/09/13,IJ00025546,1873.58,INNES ENGLAND COMMERCIAL PROPERTY
East Lindsey District Council,http://statistics.data.gov.uk/id/local-authority/32UC,Theatre Manager,Performers and Entertainers Fees,05/09/13,IJ00025537,5091.95,BARRY COLLINGS ENTERTAINMENT
East Lindsey District Council,http://statistics.data.gov.uk/id/local-authority/32UC,Theatre Manager,Performers and Entertainers Fees,05/09/13,IJ00025537,-270.00,BARRY COLLINGS ENTERTAINMENT
East Lindsey District Council,http://statistics.data.gov.uk/id/local-authority/32UC,Hsg Private Sector TL,Other Income,05/09/13,IJ00025478,-377.84,DENNISS & MARWOOD
East Lindsey District Council,http://statistics.data.gov.uk/id/local-authority/32UC,Hsg Private Sector TL,Grants and Contributions to Outside Bodies- No Service Recei,05/09/13,IJ00025478,4231.77,DENNISS & MARWOOD
East Lindsey District Council,http://statistics.data.gov.uk/id/local-authority/32UC,Cultural & Related Services,Professional & Contractors Fees,05/09/13,IJ00025460,3650.00,LAVA
East Lindsey District Council,http://statistics.data.gov.uk/id/local-authority/32UC,Neighbourhood Services,Agency Staff,05/09/13,IJ00025442,1677.33,THE WORKSHOP (WISBECH) LIMITED
East Lindsey District Council,http://statistics.data.gov.uk/id/local-authority/32UC,Neighbourhood Services,Agency Staff,05/09/13,IJ00025442,1677.32,THE WORKSHOP (WISBECH) LIMITED,
East Lindsey District Council,http://statistics.data.gov.uk/id/local-authority/32UC,Neighbourhood Services,Agency Staff,05/09/13,IJ00025443,1653.03,THE WORKSHOP (WISBECH) LIMITED,
East Lindsey District Council,http://statistics.data.gov.uk/id/local-authority/32UC,Neighbourhood Services,Agency Staff,05/09/13,IJ00025443,1653.03,THE WORKSHOP (WISBECH) LIMITED,
East Lindsey District Council,http://statistics.data.gov.uk/id/local-authority/32UC,Leisure Operations,Professional & Contractors Fees,05/09/13,IJ00025586,860.00,REDACTED PERSONAL INFORMATION,Redacted
East Lindsey District Council,http://statistics.data.gov.uk/id/local-authority/32UC,Customer Services Manager,Payments to Bodies in Respect of Income Collected,05/09/13,IJ00025564,1953.85,NATIONAL EXPRESS CREDIT CONTROL DEPT,
East Lindsey District Council,http://statistics.data.gov.uk/id/local-authority/32UC,Customer Services Manager,Payments to Bodies in Respect of Income Collected,05/09/13,IJ00025564,2527.27,NATIONAL EXPRESS CREDIT CONTROL DEPT,
East Lindsey District Council,http://statistics.data.gov.uk/id/local-authority/32UC,Customer Services Manager,Payments to Bodies in Respect of Income Collected,05/09/13,IJ00025564,658.70,NATIONAL EXPRESS CREDIT CONTROL DEPT,
East Lindsey District Council,http://statistics.data.gov.uk/id/local-authority/32UC,Customer Services Manager,Payments to Bodies in Respect of Income Collected,05/09/13,IJ00025564,223.64,NATIONAL EXPRESS CREDIT CONTROL DEPT,
East Lindsey District Council,http://statistics.data.gov.uk/id/local-authority/32UC,Commercial Team Leader,Other Private Contractors,05/09/13,IJ00025502,1055.50,THE CO-OPERATIVE FUNERALCARE,
East Lindsey District Council,http://statistics.data.gov.uk/id/local-authority/32UC,Customer Services Manager,Payments to Bodies in Respect of Income Collected,05/09/13,IJ00025545,1335.20,WOODHALL SPA COTTAGE MUSEUM,
East Lindsey District Council,http://statistics.data.gov.uk/id/local-authority/32UC,Corporate Accounting,Compass Point Business Services,05/09/13,IJ00025534,421415.96,COMPASS POINT BUSINESS SERVICES,
East Lindsey District Council,http://statistics.data.gov.uk/id/local-authority/32UC,Theatre Manager,Performers and Entertainers Fees,05/09/13,IJ00025554,3723.34,QDOS ENTERTAINMENT (PRODUCTIONS) LTD,
East Lindsey District Council,http://statistics.data.gov.uk/id/local-authority/32UC,Theatre Manager,Performers and Entertainers Fees,05/09/13,IJ00025555,3490.02,QDOS ENTERTAINMENT (PRODUCTIONS) LTD,
East Lindsey District Council,http://statistics.data.gov.uk/id/local-authority/32UC,"Performance, Governance & Commissioning",Grants and Contributions to Outside Bodies- No Service Recei,05/09/13,IJ00025461,2000.00,HOLTON LE CLAY MERC,
East Lindsey District Council,http://statistics.data.gov.uk/id/local-authority/32UC,Hsg Private Sector TL,Other Income,05/09/13,IJ00025476,1080.00,POLLOK LIFTS,
East Lindsey District Council,http://statistics.data.gov.uk/id/local-authority/32UC,Theatre Manager,Performers and Entertainers Fees,05/09/13,IJ00025543,2793.24,DEREK BLOCK CONCERT PROMOTIONS LTD,
East Lindsey District Council,http://statistics.data.gov.uk/id/local-authority/32UC,Waste Services Manager,Materials and Consumables,05/09/13,IJ00025467,1562.48,J TOMLINSON LTD
East Lindsey District Council,http://statistics.data.gov.uk/id/local-authority/32UC,Waste Services Manager,Materials and Consumables,05/09/13,IJ00025466,2100.00,ESE LTD
East Lindsey District Council,http://statistics.data.gov.uk/id/local-authority/32UC,Economic & Tourism,Cleaning Contract,05/09/13,IJ00025609,500.90,EASY CLEAN MARSHCHAPEL LTD
East Lindsey District Council,http://statistics.data.gov.uk/id/local-authority/32UC,Economic & Tourism,Cleaning Contract,05/09/13,IJ00025610,760.60,EASY CLEAN MARSHCHAPEL LTD
East Lindsey District Council,http://statistics.data.gov.uk/id/local-authority/32UC,Waste Services Manager,Telephones,05/09/13,IJ00025441,11.29,DAISY COMMUNICATIONS LTD
East Lindsey District Council,http://statistics.data.gov.uk/id/local-authority/32UC,Enforcement Team Leader,Other agencies,05/09/13,IJ00025441,22.34,DAISY COMMUNICATIONS LTD
East Lindsey District Council,http://statistics.data.gov.uk/id/local-authority/32UC,Customer Services Manager,Telephones,05/09/13,IJ00025441,46.42,DAISY COMMUNICATIONS LTD
East Lindsey District Council,http://statistics.data.gov.uk/id/local-authority/32UC,Theatre Manager,Telephones,05/09/13,IJ00025441,54.95,DAISY COMMUNICATIONS LTD
East Lindsey District Council,http://statistics.data.gov.uk/id/local-authority/32UC,Theatre Manager,Telephones,05/09/13,IJ00025441,58.06,DAISY COMMUNICATIONS LTD
East Lindsey District Council,http://statistics.data.gov.uk/id/local-authority/32UC,Hsg Private Sector TL,Telephones,05/09/13,IJ00025441,11.11,DAISY COMMUNICATIONS LTD
East Lindsey District Council,http://statistics.data.gov.uk/id/local-authority/32UC,Enforcement Team Leader,Telephones,05/09/13,IJ00025441,10.99,DAISY COMMUNICATIONS LTD
East Lindsey District Council,http://statistics.data.gov.uk/id/local-authority/32UC,Building Control,Telephones,05/09/13,IJ00025441,54.00,DAISY COMMUNICATIONS LTD
East Lindsey District Council,http://statistics.data.gov.uk/id/local-authority/32UC,Economic & Tourism,Grants and Contributions to Outside Bodies- No Service Recei,05/09/13,IJ00025441,19.57,DAISY COMMUNICATIONS LTD
East Lindsey District Council,http://statistics.data.gov.uk/id/local-authority/32UC,Housing Support TL,Telephones,05/09/13,IJ00025441,10.99,DAISY COMMUNICATIONS LTD
East Lindsey District Council,http://statistics.data.gov.uk/id/local-authority/32UC,Economic & Tourism,Telephones,05/09/13,IJ00025441,26.40,DAISY COMMUNICATIONS LTD
East Lindsey District Council,http://statistics.data.gov.uk/id/local-authority/32UC,Corporate Management,Telephones,05/09/13,IJ00025441,1892.93,DAISY COMMUNICATIONS LTD
East Lindsey District Council,http://statistics.data.gov.uk/id/local-authority/32UC,Corporate Management,Telephones,05/09/13,IJ00025441,883.78,DAISY COMMUNICATIONS LTD
East Lindsey District Council,http://statistics.data.gov.uk/id/local-authority/32UC,Commercial Team Leader,Telephones,05/09/13,IJ00025441,11.00,DAISY COMMUNICATIONS LTD
East Lindsey District Council,http://statistics.data.gov.uk/id/local-authority/32UC,TL Property,Telephones,05/09/13,IJ00025441,10.99,DAISY COMMUNICATIONS LTD
East Lindsey District Council,http://statistics.data.gov.uk/id/local-authority/32UC,Information Technology,Telephones,05/09/13,IJ00025441,84.20,DAISY COMMUNICATIONS LTD
East Lindsey District Council,http://statistics.data.gov.uk/id/local-authority/32UC,Information Technology,Telephones,05/09/13,IJ00025441,21.98,DAISY COMMUNICATIONS LTD
East Lindsey District Council,http://statistics.data.gov.uk/id/local-authority/32UC,Leisure Operations,Telephones,05/09/13,IJ00025441,70.46,DAISY COMMUNICATIONS LTD
East Lindsey District Council,http://statistics.data.gov.uk/id/local-authority/32UC,Economic & Tourism,Telephones,05/09/13,IJ00025441,433.92,DAISY COMMUNICATIONS LTD
East Lindsey District Council,http://statistics.data.gov.uk/id/local-authority/32UC,Economic & Tourism,Telephones,05/09/13,IJ00025441,423.36,DAISY COMMUNICATIONS LTD
East Lindsey District Council,http://statistics.data.gov.uk/id/local-authority/32UC,Economic & Tourism,Telephones,05/09/13,IJ00025441,313.05,DAISY COMMUNICATIONS LTD
East Lindsey District Council,http://statistics.data.gov.uk/id/local-authority/32UC,Leisure Operations,Telephones,05/09/13,IJ00025441,42.31,DAISY COMMUNICATIONS LTD
East Lindsey District Council,http://statistics.data.gov.uk/id/local-authority/32UC,Leisure Operations,Telephones,05/09/13,IJ00025441,10.99,DAISY COMMUNICATIONS LTD
East Lindsey District Council,http://statistics.data.gov.uk/id/local-authority/32UC,Leisure Operations,Telephones,05/09/13,IJ00025441,10.99,DAISY COMMUNICATIONS LTD
East Lindsey District Council,http://statistics.data.gov.uk/id/local-authority/32UC,Leisure Operations,Telephones,05/09/13,IJ00025441,57.67,DAISY COMMUNICATIONS LTD
East Lindsey District Council,http://statistics.data.gov.uk/id/local-authority/32UC,TL Property,Telephones,05/09/13,IJ00025441,10.99,DAISY COMMUNICATIONS LTD
East Lindsey District Council,http://statistics.data.gov.uk/id/local-authority/32UC,TL Property,Telephones,05/09/13,IJ00025441,11.05,DAISY COMMUNICATIONS LTD
East Lindsey District Council,http://statistics.data.gov.uk/id/local-authority/32UC,TL Property,Telephones,05/09/13,IJ00025441,26.68,DAISY COMMUNICATIONS LTD
East Lindsey District Council,http://statistics.data.gov.uk/id/local-authority/32UC,TL Property,Telephones,05/09/13,IJ00025441,10.99,DAISY COMMUNICATIONS LTD
East Lindsey District Council,http://statistics.data.gov.uk/id/local-authority/32UC,TL Property,Telephones,05/09/13,IJ00025441,50.41,DAISY COMMUNICATIONS LTD
East Lindsey District Council,http://statistics.data.gov.uk/id/local-authority/32UC,Leisure Operations,Telephones,05/09/13,IJ00025441,23.82,DAISY COMMUNICATIONS LTD
East Lindsey District Council,http://statistics.data.gov.uk/id/local-authority/32UC,Leisure Operations,Telephones,05/09/13,IJ00025441,43.12,DAISY COMMUNICATIONS LTD
East Lindsey District Council,http://statistics.data.gov.uk/id/local-authority/32UC,Leisure Operations,Telephones,05/09/13,IJ00025441,10.99,DAISY COMMUNICATIONS LTD
East Lindsey District Council,http://statistics.data.gov.uk/id/local-authority/32UC,Neighbourhood Services,Telephones,05/09/13,IJ00025441,16.73,DAISY COMMUNICATIONS LTD
East Lindsey District Council,http://statistics.data.gov.uk/id/local-authority/32UC,Neighbourhood Services,Telephones,05/09/13,IJ00025441,10.99,DAISY COMMUNICATIONS LTD
East Lindsey District Council,http://statistics.data.gov.uk/id/local-authority/32UC,Neighbourhood Services,Telephones,05/09/13,IJ00025441,22.89,DAISY COMMUNICATIONS LTD
East Lindsey District Council,http://statistics.data.gov.uk/id/local-authority/32UC,TL Property,Telephones,05/09/13,IJ00025441,114.33,DAISY COMMUNICATIONS LTD
East Lindsey District Council,http://statistics.data.gov.uk/id/local-authority/32UC,TL Property,Telephones,05/09/13,IJ00025441,21.98,DAISY COMMUNICATIONS LTD
East Lindsey District Council,http://statistics.data.gov.uk/id/local-authority/32UC,TL Property,Telephones,05/09/13,IJ00025441,11.32,DAISY COMMUNICATIONS LTD
East Lindsey District Council,http://statistics.data.gov.uk/id/local-authority/32UC,TL Property,Telephones,05/09/13,IJ00025441,10.99,DAISY COMMUNICATIONS LTD
East Lindsey District Council,http://statistics.data.gov.uk/id/local-authority/32UC,Theatre Manager,Telephones,05/09/13,IJ00025441,16.55,DAISY COMMUNICATIONS LTD
East Lindsey District Council,http://statistics.data.gov.uk/id/local-authority/32UC,TL Property,Telephones,05/09/13,IJ00025441,33.79,DAISY COMMUNICATIONS LTD
East Lindsey District Council,http://statistics.data.gov.uk/id/local-authority/32UC,Corporate Management,Telephones,05/09/13,IJ00025441,10.99,DAISY COMMUNICATIONS LTD
East Lindsey District Council,http://statistics.data.gov.uk/id/local-authority/32UC,Leisure Operations,Telephones,05/09/13,IJ00025441,155.46,DAISY COMMUNICATIONS LTD
East Lindsey District Council,http://statistics.data.gov.uk/id/local-authority/32UC,"Performance, Governance & Commissioning",Other Miscellaneous Expenses,05/09/13,IJ00025481,947.40,Centre For Public Scrutiny Ltd
East Lindsey District Council,http://statistics.data.gov.uk/id/local-authority/32UC,Leisure Operations,Materials and Consumables,05/09/13,IJ00025603,910.00,PAC WRISTBANDS LTD
East Lindsey District Council,http://statistics.data.gov.uk/id/local-authority/32UC,Economic & Tourism,Other Miscellaneous Expenses,05/09/13,IJ00025444,946.15,CBS OUTDOOR LIMITED
East Lindsey District Council,http://statistics.data.gov.uk/id/local-authority/32UC,"Performance, Governance & Commissioning",Grants and Contributions to Outside Bodies- No Service Recei,05/09/13,IJ00025572,550.00,FRIENDS OF JUBILEE PARK
East Lindsey District Council,http://statistics.data.gov.uk/id/local-authority/32UC,Theatre Manager,Performers and Entertainers Fees,05/09/13,IJ00025557,4098.82,TALENTED ARTISTS LTD
East Lindsey District Council,http://statistics.data.gov.uk/id/local-authority/32UC,Enforcement Team Leader,Other Employee Expenses,05/09/13,IJ00025594,836.00,Disclosure and Barring Service
East Lindsey District Council,http://statistics.data.gov.uk/id/local-authority/32UC,Enforcement Team Leader,Fuel & Oil,05/09/13,IJ00025453,219.65,AllStar Business Solutions Ltd
East Lindsey District Council,http://statistics.data.gov.uk/id/local-authority/32UC,Enforcement Team Leader,Fuel & Oil,05/09/13,IJ00025453,355.83,AllStar Business Solutions Ltd
East Lindsey District Council,http://statistics.data.gov.uk/id/local-authority/32UC,Theatre Manager,Fuel & Oil,05/09/13,IJ00025453,60.17,AllStar Business Solutions Ltd
East Lindsey District Council,http://statistics.data.gov.uk/id/local-authority/32UC,Neighbourhood Services,Fuel & Oil,05/09/13,IJ00025453,2975.01,AllStar Business Solutions Ltd
East Lindsey District Council,http://statistics.data.gov.uk/id/local-authority/32UC,Neighbourhood Services,Fuel & Oil,05/09/13,IJ00025453,38.76,AllStar Business Solutions Ltd
East Lindsey District Council,http://statistics.data.gov.uk/id/local-authority/32UC,Neighbourhood Services,Fuel & Oil,05/09/13,IJ00025453,1448.74,AllStar Business Solutions Ltd
East Lindsey District Council,http://statistics.data.gov.uk/id/local-authority/32UC,TL Property,Fuel & Oil,05/09/13,IJ00025453,66.09,AllStar Business Solutions Ltd
East Lindsey District Council,http://statistics.data.gov.uk/id/local-authority/32UC,Theatre Manager,Performers and Entertainers Fees,05/09/13,IJ00025539,3093.58,Rivieria Entertainments
East Lindsey District Council,http://statistics.data.gov.uk/id/local-authority/32UC,Theatre Manager,Performers and Entertainers Fees,05/09/13,IJ00025541,3185.74,LMS Worldwide Ltd
East Lindsey District Council,http://statistics.data.gov.uk/id/local-authority/32UC,Enforcement Team Leader,Other Miscellaneous Expenses,05/09/13,IJ00025512,8004.00,Level 1 Group Ltd
East Lindsey District Council,http://statistics.data.gov.uk/id/local-authority/32UC,"Performance, Governance & Commissioning",Grants and Contributions to Outside Bodies- No Service Recei,05/09/13,IJ00025462,500.00,Spilsby Juniors Football Club,
East Lindsey District Council,http://statistics.data.gov.uk/id/local-authority/32UC,"Performance, Governance & Commissioning",Grants and Contributions to Outside Bodies- No Service Recei,05/09/13,IJ00025456,500.00,Burgh Le Marsh Heritage Project,
East Lindsey District Council,http://statistics.data.gov.uk/id/local-authority/32UC,"Performance, Governance & Commissioning",Grants and Contributions to Outside Bodies- No Service Recei,05/09/13,IJ00025578,1000.00,Skegness Polish Educational Association,
East Lindsey District Council,http://statistics.data.gov.uk/id/local-authority/32UC,BALANCE  SHEET,Payroll Advances,05/09/13,IJ00025602,630.00,REDACTED PERSONAL INFORMATION,Redacted
East Lindsey District Council,http://statistics.data.gov.uk/id/local-authority/32UC,Hsg Advice & Homelessness TL,Rent and Lease Payments,12/09/13,IJ00025648,1167.36,NEW LINX HOUSING TRUST,
East Lindsey District Council,http://statistics.data.gov.uk/id/local-authority/32UC,Hsg Advice & Homelessness TL,Rent and Lease Payments,12/09/13,IJ00025649,1167.36,NEW LINX HOUSING TRUST,
East Lindsey District Council,http://statistics.data.gov.uk/id/local-authority/32UC,Hsg Advice & Homelessness TL,Rent and Lease Payments,12/09/13,IJ00025650,1076.16,NEW LINX HOUSING TRUST,
East Lindsey District Council,http://statistics.data.gov.uk/id/local-authority/32UC,Hsg Advice & Homelessness TL,Rent and Lease Payments,12/09/13,IJ00025651,1150.20,NEW LINX HOUSING TRUST,
East Lindsey District Council,http://statistics.data.gov.uk/id/local-authority/32UC,Hsg Advice & Homelessness TL,Rent and Lease Payments,12/09/13,IJ00025652,1150.20,NEW LINX HOUSING TRUST,
East Lindsey District Council,http://statistics.data.gov.uk/id/local-authority/32UC,Hsg Advice & Homelessness TL,Rent and Lease Payments,12/09/13,IJ00025653,1150.20,NEW LINX HOUSING TRUST,
East Lindsey District Council,http://statistics.data.gov.uk/id/local-authority/32UC,Hsg Advice & Homelessness TL,Rent and Lease Payments,12/09/13,IJ00025655,1150.20,NEW LINX HOUSING TRUST,
East Lindsey District Council,http://statistics.data.gov.uk/id/local-authority/32UC,Hsg Advice & Homelessness TL,Rent and Lease Payments,12/09/13,IJ00025659,1054.08,NEW LINX HOUSING TRUST,
East Lindsey District Council,http://statistics.data.gov.uk/id/local-authority/32UC,Hsg Advice & Homelessness TL,Rent and Lease Payments,12/09/13,IJ00025661,1031.16,NEW LINX HOUSING TRUST,
East Lindsey District Council,http://statistics.data.gov.uk/id/local-authority/32UC,Hsg Advice & Homelessness TL,Rent and Lease Payments,12/09/13,IJ00025662,1052.64,NEW LINX HOUSING TRUST,
East Lindsey District Council,http://statistics.data.gov.uk/id/local-authority/32UC,Hsg Advice & Homelessness TL,Rent and Lease Payments,12/09/13,IJ00025664,1243.68,NEW LINX HOUSING TRUST,
East Lindsey District Council,http://statistics.data.gov.uk/id/local-authority/32UC,Hsg Advice & Homelessness TL,Rent and Lease Payments,12/09/13,IJ00025665,1111.20,NEW LINX HOUSING TRUST,
East Lindsey District Council,http://statistics.data.gov.uk/id/local-authority/32UC,Hsg Advice & Homelessness TL,Rent and Lease Payments,12/09/13,IJ00025668,920.40,NEW LINX HOUSING TRUST
East Lindsey District Council,http://statistics.data.gov.uk/id/local-authority/32UC,Hsg Advice & Homelessness TL,Rent and Lease Payments,12/09/13,IJ00025670,920.40,NEW LINX HOUSING TRUST
East Lindsey District Council,http://statistics.data.gov.uk/id/local-authority/32UC,Hsg Advice & Homelessness TL,Fuel & Oil,12/09/13,IJ00025872,41.71,AllStar Business Solutions Ltd
East Lindsey District Council,http://statistics.data.gov.uk/id/local-authority/32UC,Hsg Advice & Homelessness TL,Fuel & Oil,12/09/13,IJ00025872,101.50,AllStar Business Solutions Ltd
East Lindsey District Council,http://statistics.data.gov.uk/id/local-authority/32UC,Theatre Manager,Professional & Contractors Fees,12/09/13,IJ00025646,93.28,BIFFA WASTE SERVICES LTD
East Lindsey District Council,http://statistics.data.gov.uk/id/local-authority/32UC,Theatre Manager,Professional & Contractors Fees,12/09/13,IJ00025646,31.52,BIFFA WASTE SERVICES LTD
East Lindsey District Council,http://statistics.data.gov.uk/id/local-authority/32UC,Leisure Operations,Professional & Contractors Fees,12/09/13,IJ00025646,93.28,BIFFA WASTE SERVICES LTD
East Lindsey District Council,http://statistics.data.gov.uk/id/local-authority/32UC,Economic & Tourism,Professional & Contractors Fees,12/09/13,IJ00025646,46.64,BIFFA WASTE SERVICES LTD
East Lindsey District Council,http://statistics.data.gov.uk/id/local-authority/32UC,Economic & Tourism,Professional & Contractors Fees,12/09/13,IJ00025646,46.64,BIFFA WASTE SERVICES LTD
East Lindsey District Council,http://statistics.data.gov.uk/id/local-authority/32UC,TL Property,Professional & Contractors Fees,12/09/13,IJ00025646,46.64,BIFFA WASTE SERVICES LTD
East Lindsey District Council,http://statistics.data.gov.uk/id/local-authority/32UC,Leisure Operations,Professional & Contractors Fees,12/09/13,IJ00025646,46.64,BIFFA WASTE SERVICES LTD
East Lindsey District Council,http://statistics.data.gov.uk/id/local-authority/32UC,Leisure Operations,Professional & Contractors Fees,12/09/13,IJ00025646,46.64,BIFFA WASTE SERVICES LTD
East Lindsey District Council,http://statistics.data.gov.uk/id/local-authority/32UC,TL Property,Professional & Contractors Fees,12/09/13,IJ00025646,46.64,BIFFA WASTE SERVICES LTD
East Lindsey District Council,http://statistics.data.gov.uk/id/local-authority/32UC,TL Property,Professional & Contractors Fees,12/09/13,IJ00025646,227.00,BIFFA WASTE SERVICES LTD
East Lindsey District Council,http://statistics.data.gov.uk/id/local-authority/32UC,Leisure Operations,Professional & Contractors Fees,12/09/13,IJ00025646,233.20,BIFFA WASTE SERVICES LTD
East Lindsey District Council,http://statistics.data.gov.uk/id/local-authority/32UC,Theatre Manager,Professional & Contractors Fees,12/09/13,IJ00025647,93.28,BIFFA WASTE SERVICES LTD
East Lindsey District Council,http://statistics.data.gov.uk/id/local-authority/32UC,Theatre Manager,Professional & Contractors Fees,12/09/13,IJ00025647,31.52,BIFFA WASTE SERVICES LTD
East Lindsey District Council,http://statistics.data.gov.uk/id/local-authority/32UC,Leisure Operations,Professional & Contractors Fees,12/09/13,IJ00025647,93.28,BIFFA WASTE SERVICES LTD
East Lindsey District Council,http://statistics.data.gov.uk/id/local-authority/32UC,Economic & Tourism,Professional & Contractors Fees,12/09/13,IJ00025647,46.64,BIFFA WASTE SERVICES LTD
East Lindsey District Council,http://statistics.data.gov.uk/id/local-authority/32UC,Economic & Tourism,Professional & Contractors Fees,12/09/13,IJ00025647,46.64,BIFFA WASTE SERVICES LTD
East Lindsey District Council,http://statistics.data.gov.uk/id/local-authority/32UC,TL Property,Professional & Contractors Fees,12/09/13,IJ00025647,46.64,BIFFA WASTE SERVICES LTD
East Lindsey District Council,http://statistics.data.gov.uk/id/local-authority/32UC,Leisure Operations,Professional & Contractors Fees,12/09/13,IJ00025647,46.64,BIFFA WASTE SERVICES LTD
East Lindsey District Council,http://statistics.data.gov.uk/id/local-authority/32UC,Leisure Operations,Professional & Contractors Fees,12/09/13,IJ00025647,46.64,BIFFA WASTE SERVICES LTD
East Lindsey District Council,http://statistics.data.gov.uk/id/local-authority/32UC,TL Property,Professional & Contractors Fees,12/09/13,IJ00025647,46.64,BIFFA WASTE SERVICES LTD
East Lindsey District Council,http://statistics.data.gov.uk/id/local-authority/32UC,TL Property,Professional & Contractors Fees,12/09/13,IJ00025647,227.00,BIFFA WASTE SERVICES LTD
East Lindsey District Council,http://statistics.data.gov.uk/id/local-authority/32UC,Leisure Operations,Professional & Contractors Fees,12/09/13,IJ00025647,233.20,BIFFA WASTE SERVICES LTD
East Lindsey District Council,http://statistics.data.gov.uk/id/local-authority/32UC,Neighbourhood Services,Professional & Contractors Fees,12/09/13,IJ00025720,300.00,SID DENNIS & SONS LTD
East Lindsey District Council,http://statistics.data.gov.uk/id/local-authority/32UC,Neighbourhood Services,Professional & Contractors Fees,12/09/13,IJ00025720,330.00,SID DENNIS & SONS LTD
East Lindsey District Council,http://statistics.data.gov.uk/id/local-authority/32UC,TL Property,Buildings Maintenance - Responsive,12/09/13,IJ00025773,1004.02,SID DENNIS & SONS LTD
East Lindsey District Council,http://statistics.data.gov.uk/id/local-authority/32UC,Hsg Private Sector TL,Other Income,12/09/13,IJ00025824,-446.08,SIBJON BUILDERS
East Lindsey District Council,http://statistics.data.gov.uk/id/local-authority/32UC,Hsg Private Sector TL,Grants and Contributions to Outside Bodies- No Service Recei,12/09/13,IJ00025824,4996.00,SIBJON BUILDERS
East Lindsey District Council,http://statistics.data.gov.uk/id/local-authority/32UC,Neighbourhood Services,Materials and Consumables,12/09/13,IJ00025783,960.30,STOWLIN LTD
East Lindsey District Council,http://statistics.data.gov.uk/id/local-authority/32UC,Neighbourhood Services,Materials and Consumables,12/09/13,IJ00025784,816.70,STOWLIN LTD
East Lindsey District Council,http://statistics.data.gov.uk/id/local-authority/32UC,Theatre Manager,Performers and Entertainers Fees,12/09/13,IJ00025828,2864.13,JANICE SUTTON
East Lindsey District Council,http://statistics.data.gov.uk/id/local-authority/32UC,Theatre Manager,Performers and Entertainers Fees,12/09/13,IJ00025828,-913.24,JANICE SUTTON
East Lindsey District Council,http://statistics.data.gov.uk/id/local-authority/32UC,Leisure Operations,Grounds Maintenance Recharge,12/09/13,IJ00025812,3366.10,STEVEN PASK LIMITED
East Lindsey District Council,http://statistics.data.gov.uk/id/local-authority/32UC,TL Property,Buildings Maintenance - Responsive,12/09/13,IJ00025762,279.60,KENMOR BUILDING & CONSTRUCTION SERVICES
East Lindsey District Council,http://statistics.data.gov.uk/id/local-authority/32UC,TL Property,Buildings Maintenance - Responsive,12/09/13,IJ00025762,578.68,KENMOR BUILDING & CONSTRUCTION SERVICES
East Lindsey District Council,http://statistics.data.gov.uk/id/local-authority/32UC,Cultural & Related Services,Other Miscellaneous Expenses,12/09/13,IJ00025641,2075.00,KENWICK PARK HOTEL LIMITED
East Lindsey District Council,http://statistics.data.gov.uk/id/local-authority/32UC,Corporate Accounting,Postages,12/09/13,IJ00025794,73.03,ROYAL MAIL
East Lindsey District Council,http://statistics.data.gov.uk/id/local-authority/32UC,Corporate Management,Postages,12/09/13,IJ00025794,670.81,ROYAL MAIL
East Lindsey District Council,http://statistics.data.gov.uk/id/local-authority/32UC,Corporate Management,Postages,12/09/13,IJ00025794,262.29,ROYAL MAIL
East Lindsey District Council,http://statistics.data.gov.uk/id/local-authority/32UC,Corporate Management,Postages,12/09/13,IJ00025794,1405.32,ROYAL MAIL
East Lindsey District Council,http://statistics.data.gov.uk/id/local-authority/32UC,Corporate Management,Postages,12/09/13,IJ00025794,1049.72,ROYAL MAIL
East Lindsey District Council,http://statistics.data.gov.uk/id/local-authority/32UC,Corporate Management,Postages,12/09/13,IJ00025794,72.78,ROYAL MAIL
East Lindsey District Council,http://statistics.data.gov.uk/id/local-authority/32UC,Corporate Management,Postages,12/09/13,IJ00025794,47.86,ROYAL MAIL
East Lindsey District Council,http://statistics.data.gov.uk/id/local-authority/32UC,Corporate Management,Postages,12/09/13,IJ00025794,62.41,ROYAL MAIL
East Lindsey District Council,http://statistics.data.gov.uk/id/local-authority/32UC,Corporate Accounting,Postages,12/09/13,IJ00025795,16.92,ROYAL MAIL
East Lindsey District Council,http://statistics.data.gov.uk/id/local-authority/32UC,Corporate Management,Postages,12/09/13,IJ00025795,581.45,ROYAL MAIL
East Lindsey District Council,http://statistics.data.gov.uk/id/local-authority/32UC,Corporate Management,Postages,12/09/13,IJ00025795,299.27,ROYAL MAIL
East Lindsey District Council,http://statistics.data.gov.uk/id/local-authority/32UC,Corporate Management,Postages,12/09/13,IJ00025795,1182.83,ROYAL MAIL
East Lindsey District Council,http://statistics.data.gov.uk/id/local-authority/32UC,Corporate Management,Postages,12/09/13,IJ00025795,305.22,ROYAL MAIL
East Lindsey District Council,http://statistics.data.gov.uk/id/local-authority/32UC,Corporate Management,Postages,12/09/13,IJ00025795,47.15,ROYAL MAIL
East Lindsey District Council,http://statistics.data.gov.uk/id/local-authority/32UC,Corporate Management,Postages,12/09/13,IJ00025795,107.60,ROYAL MAIL
East Lindsey District Council,http://statistics.data.gov.uk/id/local-authority/32UC,Corporate Management,Postages,12/09/13,IJ00025795,77.04,ROYAL MAIL
East Lindsey District Council,http://statistics.data.gov.uk/id/local-authority/32UC,Corporate Accounting,Postages,12/09/13,IJ00025796,31.61,ROYAL MAIL
East Lindsey District Council,http://statistics.data.gov.uk/id/local-authority/32UC,Corporate Management,Postages,12/09/13,IJ00025796,738.48,ROYAL MAIL
East Lindsey District Council,http://statistics.data.gov.uk/id/local-authority/32UC,Corporate Management,Postages,12/09/13,IJ00025796,306.04,ROYAL MAIL
East Lindsey District Council,http://statistics.data.gov.uk/id/local-authority/32UC,Corporate Management,Postages,12/09/13,IJ00025796,937.76,ROYAL MAIL
East Lindsey District Council,http://statistics.data.gov.uk/id/local-authority/32UC,Corporate Management,Postages,12/09/13,IJ00025796,375.01,ROYAL MAIL
East Lindsey District Council,http://statistics.data.gov.uk/id/local-authority/32UC,Corporate Management,Postages,12/09/13,IJ00025796,36.15,ROYAL MAIL
East Lindsey District Council,http://statistics.data.gov.uk/id/local-authority/32UC,Corporate Management,Postages,12/09/13,IJ00025796,11.66,ROYAL MAIL
East Lindsey District Council,http://statistics.data.gov.uk/id/local-authority/32UC,Corporate Management,Postages,12/09/13,IJ00025796,63.06,ROYAL MAIL
East Lindsey District Council,http://statistics.data.gov.uk/id/local-authority/32UC,Corporate Accounting,Postages,12/09/13,IJ00025797,39.33,ROYAL MAIL
East Lindsey District Council,http://statistics.data.gov.uk/id/local-authority/32UC,Development Control,Postages,12/09/13,IJ00025797,580.08,ROYAL MAIL
East Lindsey District Council,http://statistics.data.gov.uk/id/local-authority/32UC,Corporate Management,Postages,12/09/13,IJ00025797,660.58,ROYAL MAIL
East Lindsey District Council,http://statistics.data.gov.uk/id/local-authority/32UC,Corporate Management,Postages,12/09/13,IJ00025797,238.56,ROYAL MAIL
East Lindsey District Council,http://statistics.data.gov.uk/id/local-authority/32UC,Corporate Management,Postages,12/09/13,IJ00025797,752.36,ROYAL MAIL
East Lindsey District Council,http://statistics.data.gov.uk/id/local-authority/32UC,Corporate Management,Postages,12/09/13,IJ00025797,283.58,ROYAL MAIL
East Lindsey District Council,http://statistics.data.gov.uk/id/local-authority/32UC,Corporate Management,Postages,12/09/13,IJ00025797,40.58,ROYAL MAIL
East Lindsey District Council,http://statistics.data.gov.uk/id/local-authority/32UC,Corporate Management,Postages,12/09/13,IJ00025797,48.12,ROYAL MAIL
East Lindsey District Council,http://statistics.data.gov.uk/id/local-authority/32UC,Corporate Management,Postages,12/09/13,IJ00025797,78.34,ROYAL MAIL
East Lindsey District Council,http://statistics.data.gov.uk/id/local-authority/32UC,Enforcement Team Leader,Professional & Contractors Fees,12/09/13,IJ00025730,4040.00,LINCOLNSHIRE COUNTY COUNCIL
East Lindsey District Council,http://statistics.data.gov.uk/id/local-authority/32UC,TL Property,Buildings Maintenance - Responsive,12/09/13,IJ00025754,2695.99,LINCOLNSHIRE COUNTY COUNCIL
East Lindsey District Council,http://statistics.data.gov.uk/id/local-authority/32UC,Hsg Private Sector TL,Grants and Contributions to Outside Bodies- No Service Recei,12/09/13,IJ00025826,-604.67,A & B BUILDERS
East Lindsey District Council,http://statistics.data.gov.uk/id/local-authority/32UC,Hsg Private Sector TL,Grants and Contributions to Outside Bodies- No Service Recei,12/09/13,IJ00025826,5202.26,A & B BUILDERS
East Lindsey District Council,http://statistics.data.gov.uk/id/local-authority/32UC,BALANCE  SHEET,Payroll Sacrifice Nursery Voucher,12/09/13,IJ00025876,2637.00,SODEXHO
East Lindsey District Council,http://statistics.data.gov.uk/id/local-authority/32UC,Neighbourhood Services,Buildings Maintenance - Responsive,12/09/13,IJ00025772,1550.00,SIDDLE GRIMLEY HAGE LIMITED
East Lindsey District Council,http://statistics.data.gov.uk/id/local-authority/32UC,Neighbourhood Services,Materials and Consumables,12/09/13,IJ00025645,373.75,ESPO
East Lindsey District Council,http://statistics.data.gov.uk/id/local-authority/32UC,Cultural & Related Services,Advertising - Events,12/09/13,IJ00025645,72.55,ESPO
East Lindsey District Council,http://statistics.data.gov.uk/id/local-authority/32UC,Leisure Operations,Cleaning Contract,12/09/13,IJ00025645,267.60,ESPO
East Lindsey District Council,http://statistics.data.gov.uk/id/local-authority/32UC,TL Property,Stationery,12/09/13,IJ00025645,42.73,ESPO
East Lindsey District Council,http://statistics.data.gov.uk/id/local-authority/32UC,Leisure Operations,Other Miscellaneous Expenses,12/09/13,IJ00025787,677.09,DEE BEE
East Lindsey District Council,http://statistics.data.gov.uk/id/local-authority/32UC,Hsg Private Sector TL,Other Income,12/09/13,IJ00025822,-380.00,OBAM STAIRLIFTS
East Lindsey District Council,http://statistics.data.gov.uk/id/local-authority/32UC,Hsg Private Sector TL,Grants and Contributions to Outside Bodies- No Service Recei,12/09/13,IJ00025822,1918.98,OBAM STAIRLIFTS
East Lindsey District Council,http://statistics.data.gov.uk/id/local-authority/32UC,Hsg Private Sector TL,Grants and Contributions to Outside Bodies- No Service Recei,12/09/13,IJ00025822,2337.02,OBAM STAIRLIFTS
East Lindsey District Council,http://statistics.data.gov.uk/id/local-authority/32UC,Waste Services Manager,Agency Staff,12/09/13,IJ00025682,7683.47,CLOSE INVOICE FINANCE LTD
East Lindsey District Council,http://statistics.data.gov.uk/id/local-authority/32UC,Waste Services Manager,Agency Staff,12/09/13,IJ00025881,9961.26,CLOSE INVOICE FINANCE LTD
East Lindsey District Council,http://statistics.data.gov.uk/id/local-authority/32UC,Leisure Operations,Purchase Of Goods For Resale,12/09/13,IJ00025786,1270.77,SRS LEISURE
East Lindsey District Council,http://statistics.data.gov.uk/id/local-authority/32UC,Environment Team Leader,Other Private Contractors,12/09/13,IJ00025863,1350.00,PELL PLANT HIRE LTD
East Lindsey District Council,http://statistics.data.gov.uk/id/local-authority/32UC,Environment Team Leader,Grants and Contributions to Outside Bodies- No Service Recei,12/09/13,IJ00025869,1150.00,PELL PLANT HIRE LTD
East Lindsey District Council,http://statistics.data.gov.uk/id/local-authority/32UC,Enforcement Team Leader,Payments to Bodies in Respect of Income Collected,12/09/13,IJ00025854,2363.28,INNES ENGLAND COMMERCIAL PROPERTY
East Lindsey District Council,http://statistics.data.gov.uk/id/local-authority/32UC,Information Technology,Computer Software Licence Costs,12/09/13,IJ00025632,1230.00,EXCITECH TECHNOLOGY FOR DESIGN
East Lindsey District Council,http://statistics.data.gov.uk/id/local-authority/32UC,Hsg Private Sector TL,Grants and Contributions to Outside Bodies- No Service Recei,12/09/13,IJ00025827,-109.50,DOLPHIN MOBILITY EAST MIDLANDS
East Lindsey District Council,http://statistics.data.gov.uk/id/local-authority/32UC,Hsg Private Sector TL,Grants and Contributions to Outside Bodies- No Service Recei,12/09/13,IJ00025827,1226.40,DOLPHIN MOBILITY EAST MIDLANDS
East Lindsey District Council,http://statistics.data.gov.uk/id/local-authority/32UC,Cultural & Related Services,Professional & Contractors Fees,12/09/13,IJ00025643,3019.00,SOUNDSTAGE ONE EVENT SERVICES LIMITED
East Lindsey District Council,http://statistics.data.gov.uk/id/local-authority/32UC,Waste Services Manager,Agency Staff,12/09/13,IJ00025731,964.00,LINCS MOTORHOMES LTD
East Lindsey District Council,http://statistics.data.gov.uk/id/local-authority/32UC,BALANCE  SHEET,Payroll Student Loan Deductions,12/09/13,IJ00025788,2300.00,H M REVENUES AND CUSTOMS
East Lindsey District Council,http://statistics.data.gov.uk/id/local-authority/32UC,BALANCE  SHEET,Payroll - Statutory Maternity Pay,12/09/13,IJ00025788,-5638.46,H M REVENUES AND CUSTOMS
East Lindsey District Council,http://statistics.data.gov.uk/id/local-authority/32UC,Neighbourhood Services,Agency Staff,12/09/13,IJ00025727,1734.37,THE WORKSHOP (WISBECH) LIMITED
East Lindsey District Council,http://statistics.data.gov.uk/id/local-authority/32UC,Neighbourhood Services,Agency Staff,12/09/13,IJ00025727,1734.36,THE WORKSHOP (WISBECH) LIMITED
East Lindsey District Council,http://statistics.data.gov.uk/id/local-authority/32UC,Hsg Private Sector TL,Other Income,12/09/13,IJ00025821,-304.87,HARRIS BUILDING SERVICES
East Lindsey District Council,http://statistics.data.gov.uk/id/local-authority/32UC,Hsg Private Sector TL,Grants and Contributions to Outside Bodies- No Service Recei,12/09/13,IJ00025821,3414.53,HARRIS BUILDING SERVICES
East Lindsey District Council,http://statistics.data.gov.uk/id/local-authority/32UC,Theatre Manager,Professional & Contractors Fees,12/09/13,IJ00025879,1200.00,FOCUS CONSULTANTS 2010 LLP
East Lindsey District Council,http://statistics.data.gov.uk/id/local-authority/32UC,Theatre Manager,Buildings Maintenance - Responsive,12/09/13,IJ00025819,184.26,J TOMLINSON LTD
East Lindsey District Council,http://statistics.data.gov.uk/id/local-authority/32UC,TL Property,Buildings Maintenance - Responsive,12/09/13,IJ00025819,99.41,J TOMLINSON LTD
East Lindsey District Council,http://statistics.data.gov.uk/id/local-authority/32UC,Enforcement Team Leader,Buildings Maintenance - Responsive,12/09/13,IJ00025819,47.16,J TOMLINSON LTD
East Lindsey District Council,http://statistics.data.gov.uk/id/local-authority/32UC,Economic & Tourism,Buildings Maintenance - Responsive,12/09/13,IJ00025819,362.43,J TOMLINSON LTD
East Lindsey District Council,http://statistics.data.gov.uk/id/local-authority/32UC,Leisure Operations,Buildings Maintenance - Responsive,12/09/13,IJ00025819,103.67,J TOMLINSON LTD
East Lindsey District Council,http://statistics.data.gov.uk/id/local-authority/32UC,Leisure Operations,Buildings Maintenance - Responsive,12/09/13,IJ00025819,47.16,J TOMLINSON LTD
East Lindsey District Council,http://statistics.data.gov.uk/id/local-authority/32UC,Leisure Operations,Buildings Maintenance - Responsive,12/09/13,IJ00025819,41.92,J TOMLINSON LTD
East Lindsey District Council,http://statistics.data.gov.uk/id/local-authority/32UC,Leisure Operations,Buildings Maintenance - Responsive,12/09/13,IJ00025819,116.07,J TOMLINSON LTD
East Lindsey District Council,http://statistics.data.gov.uk/id/local-authority/32UC,Neighbourhood Services,Buildings Maintenance - Responsive,12/09/13,IJ00025819,71.22,J TOMLINSON LTD
East Lindsey District Council,http://statistics.data.gov.uk/id/local-authority/32UC,Neighbourhood Services,Buildings Maintenance - Responsive,12/09/13,IJ00025819,238.89,J TOMLINSON LTD
East Lindsey District Council,http://statistics.data.gov.uk/id/local-authority/32UC,Neighbourhood Services,Buildings Maintenance - Responsive,12/09/13,IJ00025819,36.68,J TOMLINSON LTD
East Lindsey District Council,http://statistics.data.gov.uk/id/local-authority/32UC,Theatre Manager,Buildings Maintenance - Responsive,12/09/13,IJ00025819,36.68,J TOMLINSON LTD
East Lindsey District Council,http://statistics.data.gov.uk/id/local-authority/32UC,Theatre Manager,Buildings Maintenance - Responsive,12/09/13,IJ00025819,31.44,J TOMLINSON LTD
East Lindsey District Council,http://statistics.data.gov.uk/id/local-authority/32UC,Theatre Manager,Buildings Maintenance - Responsive,12/09/13,IJ00025819,240.78,J TOMLINSON LTD
East Lindsey District Council,http://statistics.data.gov.uk/id/local-authority/32UC,Theatre Manager,Buildings Maintenance - Responsive,12/09/13,IJ00025819,86.25,J TOMLINSON LTD
East Lindsey District Council,http://statistics.data.gov.uk/id/local-authority/32UC,Theatre Manager,Buildings Maintenance - Responsive,12/09/13,IJ00025819,20.00,J TOMLINSON LTD
East Lindsey District Council,http://statistics.data.gov.uk/id/local-authority/32UC,Theatre Manager,Buildings Maintenance - Responsive,12/09/13,IJ00025819,70.78,J TOMLINSON LTD
East Lindsey District Council,http://statistics.data.gov.uk/id/local-authority/32UC,Theatre Manager,Buildings Maintenance - Responsive,12/09/13,IJ00025819,104.34,J TOMLINSON LTD
East Lindsey District Council,http://statistics.data.gov.uk/id/local-authority/32UC,Economic & Tourism,Buildings Maintenance - Responsive,12/09/13,IJ00025819,48.82,J TOMLINSON LTD
East Lindsey District Council,http://statistics.data.gov.uk/id/local-authority/32UC,Economic & Tourism,Buildings Maintenance - Responsive,12/09/13,IJ00025819,20.00,J TOMLINSON LTD
East Lindsey District Council,http://statistics.data.gov.uk/id/local-authority/32UC,Neighbourhood Services,Buildings Maintenance - Responsive,12/09/13,IJ00025819,20.00,J TOMLINSON LTD
East Lindsey District Council,http://statistics.data.gov.uk/id/local-authority/32UC,TL Property,Buildings Maintenance - Responsive,12/09/13,IJ00025819,41.92,J TOMLINSON LTD
East Lindsey District Council,http://statistics.data.gov.uk/id/local-authority/32UC,TL Property,Buildings Maintenance - Responsive,12/09/13,IJ00025819,94.32,J TOMLINSON LTD
East Lindsey District Council,http://statistics.data.gov.uk/id/local-authority/32UC,TL Property,Buildings Maintenance - Responsive,12/09/13,IJ00025819,50.03,J TOMLINSON LTD
East Lindsey District Council,http://statistics.data.gov.uk/id/local-authority/32UC,TL Property,Buildings Maintenance - Responsive,12/09/13,IJ00025819,42.81,J TOMLINSON LTD
East Lindsey District Council,http://statistics.data.gov.uk/id/local-authority/32UC,TL Property,Buildings Maintenance - Responsive,12/09/13,IJ00025819,20.96,J TOMLINSON LTD
East Lindsey District Council,http://statistics.data.gov.uk/id/local-authority/32UC,TL Property,Buildings Maintenance - Responsive,12/09/13,IJ00025819,118.71,J TOMLINSON LTD
East Lindsey District Council,http://statistics.data.gov.uk/id/local-authority/32UC,TL Property,Buildings Maintenance - Responsive,12/09/13,IJ00025819,255.37,J TOMLINSON LTD
East Lindsey District Council,http://statistics.data.gov.uk/id/local-authority/32UC,TL Property,Buildings Maintenance - Responsive,12/09/13,IJ00025819,366.13,J TOMLINSON LTD
East Lindsey District Council,http://statistics.data.gov.uk/id/local-authority/32UC,Leisure Operations,Buildings Maintenance - Responsive,12/09/13,IJ00025819,44.88,J TOMLINSON LTD
East Lindsey District Council,http://statistics.data.gov.uk/id/local-authority/32UC,Leisure Operations,Buildings Maintenance - Responsive,12/09/13,IJ00025819,36.68,J TOMLINSON LTD
East Lindsey District Council,http://statistics.data.gov.uk/id/local-authority/32UC,Neighbourhood Services,Buildings Maintenance - Responsive,12/09/13,IJ00025819,36.75,J TOMLINSON LTD
East Lindsey District Council,http://statistics.data.gov.uk/id/local-authority/32UC,Neighbourhood Services,Buildings Maintenance - Responsive,12/09/13,IJ00025819,46.66,J TOMLINSON LTD
East Lindsey District Council,http://statistics.data.gov.uk/id/local-authority/32UC,Enforcement Team Leader,Buildings Maintenance - Responsive,12/09/13,IJ00025819,72.71,J TOMLINSON LTD
East Lindsey District Council,http://statistics.data.gov.uk/id/local-authority/32UC,Neighbourhood Services,Buildings Maintenance - Responsive,12/09/13,IJ00025819,90.51,J TOMLINSON LTD
East Lindsey District Council,http://statistics.data.gov.uk/id/local-authority/32UC,Neighbourhood Services,Buildings Maintenance - Responsive,12/09/13,IJ00025819,71.22,J TOMLINSON LTD
East Lindsey District Council,http://statistics.data.gov.uk/id/local-authority/32UC,Neighbourhood Services,Buildings Maintenance - Responsive,12/09/13,IJ00025819,41.92,J TOMLINSON LTD
East Lindsey District Council,http://statistics.data.gov.uk/id/local-authority/32UC,Neighbourhood Services,Buildings Maintenance - Responsive,12/09/13,IJ00025819,26.20,J TOMLINSON LTD
East Lindsey District Council,http://statistics.data.gov.uk/id/local-authority/32UC,Neighbourhood Services,Buildings Maintenance - Responsive,12/09/13,IJ00025819,93.74,J TOMLINSON LTD
East Lindsey District Council,http://statistics.data.gov.uk/id/local-authority/32UC,Neighbourhood Services,Buildings Maintenance - Responsive,12/09/13,IJ00025819,26.20,J TOMLINSON LTD
East Lindsey District Council,http://statistics.data.gov.uk/id/local-authority/32UC,Neighbourhood Services,Buildings Maintenance - Responsive,12/09/13,IJ00025819,57.64,J TOMLINSON LTD
East Lindsey District Council,http://statistics.data.gov.uk/id/local-authority/32UC,Neighbourhood Services,Buildings Maintenance - Responsive,12/09/13,IJ00025819,46.58,J TOMLINSON LTD
East Lindsey District Council,http://statistics.data.gov.uk/id/local-authority/32UC,Neighbourhood Services,Buildings Maintenance - Responsive,12/09/13,IJ00025819,355.52,J TOMLINSON LTD
East Lindsey District Council,http://statistics.data.gov.uk/id/local-authority/32UC,Neighbourhood Services,Buildings Maintenance - Responsive,12/09/13,IJ00025819,44.88,J TOMLINSON LTD
East Lindsey District Council,http://statistics.data.gov.uk/id/local-authority/32UC,Neighbourhood Services,Buildings Maintenance - Responsive,12/09/13,IJ00025819,10.48,J TOMLINSON LTD
East Lindsey District Council,http://statistics.data.gov.uk/id/local-authority/32UC,Neighbourhood Services,Buildings Maintenance - Responsive,12/09/13,IJ00025819,35.23,J TOMLINSON LTD
East Lindsey District Council,http://statistics.data.gov.uk/id/local-authority/32UC,Neighbourhood Services,Buildings Maintenance - Responsive,12/09/13,IJ00025819,20.96,J TOMLINSON LTD
East Lindsey District Council,http://statistics.data.gov.uk/id/local-authority/32UC,Neighbourhood Services,Buildings Maintenance - Responsive,12/09/13,IJ00025819,20.00,J TOMLINSON LTD
East Lindsey District Council,http://statistics.data.gov.uk/id/local-authority/32UC,Neighbourhood Services,Buildings Maintenance - Responsive,12/09/13,IJ00025819,31.43,J TOMLINSON LTD
East Lindsey District Council,http://statistics.data.gov.uk/id/local-authority/32UC,Neighbourhood Services,Buildings Maintenance - Responsive,12/09/13,IJ00025819,26.20,J TOMLINSON LTD
East Lindsey District Council,http://statistics.data.gov.uk/id/local-authority/32UC,Neighbourhood Services,Buildings Maintenance - Responsive,12/09/13,IJ00025819,20.00,J TOMLINSON LTD
East Lindsey District Council,http://statistics.data.gov.uk/id/local-authority/32UC,Neighbourhood Services,Buildings Maintenance - Responsive,12/09/13,IJ00025819,102.40,J TOMLINSON LTD
East Lindsey District Council,http://statistics.data.gov.uk/id/local-authority/32UC,Neighbourhood Services,Buildings Maintenance - Responsive,12/09/13,IJ00025819,149.25,J TOMLINSON LTD
East Lindsey District Council,http://statistics.data.gov.uk/id/local-authority/32UC,Neighbourhood Services,Buildings Maintenance - Responsive,12/09/13,IJ00025819,21.88,J TOMLINSON LTD
East Lindsey District Council,http://statistics.data.gov.uk/id/local-authority/32UC,Leisure Operations,Buildings Maintenance - Responsive,12/09/13,IJ00025819,20.00,J TOMLINSON LTD
East Lindsey District Council,http://statistics.data.gov.uk/id/local-authority/32UC,TL Property,Buildings Maintenance - Responsive,12/09/13,IJ00025819,192.08,J TOMLINSON LTD
East Lindsey District Council,http://statistics.data.gov.uk/id/local-authority/32UC,TL Property,Buildings Maintenance - Responsive,12/09/13,IJ00025819,36.88,J TOMLINSON LTD
East Lindsey District Council,http://statistics.data.gov.uk/id/local-authority/32UC,Enforcement Team Leader,Buildings Maintenance - Responsive,12/09/13,IJ00025819,224.18,J TOMLINSON LTD
East Lindsey District Council,http://statistics.data.gov.uk/id/local-authority/32UC,Neighbourhood Services,Buildings Maintenance - Responsive,12/09/13,IJ00025819,96.85,J TOMLINSON LTD
East Lindsey District Council,http://statistics.data.gov.uk/id/local-authority/32UC,Neighbourhood Services,Buildings Maintenance - Responsive,12/09/13,IJ00025819,31.43,J TOMLINSON LTD
East Lindsey District Council,http://statistics.data.gov.uk/id/local-authority/32UC,Neighbourhood Services,Buildings Maintenance - Responsive,12/09/13,IJ00025819,20.96,J TOMLINSON LTD
East Lindsey District Council,http://statistics.data.gov.uk/id/local-authority/32UC,Neighbourhood Services,Buildings Maintenance - Responsive,12/09/13,IJ00025819,36.68,J TOMLINSON LTD
East Lindsey District Council,http://statistics.data.gov.uk/id/local-authority/32UC,TL Property,Buildings Maintenance - Responsive,12/09/13,IJ00025819,20.00,J TOMLINSON LTD
East Lindsey District Council,http://statistics.data.gov.uk/id/local-authority/32UC,Leisure Operations,Buildings Maintenance - Responsive,12/09/13,IJ00025819,77.21,J TOMLINSON LTD
East Lindsey District Council,http://statistics.data.gov.uk/id/local-authority/32UC,Neighbourhood Services,Buildings Maintenance - Responsive,12/09/13,IJ00025819,370.13,J TOMLINSON LTD
East Lindsey District Council,http://statistics.data.gov.uk/id/local-authority/32UC,Neighbourhood Services,Buildings Maintenance - Responsive,12/09/13,IJ00025819,60.40,J TOMLINSON LTD
East Lindsey District Council,http://statistics.data.gov.uk/id/local-authority/32UC,Neighbourhood Services,Buildings Maintenance - Responsive,12/09/13,IJ00025819,122.23,J TOMLINSON LTD
East Lindsey District Council,http://statistics.data.gov.uk/id/local-authority/32UC,Neighbourhood Services,Buildings Maintenance - Responsive,12/09/13,IJ00025819,26.20,J TOMLINSON LTD
East Lindsey District Council,http://statistics.data.gov.uk/id/local-authority/32UC,Neighbourhood Services,Buildings Maintenance - Responsive,12/09/13,IJ00025819,31.43,J TOMLINSON LTD
East Lindsey District Council,http://statistics.data.gov.uk/id/local-authority/32UC,Neighbourhood Services,Buildings Maintenance - Responsive,12/09/13,IJ00025819,15.72,J TOMLINSON LTD
East Lindsey District Council,http://statistics.data.gov.uk/id/local-authority/32UC,Neighbourhood Services,Buildings Maintenance - Responsive,12/09/13,IJ00025819,34.38,J TOMLINSON LTD
East Lindsey District Council,http://statistics.data.gov.uk/id/local-authority/32UC,Neighbourhood Services,Buildings Maintenance - Responsive,12/09/13,IJ00025819,36.68,J TOMLINSON LTD
East Lindsey District Council,http://statistics.data.gov.uk/id/local-authority/32UC,Neighbourhood Services,Buildings Maintenance - Responsive,12/09/13,IJ00025819,419.14,J TOMLINSON LTD
East Lindsey District Council,http://statistics.data.gov.uk/id/local-authority/32UC,Enforcement Team Leader,Buildings Maintenance - Responsive,12/09/13,IJ00025819,1429.68,J TOMLINSON LTD
East Lindsey District Council,http://statistics.data.gov.uk/id/local-authority/32UC,Enforcement Team Leader,Buildings Maintenance - Responsive,12/09/13,IJ00025819,41.92,J TOMLINSON LTD
East Lindsey District Council,http://statistics.data.gov.uk/id/local-authority/32UC,Enforcement Team Leader,Buildings Maintenance - Responsive,12/09/13,IJ00025819,383.02,J TOMLINSON LTD
East Lindsey District Council,http://statistics.data.gov.uk/id/local-authority/32UC,TL Property,Buildings Maintenance - Responsive,12/09/13,IJ00025819,26.20,J TOMLINSON LTD
East Lindsey District Council,http://statistics.data.gov.uk/id/local-authority/32UC,Neighbourhood Services,Buildings Maintenance - Responsive,12/09/13,IJ00025819,61.73,J TOMLINSON LTD
East Lindsey District Council,http://statistics.data.gov.uk/id/local-authority/32UC,Neighbourhood Services,Buildings Maintenance - Responsive,12/09/13,IJ00025819,20.00,J TOMLINSON LTD
East Lindsey District Council,http://statistics.data.gov.uk/id/local-authority/32UC,Building Control,Buildings Maintenance - Responsive,12/09/13,IJ00025817,91.90,J TOMLINSON LTD
East Lindsey District Council,http://statistics.data.gov.uk/id/local-authority/32UC,TL Property,Buildings Maintenance - Responsive,12/09/13,IJ00025817,165.36,J TOMLINSON LTD
East Lindsey District Council,http://statistics.data.gov.uk/id/local-authority/32UC,Leisure Operations,Buildings Maintenance - Responsive,12/09/13,IJ00025817,31.38,J TOMLINSON LTD
East Lindsey District Council,http://statistics.data.gov.uk/id/local-authority/32UC,Neighbourhood Services,Buildings Maintenance - Responsive,12/09/13,IJ00025817,28.85,J TOMLINSON LTD
East Lindsey District Council,http://statistics.data.gov.uk/id/local-authority/32UC,Neighbourhood Services,Buildings Maintenance - Responsive,12/09/13,IJ00025817,218.18,J TOMLINSON LTD
East Lindsey District Council,http://statistics.data.gov.uk/id/local-authority/32UC,TL Property,Buildings Maintenance - Programmed,12/09/13,IJ00025817,20.92,J TOMLINSON LTD
East Lindsey District Council,http://statistics.data.gov.uk/id/local-authority/32UC,Leisure Operations,Buildings Maintenance - Responsive,12/09/13,IJ00025817,103.56,J TOMLINSON LTD
East Lindsey District Council,http://statistics.data.gov.uk/id/local-authority/32UC,TL Property,Buildings Maintenance - Responsive,12/09/13,IJ00025817,222.63,J TOMLINSON LTD
East Lindsey District Council,http://statistics.data.gov.uk/id/local-authority/32UC,Enforcement Team Leader,Buildings Maintenance - Responsive,12/09/13,IJ00025817,1509.50,J TOMLINSON LTD
East Lindsey District Council,http://statistics.data.gov.uk/id/local-authority/32UC,TL Property,Buildings Maintenance - Programmed,12/09/13,IJ00025817,20.00,J TOMLINSON LTD
East Lindsey District Council,http://statistics.data.gov.uk/id/local-authority/32UC,Leisure Operations,Buildings Maintenance - Responsive,12/09/13,IJ00025817,26.15,J TOMLINSON LTD
East Lindsey District Council,http://statistics.data.gov.uk/id/local-authority/32UC,Neighbourhood Services,Buildings Maintenance - Responsive,12/09/13,IJ00025817,26.15,J TOMLINSON LTD
East Lindsey District Council,http://statistics.data.gov.uk/id/local-authority/32UC,Enforcement Team Leader,Buildings Maintenance - Programmed,12/09/13,IJ00025817,2004.48,J TOMLINSON LTD
East Lindsey District Council,http://statistics.data.gov.uk/id/local-authority/32UC,Enforcement Team Leader,Buildings Maintenance - Programmed,12/09/13,IJ00025817,31.38,J TOMLINSON LTD
East Lindsey District Council,http://statistics.data.gov.uk/id/local-authority/32UC,Enforcement Team Leader,Buildings Maintenance - Programmed,12/09/13,IJ00025817,20.00,J TOMLINSON LTD
East Lindsey District Council,http://statistics.data.gov.uk/id/local-authority/32UC,Enforcement Team Leader,Buildings Maintenance - Programmed,12/09/13,IJ00025817,20.92,J TOMLINSON LTD
East Lindsey District Council,http://statistics.data.gov.uk/id/local-authority/32UC,Neighbourhood Services,Buildings Maintenance - Responsive,12/09/13,IJ00025817,20.00,J TOMLINSON LTD
East Lindsey District Council,http://statistics.data.gov.uk/id/local-authority/32UC,Hsg Private Sector TL,Other Income,12/09/13,IJ00025820,-779.31,THM CONSTRUCTION
East Lindsey District Council,http://statistics.data.gov.uk/id/local-authority/32UC,Hsg Private Sector TL,Grants and Contributions to Outside Bodies- No Service Recei,12/09/13,IJ00025820,996.79,THM CONSTRUCTION
East Lindsey District Council,http://statistics.data.gov.uk/id/local-authority/32UC,Hsg Private Sector TL,Grants and Contributions to Outside Bodies- No Service Recei,12/09/13,IJ00025820,1198.38,THM CONSTRUCTION
East Lindsey District Council,http://statistics.data.gov.uk/id/local-authority/32UC,Theatre Manager,Performers and Entertainers Fees,12/09/13,IJ00025837,3819.19,SWEENEY ENTERTAINMENTS
East Lindsey District Council,http://statistics.data.gov.uk/id/local-authority/32UC,Theatre Manager,Performers and Entertainers Fees,12/09/13,IJ00025837,-210.00,SWEENEY ENTERTAINMENTS
East Lindsey District Council,http://statistics.data.gov.uk/id/local-authority/32UC,TL Property,Water and Sewerage Charges,12/09/13,IJ00025739,700.97,ANGLIAN WATER
East Lindsey District Council,http://statistics.data.gov.uk/id/local-authority/32UC,TL Property,Water and Sewerage Charges,12/09/13,IJ00025740,1310.84,ANGLIAN WATER
East Lindsey District Council,http://statistics.data.gov.uk/id/local-authority/32UC,Economic & Tourism,Water and Sewerage Charges,12/09/13,IJ00025744,11804.89,ANGLIAN WATER
East Lindsey District Council,http://statistics.data.gov.uk/id/local-authority/32UC,Neighbourhood Services,Water and Sewerage Charges,12/09/13,IJ00025745,697.62,ANGLIAN WATER
East Lindsey District Council,http://statistics.data.gov.uk/id/local-authority/32UC,TL Property,Water and Sewerage Charges,12/09/13,IJ00025746,2074.17,ANGLIAN WATER
East Lindsey District Council,http://statistics.data.gov.uk/id/local-authority/32UC,Theatre Manager,Water and Sewerage Charges,12/09/13,IJ00025755,1052.60,ANGLIAN WATER
East Lindsey District Council,http://statistics.data.gov.uk/id/local-authority/32UC,Neighbourhood Services,Water and Sewerage Charges,12/09/13,IJ00025758,529.38,ANGLIAN WATER
East Lindsey District Council,http://statistics.data.gov.uk/id/local-authority/32UC,Hsg Private Sector TL,Other Income,12/09/13,IJ00025823,-568.97,MARK DONNER LTD
East Lindsey District Council,http://statistics.data.gov.uk/id/local-authority/32UC,Hsg Private Sector TL,Grants and Contributions to Outside Bodies- No Service Recei,12/09/13,IJ00025823,6067.99,MARK DONNER LTD
East Lindsey District Council,http://statistics.data.gov.uk/id/local-authority/32UC,Hsg Private Sector TL,Grants and Contributions to Outside Bodies- No Service Recei,12/09/13,IJ00025823,304.43,MARK DONNER LTD
East Lindsey District Council,http://statistics.data.gov.uk/id/local-authority/32UC,Waste Services Manager,Maintenance,12/09/13,IJ00025683,1636.95,MAY GURNEY FLEET & PASSENGER SERVICES LTD
East Lindsey District Council,http://statistics.data.gov.uk/id/local-authority/32UC,Waste Services Manager,Maintenance,12/09/13,IJ00025685,524.77,MAY GURNEY FLEET & PASSENGER SERVICES LTD
East Lindsey District Council,http://statistics.data.gov.uk/id/local-authority/32UC,Information Technology,Computer Hardware Purchase,12/09/13,IJ00025635,2070.08,INFRASYS LTD
East Lindsey District Council,http://statistics.data.gov.uk/id/local-authority/32UC,Hsg Private Sector TL,Other Income,12/09/13,IJ00025865,-404.33,ANDREW WRISDALE BUILDING CONTRACTOR
East Lindsey District Council,http://statistics.data.gov.uk/id/local-authority/32UC,Hsg Private Sector TL,Grants and Contributions to Outside Bodies- No Service Recei,12/09/13,IJ00025865,4528.48,ANDREW WRISDALE BUILDING CONTRACTOR
East Lindsey District Council,http://statistics.data.gov.uk/id/local-authority/32UC,Hsg Private Sector TL,Grants and Contributions to Outside Bodies- No Service Recei,12/09/13,IJ00025866,5860.00,ANDREW WRISDALE BUILDING CONTRACTOR
East Lindsey District Council,http://statistics.data.gov.uk/id/local-authority/32UC,Neighbourhood Services,Staff Training Expenses,12/09/13,IJ00025717,395.00,ROSPA
East Lindsey District Council,http://statistics.data.gov.uk/id/local-authority/32UC,Neighbourhood Services,Staff Training Expenses,12/09/13,IJ00025717,520.00,ROSPA
East Lindsey District Council,http://statistics.data.gov.uk/id/local-authority/32UC,Cultural & Related Services,Staff Training Expenses,12/09/13,IJ00025628,850.00,X VENTURE LIMITED
East Lindsey District Council,http://statistics.data.gov.uk/id/local-authority/32UC,Enforcement Team Leader,Fuel & Oil,12/09/13,IJ00025872,246.22,AllStar Business Solutions Ltd,
East Lindsey District Council,http://statistics.data.gov.uk/id/local-authority/32UC,Enforcement Team Leader,Fuel & Oil,12/09/13,IJ00025872,342.17,AllStar Business Solutions Ltd,
East Lindsey District Council,http://statistics.data.gov.uk/id/local-authority/32UC,Neighbourhood Services,Fuel & Oil,12/09/13,IJ00025872,2828.83,AllStar Business Solutions Ltd,
East Lindsey District Council,http://statistics.data.gov.uk/id/local-authority/32UC,Neighbourhood Services,Fuel & Oil,12/09/13,IJ00025872,39.87,AllStar Business Solutions Ltd,
East Lindsey District Council,http://statistics.data.gov.uk/id/local-authority/32UC,Neighbourhood Services,Fuel & Oil,12/09/13,IJ00025872,423.30,AllStar Business Solutions Ltd,
East Lindsey District Council,http://statistics.data.gov.uk/id/local-authority/32UC,TL Property,Fuel & Oil,12/09/13,IJ00025872,68.54,AllStar Business Solutions Ltd,
East Lindsey District Council,http://statistics.data.gov.uk/id/local-authority/32UC,Economic & Tourism,Buildings Maintenance - Responsive,12/09/13,IJ00025769,675.00,Churches Fire Security Ltd,
East Lindsey District Council,http://statistics.data.gov.uk/id/local-authority/32UC,Hsg Private Sector TL,Grants and Contributions to Outside Bodies- No Service Recei,12/09/13,IJ00025825,600.00,GF Design Services,
East Lindsey District Council,http://statistics.data.gov.uk/id/local-authority/32UC,Waste Services Manager,Commercial Vehicle Lease,12/09/13,IJ00025838,89773.32,Kier FPS Limited,
East Lindsey District Council,http://statistics.data.gov.uk/id/local-authority/32UC,Enforcement Team Leader,Other Miscellaneous Expenses,12/09/13,IJ00025870,870.00,Level 1 Group Ltd,
East Lindsey District Council,http://statistics.data.gov.uk/id/local-authority/32UC,BALANCE  SHEET,Other Miscellaneous Expenses,12/09/13,IJ00025895,3000.00,REDACTED PERSONAL INFORMATION,Redacted
East Lindsey District Council,http://statistics.data.gov.uk/id/local-authority/32UC,Collection Fund,Precept - Lincolnshire Police,18/09/13,IJ00025976,766123.57,LOCAL POLICE AUTHORITY FUND ACCOUNT,
East Lindsey District Council,http://statistics.data.gov.uk/id/local-authority/32UC,Collection Fund,Precept- Lincolnshire County Council,18/09/13,IJ00025977,4294657.00,LINCOLNSHIRE COUNTY COUNCIL,
East Lindsey District Council,http://statistics.data.gov.uk/id/local-authority/32UC,Collection Fund,Share of NDR Income - Lincolnshire,18/09/13,IJ00025977,318018.00,LINCOLNSHIRE COUNTY COUNCIL,
East Lindsey District Council,http://statistics.data.gov.uk/id/local-authority/32UC,Revenues & Benefits,Other Miscellaneous Expenses,18/09/13,IJ00026041,3998.61,ALLPAY NET LTD,
East Lindsey District Council,http://statistics.data.gov.uk/id/local-authority/32UC,Revenues & Benefits,Other Miscellaneous Expenses,18/09/13,IJ00026041,8.00,ALLPAY NET LTD,
East Lindsey District Council,http://statistics.data.gov.uk/id/local-authority/32UC,Revenues & Benefits,Other Miscellaneous Expenses,18/09/13,IJ00026041,105.08,ALLPAY NET LTD
East Lindsey District Council,http://statistics.data.gov.uk/id/local-authority/32UC,Development Control,Banking Charges,18/09/13,IJ00026044,6.62,CAPITA BUSINESS SERVICES LTD
East Lindsey District Council,http://statistics.data.gov.uk/id/local-authority/32UC,Corporate Accounting,Banking Charges,18/09/13,IJ00026044,2181.24,CAPITA BUSINESS SERVICES LTD
East Lindsey District Council,http://statistics.data.gov.uk/id/local-authority/32UC,Corporate Management,Banking Charges,18/09/13,IJ00026044,85.47,CAPITA BUSINESS SERVICES LTD
East Lindsey District Council,http://statistics.data.gov.uk/id/local-authority/32UC,Corporate Management,Banking Charges,18/09/13,IJ00026044,3083.17,CAPITA BUSINESS SERVICES LTD
East Lindsey District Council,http://statistics.data.gov.uk/id/local-authority/32UC,Corporate Management,Banking Charges,18/09/13,IJ00026044,76.62,CAPITA BUSINESS SERVICES LTD
East Lindsey District Council,http://statistics.data.gov.uk/id/local-authority/32UC,Corporate Management,Banking Charges,18/09/13,IJ00026044,83.87,CAPITA BUSINESS SERVICES LTD
East Lindsey District Council,http://statistics.data.gov.uk/id/local-authority/32UC,Theatre Manager,Performers and Entertainers Fees,18/09/13,IJ00025989,10000.00,Sally Morgan Enterprises Ltd
East Lindsey District Council,http://statistics.data.gov.uk/id/local-authority/32UC,Leisure Operations,Other agencies,19/09/13,IJ00026053,4625.06,COMPETITION LINE (UK) LTD
East Lindsey District Council,http://statistics.data.gov.uk/id/local-authority/32UC,Corporate Management,Lincolnshire Legal Services,19/09/13,IJ00025887,15642.44,LINCOLNSHIRE COUNTY COUNCIL
East Lindsey District Council,http://statistics.data.gov.uk/id/local-authority/32UC,Corporate Management,Lincolnshire Legal Services,19/09/13,IJ00025887,13426.65,LINCOLNSHIRE COUNTY COUNCIL
East Lindsey District Council,http://statistics.data.gov.uk/id/local-authority/32UC,Hsg Advice & Homelessness TL,Rent and Lease Payments,19/09/13,IJ00025970,2488.50,LONGHURST HOMES
East Lindsey District Council,http://statistics.data.gov.uk/id/local-authority/32UC,Hsg Advice & Homelessness TL,Insurance,19/09/13,IJ00025896,540.00,TRAVELERS INSURANCE COMPANY LIMITED
East Lindsey District Council,http://statistics.data.gov.uk/id/local-authority/32UC,Hsg Advice & Homelessness TL,Other Miscellaneous Expenses,19/09/13,IJ00026159,500.00,M F SIMPSON LTD
East Lindsey District Council,http://statistics.data.gov.uk/id/local-authority/32UC,Corporate Accounting,Grants and Contributions to Outside Bodies- No Service Recei,19/09/13,IJ00025940,4668.00,ALFORD TOWN COUNCIL
East Lindsey District Council,http://statistics.data.gov.uk/id/local-authority/32UC,Corporate Management,Parish Council Precepts,19/09/13,IJ00025911,20656.00,ALFORD TOWN COUNCIL
East Lindsey District Council,http://statistics.data.gov.uk/id/local-authority/32UC,Neighbourhood Services,Grants and Contributions to Outside Bodies- No Service Recei,19/09/13,IJ00026103,6530.00,ALFORD TOWN COUNCIL
East Lindsey District Council,http://statistics.data.gov.uk/id/local-authority/32UC,Neighbourhood Services,Professional & Contractors Fees,19/09/13,IJ00026009,678.90,SID DENNIS & SONS LTD
East Lindsey District Council,http://statistics.data.gov.uk/id/local-authority/32UC,Economic & Tourism,Professional & Contractors Fees,19/09/13,IJ00026108,4940.53,SID DENNIS & SONS LTD
East Lindsey District Council,http://statistics.data.gov.uk/id/local-authority/32UC,TL Property,Buildings Maintenance - Responsive,19/09/13,IJ00026121,35.42,HARLITE INSTALLATIONS LTD
East Lindsey District Council,http://statistics.data.gov.uk/id/local-authority/32UC,TL Property,Buildings Maintenance - Responsive,19/09/13,IJ00026121,35.42,HARLITE INSTALLATIONS LTD
East Lindsey District Council,http://statistics.data.gov.uk/id/local-authority/32UC,TL Property,Buildings Maintenance - Responsive,19/09/13,IJ00026121,36.23,HARLITE INSTALLATIONS LTD
East Lindsey District Council,http://statistics.data.gov.uk/id/local-authority/32UC,TL Property,Buildings Maintenance - Responsive,19/09/13,IJ00026121,18.03,HARLITE INSTALLATIONS LTD
East Lindsey District Council,http://statistics.data.gov.uk/id/local-authority/32UC,TL Property,Buildings Maintenance - Responsive,19/09/13,IJ00026121,18.03,HARLITE INSTALLATIONS LTD
East Lindsey District Council,http://statistics.data.gov.uk/id/local-authority/32UC,TL Property,Buildings Maintenance - Responsive,19/09/13,IJ00026121,35.42,HARLITE INSTALLATIONS LTD
East Lindsey District Council,http://statistics.data.gov.uk/id/local-authority/32UC,TL Property,Buildings Maintenance - Responsive,19/09/13,IJ00026121,35.42,HARLITE INSTALLATIONS LTD
East Lindsey District Council,http://statistics.data.gov.uk/id/local-authority/32UC,TL Property,Buildings Maintenance - Responsive,19/09/13,IJ00026121,65.23,HARLITE INSTALLATIONS LTD
East Lindsey District Council,http://statistics.data.gov.uk/id/local-authority/32UC,TL Property,Buildings Maintenance - Responsive,19/09/13,IJ00026121,570.54,HARLITE INSTALLATIONS LTD
East Lindsey District Council,http://statistics.data.gov.uk/id/local-authority/32UC,TL Property,Buildings Maintenance - Responsive,19/09/13,IJ00026121,35.42,HARLITE INSTALLATIONS LTD
East Lindsey District Council,http://statistics.data.gov.uk/id/local-authority/32UC,TL Property,Buildings Maintenance - Responsive,19/09/13,IJ00026121,35.42,HARLITE INSTALLATIONS LTD
East Lindsey District Council,http://statistics.data.gov.uk/id/local-authority/32UC,TL Property,Buildings Maintenance - Responsive,19/09/13,IJ00026121,35.42,HARLITE INSTALLATIONS LTD
East Lindsey District Council,http://statistics.data.gov.uk/id/local-authority/32UC,TL Property,Buildings Maintenance - Responsive,19/09/13,IJ00026121,35.42,HARLITE INSTALLATIONS LTD
East Lindsey District Council,http://statistics.data.gov.uk/id/local-authority/32UC,TL Property,Buildings Maintenance - Responsive,19/09/13,IJ00026121,35.42,HARLITE INSTALLATIONS LTD
East Lindsey District Council,http://statistics.data.gov.uk/id/local-authority/32UC,TL Property,Buildings Maintenance - Responsive,19/09/13,IJ00026121,35.42,HARLITE INSTALLATIONS LTD
East Lindsey District Council,http://statistics.data.gov.uk/id/local-authority/32UC,TL Property,Buildings Maintenance - Responsive,19/09/13,IJ00026121,36.46,HARLITE INSTALLATIONS LTD
East Lindsey District Council,http://statistics.data.gov.uk/id/local-authority/32UC,TL Property,Buildings Maintenance - Responsive,19/09/13,IJ00026121,35.42,HARLITE INSTALLATIONS LTD
East Lindsey District Council,http://statistics.data.gov.uk/id/local-authority/32UC,TL Property,Buildings Maintenance - Responsive,19/09/13,IJ00026121,61.03,HARLITE INSTALLATIONS LTD
East Lindsey District Council,http://statistics.data.gov.uk/id/local-authority/32UC,TL Property,Buildings Maintenance - Responsive,19/09/13,IJ00026121,35.42,HARLITE INSTALLATIONS LTD
East Lindsey District Council,http://statistics.data.gov.uk/id/local-authority/32UC,TL Property,Buildings Maintenance - Responsive,19/09/13,IJ00026121,18.03,HARLITE INSTALLATIONS LTD
East Lindsey District Council,http://statistics.data.gov.uk/id/local-authority/32UC,TL Property,Buildings Maintenance - Responsive,19/09/13,IJ00026121,18.03,HARLITE INSTALLATIONS LTD
East Lindsey District Council,http://statistics.data.gov.uk/id/local-authority/32UC,TL Property,Buildings Maintenance - Responsive,19/09/13,IJ00026121,18.03,HARLITE INSTALLATIONS LTD
East Lindsey District Council,http://statistics.data.gov.uk/id/local-authority/32UC,Neighbourhood Services,Buildings Maintenance - Responsive,19/09/13,IJ00026121,19.06,HARLITE INSTALLATIONS LTD
East Lindsey District Council,http://statistics.data.gov.uk/id/local-authority/32UC,Neighbourhood Services,Buildings Maintenance - Responsive,19/09/13,IJ00026121,72.08,HARLITE INSTALLATIONS LTD
East Lindsey District Council,http://statistics.data.gov.uk/id/local-authority/32UC,Enforcement Team Leader,Buildings Maintenance - Responsive,19/09/13,IJ00026121,385.00,HARLITE INSTALLATIONS LTD
East Lindsey District Council,http://statistics.data.gov.uk/id/local-authority/32UC,Economic & Tourism,Buildings Maintenance - Responsive,19/09/13,IJ00026143,152.21,HARLITE INSTALLATIONS LTD
East Lindsey District Council,http://statistics.data.gov.uk/id/local-authority/32UC,TL Property,Buildings Maintenance - Responsive,19/09/13,IJ00026143,35.42,HARLITE INSTALLATIONS LTD
East Lindsey District Council,http://statistics.data.gov.uk/id/local-authority/32UC,TL Property,Buildings Maintenance - Responsive,19/09/13,IJ00026143,24.57,HARLITE INSTALLATIONS LTD
East Lindsey District Council,http://statistics.data.gov.uk/id/local-authority/32UC,TL Property,Buildings Maintenance - Responsive,19/09/13,IJ00026143,61.42,HARLITE INSTALLATIONS LTD
East Lindsey District Council,http://statistics.data.gov.uk/id/local-authority/32UC,TL Property,Buildings Maintenance - Responsive,19/09/13,IJ00026143,565.81,HARLITE INSTALLATIONS LTD
East Lindsey District Council,http://statistics.data.gov.uk/id/local-authority/32UC,TL Property,Buildings Maintenance - Responsive,19/09/13,IJ00026143,35.42,HARLITE INSTALLATIONS LTD
East Lindsey District Council,http://statistics.data.gov.uk/id/local-authority/32UC,TL Property,Buildings Maintenance - Responsive,19/09/13,IJ00026143,35.42,HARLITE INSTALLATIONS LTD
East Lindsey District Council,http://statistics.data.gov.uk/id/local-authority/32UC,TL Property,Buildings Maintenance - Responsive,19/09/13,IJ00026143,41.28,HARLITE INSTALLATIONS LTD
East Lindsey District Council,http://statistics.data.gov.uk/id/local-authority/32UC,TL Property,Buildings Maintenance - Responsive,19/09/13,IJ00026143,61.42,HARLITE INSTALLATIONS LTD
East Lindsey District Council,http://statistics.data.gov.uk/id/local-authority/32UC,TL Property,Buildings Maintenance - Responsive,19/09/13,IJ00026143,327.42,HARLITE INSTALLATIONS LTD
East Lindsey District Council,http://statistics.data.gov.uk/id/local-authority/32UC,TL Property,Buildings Maintenance - Responsive,19/09/13,IJ00026143,19.06,HARLITE INSTALLATIONS LTD
East Lindsey District Council,http://statistics.data.gov.uk/id/local-authority/32UC,TL Property,Buildings Maintenance - Responsive,19/09/13,IJ00026143,60.05,HARLITE INSTALLATIONS LTD
East Lindsey District Council,http://statistics.data.gov.uk/id/local-authority/32UC,TL Property,Buildings Maintenance - Responsive,19/09/13,IJ00026143,24.57,HARLITE INSTALLATIONS LTD
East Lindsey District Council,http://statistics.data.gov.uk/id/local-authority/32UC,TL Property,Buildings Maintenance - Responsive,19/09/13,IJ00026143,18.02,HARLITE INSTALLATIONS LTD
East Lindsey District Council,http://statistics.data.gov.uk/id/local-authority/32UC,TL Property,Buildings Maintenance - Responsive,19/09/13,IJ00026143,24.57,HARLITE INSTALLATIONS LTD
East Lindsey District Council,http://statistics.data.gov.uk/id/local-authority/32UC,TL Property,Buildings Maintenance - Responsive,19/09/13,IJ00026143,24.57,HARLITE INSTALLATIONS LTD
East Lindsey District Council,http://statistics.data.gov.uk/id/local-authority/32UC,TL Property,Buildings Maintenance - Responsive,19/09/13,IJ00026143,35.42,HARLITE INSTALLATIONS LTD
East Lindsey District Council,http://statistics.data.gov.uk/id/local-authority/32UC,TL Property,Buildings Maintenance - Responsive,19/09/13,IJ00026143,18.02,HARLITE INSTALLATIONS LTD
East Lindsey District Council,http://statistics.data.gov.uk/id/local-authority/32UC,TL Property,Buildings Maintenance - Responsive,19/09/13,IJ00026143,18.02,HARLITE INSTALLATIONS LTD
East Lindsey District Council,http://statistics.data.gov.uk/id/local-authority/32UC,TL Property,Buildings Maintenance - Responsive,19/09/13,IJ00026143,24.62,HARLITE INSTALLATIONS LTD
East Lindsey District Council,http://statistics.data.gov.uk/id/local-authority/32UC,Theatre Manager,Postages,19/09/13,IJ00026027,2999.70,MORTONS PRINT LIMITED
East Lindsey District Council,http://statistics.data.gov.uk/id/local-authority/32UC,Neighbourhood Services,Materials and Consumables,19/09/13,IJ00026093,718.90,STOWLIN LTD
East Lindsey District Council,http://statistics.data.gov.uk/id/local-authority/32UC,Corporate Accounting,Grants and Contributions to Outside Bodies- No Service Recei,19/09/13,IJ00025960,1708.00,WOODHALL SPA PARISH COUNCIL
East Lindsey District Council,http://statistics.data.gov.uk/id/local-authority/32UC,Corporate Management,Parish Council Precepts,19/09/13,IJ00025934,26000.00,WOODHALL SPA PARISH COUNCIL
East Lindsey District Council,http://statistics.data.gov.uk/id/local-authority/32UC,Corporate Accounting,Grants and Contributions to Outside Bodies- No Service Recei,19/09/13,IJ00025955,3874.50,SPILSBY TOWN COUNCIL
East Lindsey District Council,http://statistics.data.gov.uk/id/local-authority/32UC,Corporate Management,Parish Council Precepts,19/09/13,IJ00025927,18386.00,SPILSBY TOWN COUNCIL
East Lindsey District Council,http://statistics.data.gov.uk/id/local-authority/32UC,Corporate Accounting,Grants and Contributions to Outside Bodies- No Service Recei,19/09/13,IJ00025941,1001.00,BINBROOK PARISH COUNCIL
East Lindsey District Council,http://statistics.data.gov.uk/id/local-authority/32UC,Corporate Management,Parish Council Precepts,19/09/13,IJ00025912,5771.50,BINBROOK PARISH COUNCIL
East Lindsey District Council,http://statistics.data.gov.uk/id/local-authority/32UC,Economic & Tourism,Other Miscellaneous Expenses,19/09/13,IJ00025885,2000.00,LINCS FM PLC
East Lindsey District Council,http://statistics.data.gov.uk/id/local-authority/32UC,Corporate Accounting,Grants and Contributions to Outside Bodies- No Service Recei,19/09/13,IJ00025954,25393.00,SKEGNESS TOWN COUNCIL
East Lindsey District Council,http://statistics.data.gov.uk/id/local-authority/32UC,Corporate Management,Parish Council Precepts,19/09/13,IJ00025926,99051.50,SKEGNESS TOWN COUNCIL
East Lindsey District Council,http://statistics.data.gov.uk/id/local-authority/32UC,Enforcement Team Leader,Buildings Maintenance - Responsive,19/09/13,IJ00026138,1093.08,KENMOR BUILDING & CONSTRUCTION SERVICES
East Lindsey District Council,http://statistics.data.gov.uk/id/local-authority/32UC,Enforcement Team Leader,Buildings Maintenance - Responsive,19/09/13,IJ00026138,177.30,KENMOR BUILDING & CONSTRUCTION SERVICES
East Lindsey District Council,http://statistics.data.gov.uk/id/local-authority/32UC,Theatre Manager,Advertising - Events,19/09/13,IJ00026028,850.00,F W CUPIT PRINTERS LIMITED
East Lindsey District Council,http://statistics.data.gov.uk/id/local-authority/32UC,Theatre Manager,Advertising - Events,19/09/13,IJ00026029,2395.35,F W CUPIT PRINTERS LIMITED
East Lindsey District Council,http://statistics.data.gov.uk/id/local-authority/32UC,Corporate Accounting,Grants and Contributions to Outside Bodies- No Service Recei,19/09/13,IJ00025962,3250.00,BURGH LE MARSH TOWN COUNCIL
East Lindsey District Council,http://statistics.data.gov.uk/id/local-authority/32UC,Corporate Management,Parish Council Precepts,19/09/13,IJ00025937,17439.47,BURGH LE MARSH TOWN COUNCIL
East Lindsey District Council,http://statistics.data.gov.uk/id/local-authority/32UC,"Performance, Governance & Commissioning",Grants and Contributions to Outside Bodies- No Service Recei,19/09/13,IJ00025996,3996.00,UTTERBY PARISH ROOM
East Lindsey District Council,http://statistics.data.gov.uk/id/local-authority/32UC,Corporate Accounting,Grants and Contributions to Outside Bodies- No Service Recei,19/09/13,IJ00025944,1101.50,EASTVILLE MIDVILLE & NEW LEAKE PARISH C
East Lindsey District Council,http://statistics.data.gov.uk/id/local-authority/32UC,Corporate Management,Parish Council Precepts,19/09/13,IJ00025915,5148.50,EASTVILLE MIDVILLE & NEW LEAKE PARISH C
East Lindsey District Council,http://statistics.data.gov.uk/id/local-authority/32UC,Neighbourhood Services,Professional & Contractors Fees,19/09/13,IJ00026056,49.05,PHS GROUP PLC
East Lindsey District Council,http://statistics.data.gov.uk/id/local-authority/32UC,Neighbourhood Services,Professional & Contractors Fees,19/09/13,IJ00026056,53.59,PHS GROUP PLC
East Lindsey District Council,http://statistics.data.gov.uk/id/local-authority/32UC,Neighbourhood Services,Professional & Contractors Fees,19/09/13,IJ00026056,68.29,PHS GROUP PLC
East Lindsey District Council,http://statistics.data.gov.uk/id/local-authority/32UC,Neighbourhood Services,Professional & Contractors Fees,19/09/13,IJ00026056,171.13,PHS GROUP PLC
East Lindsey District Council,http://statistics.data.gov.uk/id/local-authority/32UC,Neighbourhood Services,Professional & Contractors Fees,19/09/13,IJ00026056,214.42,PHS GROUP PLC
East Lindsey District Council,http://statistics.data.gov.uk/id/local-authority/32UC,Neighbourhood Services,Professional & Contractors Fees,19/09/13,IJ00026056,400.81,PHS GROUP PLC
East Lindsey District Council,http://statistics.data.gov.uk/id/local-authority/32UC,Neighbourhood Services,Professional & Contractors Fees,19/09/13,IJ00026056,164.10,PHS GROUP PLC
East Lindsey District Council,http://statistics.data.gov.uk/id/local-authority/32UC,Neighbourhood Services,Professional & Contractors Fees,19/09/13,IJ00026056,146.66,PHS GROUP PLC
East Lindsey District Council,http://statistics.data.gov.uk/id/local-authority/32UC,Neighbourhood Services,Professional & Contractors Fees,19/09/13,IJ00026056,420.18,PHS GROUP PLC
East Lindsey District Council,http://statistics.data.gov.uk/id/local-authority/32UC,Neighbourhood Services,Professional & Contractors Fees,19/09/13,IJ00026056,273.21,PHS GROUP PLC
East Lindsey District Council,http://statistics.data.gov.uk/id/local-authority/32UC,Neighbourhood Services,Professional & Contractors Fees,19/09/13,IJ00026056,236.44,PHS GROUP PLC
East Lindsey District Council,http://statistics.data.gov.uk/id/local-authority/32UC,Neighbourhood Services,Professional & Contractors Fees,19/09/13,IJ00026056,154.34,PHS GROUP PLC
East Lindsey District Council,http://statistics.data.gov.uk/id/local-authority/32UC,Neighbourhood Services,Professional & Contractors Fees,19/09/13,IJ00026056,283.58,PHS GROUP PLC
East Lindsey District Council,http://statistics.data.gov.uk/id/local-authority/32UC,Neighbourhood Services,Professional & Contractors Fees,19/09/13,IJ00026056,68.29,PHS GROUP PLC
East Lindsey District Council,http://statistics.data.gov.uk/id/local-authority/32UC,Neighbourhood Services,Professional & Contractors Fees,19/09/13,IJ00026056,69.52,PHS GROUP PLC
East Lindsey District Council,http://statistics.data.gov.uk/id/local-authority/32UC,Neighbourhood Services,Professional & Contractors Fees,19/09/13,IJ00026056,200.40,PHS GROUP PLC
East Lindsey District Council,http://statistics.data.gov.uk/id/local-authority/32UC,Neighbourhood Services,Professional & Contractors Fees,19/09/13,IJ00026056,92.50,PHS GROUP PLC
East Lindsey District Council,http://statistics.data.gov.uk/id/local-authority/32UC,Neighbourhood Services,Professional & Contractors Fees,19/09/13,IJ00026056,44.08,PHS GROUP PLC
East Lindsey District Council,http://statistics.data.gov.uk/id/local-authority/32UC,Neighbourhood Services,Professional & Contractors Fees,19/09/13,IJ00026056,53.61,PHS GROUP PLC
East Lindsey District Council,http://statistics.data.gov.uk/id/local-authority/32UC,Neighbourhood Services,Professional & Contractors Fees,19/09/13,IJ00026056,625.95,PHS GROUP PLC
East Lindsey District Council,http://statistics.data.gov.uk/id/local-authority/32UC,Corporate Accounting,Grants and Contributions to Outside Bodies- No Service Recei,19/09/13,IJ00025959,2626.00,WAINFLEET ALL SAINTS TOWN COUNCIL
East Lindsey District Council,http://statistics.data.gov.uk/id/local-authority/32UC,Corporate Management,Parish Council Precepts,19/09/13,IJ00025933,8624.00,WAINFLEET ALL SAINTS TOWN COUNCIL
East Lindsey District Council,http://statistics.data.gov.uk/id/local-authority/32UC,Information Technology,Computer Hardware Maintenance,19/09/13,IJ00026011,536.00,DELL COMPUTER CORPORATION LTD
East Lindsey District Council,http://statistics.data.gov.uk/id/local-authority/32UC,Corporate Accounting,Grants and Contributions to Outside Bodies- No Service Recei,19/09/13,IJ00025946,2182.50,HOLTON LE CLAY PARISH COUNCIL
East Lindsey District Council,http://statistics.data.gov.uk/id/local-authority/32UC,Corporate Management,Parish Council Precepts,19/09/13,IJ00025917,22817.50,HOLTON LE CLAY PARISH COUNCIL
East Lindsey District Council,http://statistics.data.gov.uk/id/local-authority/32UC,Economic & Tourism,Other Miscellaneous Expenses,19/09/13,IJ00025888,7000.00,LINCOLNSHIRE COUNTY COUNCIL
East Lindsey District Council,http://statistics.data.gov.uk/id/local-authority/32UC,Corporate Accounting,Grants and Contributions to Outside Bodies- No Service Recei,19/09/13,IJ00025956,1090.00,STICKNEY PARISH COUNCIL
East Lindsey District Council,http://statistics.data.gov.uk/id/local-authority/32UC,Corporate Management,Parish Council Precepts,19/09/13,IJ00025929,5660.00,STICKNEY PARISH COUNCIL
East Lindsey District Council,http://statistics.data.gov.uk/id/local-authority/32UC,Leisure Operations,Electricity,19/09/13,IJ00026146,2748.51,SOUTHERN ELECTRIC PLC
East Lindsey District Council,http://statistics.data.gov.uk/id/local-authority/32UC,Corporate Accounting,Grants and Contributions to Outside Bodies- No Service Recei,19/09/13,IJ00025953,1452.00,SIBSEY PARISH COUNCIL
East Lindsey District Council,http://statistics.data.gov.uk/id/local-authority/32UC,Corporate Management,Parish Council Precepts,19/09/13,IJ00025924,13112.00,SIBSEY PARISH COUNCIL
East Lindsey District Council,http://statistics.data.gov.uk/id/local-authority/32UC,Neighbourhood Services,Buildings Maintenance - Responsive,19/09/13,IJ00026136,940.50,POOLSIDE LEISURE
East Lindsey District Council,http://statistics.data.gov.uk/id/local-authority/32UC,Economic & Tourism,Other Miscellaneous Expenses,19/09/13,IJ00025890,3000.00,J H ATKINSON & SON
East Lindsey District Council,http://statistics.data.gov.uk/id/local-authority/32UC,Corporate Accounting,Grants and Contributions to Outside Bodies- No Service Recei,19/09/13,IJ00025947,2324.00,INGOLDMELLS PARISH COUNCIL
East Lindsey District Council,http://statistics.data.gov.uk/id/local-authority/32UC,Corporate Management,Parish Council Precepts,19/09/13,IJ00025918,10176.00,INGOLDMELLS PARISH COUNCIL
East Lindsey District Council,http://statistics.data.gov.uk/id/local-authority/32UC,Corporate Accounting,Grants and Contributions to Outside Bodies- No Service Recei,19/09/13,IJ00025948,14551.00,LOUTH TOWN COUNCIL
East Lindsey District Council,http://statistics.data.gov.uk/id/local-authority/32UC,Corporate Management,Parish Council Precepts,19/09/13,IJ00025919,91601.00,LOUTH TOWN COUNCIL
East Lindsey District Council,http://statistics.data.gov.uk/id/local-authority/32UC,TL Property,Buildings Maintenance - Responsive,19/09/13,IJ00026134,548.00,D & D ENGINEERING (LINCS) LTD
East Lindsey District Council,http://statistics.data.gov.uk/id/local-authority/32UC,Corporate Accounting,Grants and Contributions to Outside Bodies- No Service Recei,19/09/13,IJ00025945,1362.50,FRISKNEY PARISH COUNCIL
East Lindsey District Council,http://statistics.data.gov.uk/id/local-authority/32UC,Corporate Management,Parish Council Precepts,19/09/13,IJ00025916,7137.50,FRISKNEY PARISH COUNCIL
East Lindsey District Council,http://statistics.data.gov.uk/id/local-authority/32UC,Corporate Accounting,Grants and Contributions to Outside Bodies- No Service Recei,19/09/13,IJ00025958,627.50,TETNEY PARISH COUNCIL
East Lindsey District Council,http://statistics.data.gov.uk/id/local-authority/32UC,Corporate Management,Parish Council Precepts,19/09/13,IJ00025932,6872.50,TETNEY PARISH COUNCIL
East Lindsey District Council,http://statistics.data.gov.uk/id/local-authority/32UC,Corporate Accounting,Grants and Contributions to Outside Bodies- No Service Recei,19/09/13,IJ00025949,17743.00,MABLETHORPE & SUTTON TOWN COUNCIL
East Lindsey District Council,http://statistics.data.gov.uk/id/local-authority/32UC,Corporate Management,Parish Council Precepts,19/09/13,IJ00025920,67814.00,MABLETHORPE & SUTTON TOWN COUNCIL
East Lindsey District Council,http://statistics.data.gov.uk/id/local-authority/32UC,Corporate Accounting,Grants and Contributions to Outside Bodies- No Service Recei,19/09/13,IJ00025943,2991.00,CONINGSBY TOWN COUNCIL
East Lindsey District Council,http://statistics.data.gov.uk/id/local-authority/32UC,Corporate Management,Parish Council Precepts,19/09/13,IJ00025914,23509.00,CONINGSBY TOWN COUNCIL
East Lindsey District Council,http://statistics.data.gov.uk/id/local-authority/32UC,Waste Services Manager,Agency Staff,19/09/13,IJ00025993,6710.58,CLOSE INVOICE FINANCE LTD
East Lindsey District Council,http://statistics.data.gov.uk/id/local-authority/32UC,Waste Services Manager,Insurance,19/09/13,IJ00025896,3269.96,TRAVELERS INSURANCE COMPANY LIMITED
East Lindsey District Council,http://statistics.data.gov.uk/id/local-authority/32UC,Waste Services Manager,Insurance,19/09/13,IJ00025896,621.88,TRAVELERS INSURANCE COMPANY LIMITED
East Lindsey District Council,http://statistics.data.gov.uk/id/local-authority/32UC,Theatre Manager,Insurance,19/09/13,IJ00025896,4896.40,TRAVELERS INSURANCE COMPANY LIMITED
East Lindsey District Council,http://statistics.data.gov.uk/id/local-authority/32UC,Neighbourhood Services,Insurance,19/09/13,IJ00025896,225.25,TRAVELERS INSURANCE COMPANY LIMITED
East Lindsey District Council,http://statistics.data.gov.uk/id/local-authority/32UC,Waste Services Manager,Insurance,19/09/13,IJ00025897,490.00,TRAVELERS INSURANCE COMPANY LIMITED
East Lindsey District Council,http://statistics.data.gov.uk/id/local-authority/32UC,Enforcement Team Leader,Insurance,19/09/13,IJ00025897,10880.80,TRAVELERS INSURANCE COMPANY LIMITED
East Lindsey District Council,http://statistics.data.gov.uk/id/local-authority/32UC,Capital WIP,Works to Buildings (main Contractor),19/09/13,IJ00025901,1316.50,VERE BROS (CONTRACTORS) LTD
East Lindsey District Council,http://statistics.data.gov.uk/id/local-authority/32UC,Corporate Accounting,Grants and Contributions to Outside Bodies- No Service Recei,19/09/13,IJ00025950,624.50,MARSHCHAPEL PARISH COUNCIL
East Lindsey District Council,http://statistics.data.gov.uk/id/local-authority/32UC,Corporate Management,Parish Council Precepts,19/09/13,IJ00025921,5100.50,MARSHCHAPEL PARISH COUNCIL
East Lindsey District Council,http://statistics.data.gov.uk/id/local-authority/32UC,TL Property,Electricity,19/09/13,IJ00026120,2029.59,E.ON ENERGY
East Lindsey District Council,http://statistics.data.gov.uk/id/local-authority/32UC,Neighbourhood Services,Electricity,19/09/13,IJ00026120,6.40,E.ON ENERGY
East Lindsey District Council,http://statistics.data.gov.uk/id/local-authority/32UC,Enforcement Team Leader,Electricity,19/09/13,IJ00026120,6.09,E.ON ENERGY
East Lindsey District Council,http://statistics.data.gov.uk/id/local-authority/32UC,Enforcement Team Leader,Electricity,19/09/13,IJ00026120,17.43,E.ON ENERGY
East Lindsey District Council,http://statistics.data.gov.uk/id/local-authority/32UC,Enforcement Team Leader,Electricity,19/09/13,IJ00026120,19.23,E.ON ENERGY
East Lindsey District Council,http://statistics.data.gov.uk/id/local-authority/32UC,Enforcement Team Leader,Electricity,19/09/13,IJ00026120,39.57,E.ON ENERGY
East Lindsey District Council,http://statistics.data.gov.uk/id/local-authority/32UC,Enforcement Team Leader,Electricity,19/09/13,IJ00026120,8.20,E.ON ENERGY
East Lindsey District Council,http://statistics.data.gov.uk/id/local-authority/32UC,Enforcement Team Leader,Electricity,19/09/13,IJ00026120,13.19,E.ON ENERGY
East Lindsey District Council,http://statistics.data.gov.uk/id/local-authority/32UC,TL Property,Electricity,19/09/13,IJ00026119,7980.30,E.ON ENERGY
East Lindsey District Council,http://statistics.data.gov.uk/id/local-authority/32UC,Neighbourhood Services,Electricity,19/09/13,IJ00026119,25.60,E.ON ENERGY
East Lindsey District Council,http://statistics.data.gov.uk/id/local-authority/32UC,Enforcement Team Leader,Electricity,19/09/13,IJ00026119,24.36,E.ON ENERGY
East Lindsey District Council,http://statistics.data.gov.uk/id/local-authority/32UC,Enforcement Team Leader,Electricity,19/09/13,IJ00026119,69.72,E.ON ENERGY
East Lindsey District Council,http://statistics.data.gov.uk/id/local-authority/32UC,Enforcement Team Leader,Electricity,19/09/13,IJ00026119,76.92,E.ON ENERGY
East Lindsey District Council,http://statistics.data.gov.uk/id/local-authority/32UC,Enforcement Team Leader,Electricity,19/09/13,IJ00026119,158.28,E.ON ENERGY
East Lindsey District Council,http://statistics.data.gov.uk/id/local-authority/32UC,Enforcement Team Leader,Electricity,19/09/13,IJ00026119,32.80,E.ON ENERGY
East Lindsey District Council,http://statistics.data.gov.uk/id/local-authority/32UC,Enforcement Team Leader,Electricity,19/09/13,IJ00026119,52.76,E.ON ENERGY
East Lindsey District Council,http://statistics.data.gov.uk/id/local-authority/32UC,Corporate Accounting,Grants and Contributions to Outside Bodies- No Service Recei,19/09/13,IJ00025952,896.00,NORTH THORESBY PARISH COUNCIL
East Lindsey District Council,http://statistics.data.gov.uk/id/local-authority/32UC,Corporate Management,Parish Council Precepts,19/09/13,IJ00025923,7771.50,NORTH THORESBY PARISH COUNCIL
East Lindsey District Council,http://statistics.data.gov.uk/id/local-authority/32UC,Corporate Accounting,Grants and Contributions to Outside Bodies- No Service Recei,19/09/13,IJ00025942,7979.00,CHAPEL ST LEONARDS PARISH COUNCIL
East Lindsey District Council,http://statistics.data.gov.uk/id/local-authority/32UC,Corporate Management,Parish Council Precepts,19/09/13,IJ00025913,29821.00,CHAPEL ST LEONARDS PARISH COUNCIL
East Lindsey District Council,http://statistics.data.gov.uk/id/local-authority/32UC,Corporate Accounting,Grants and Contributions to Outside Bodies- No Service Recei,19/09/13,IJ00025957,827.50,TATTERSHALL WITH THORPE PARISH COUNCIL
East Lindsey District Council,http://statistics.data.gov.uk/id/local-authority/32UC,Corporate Management,Parish Council Precepts,19/09/13,IJ00025930,7684.50,TATTERSHALL WITH THORPE PARISH COUNCIL
East Lindsey District Council,http://statistics.data.gov.uk/id/local-authority/32UC,Theatre Manager,Performers and Entertainers Fees,19/09/13,IJ00026021,4046.58,TIMELESS THEATRE PRODUCTIONS LTD
East Lindsey District Council,http://statistics.data.gov.uk/id/local-authority/32UC,Theatre Manager,Performers and Entertainers Fees,19/09/13,IJ00026021,-390.00,TIMELESS THEATRE PRODUCTIONS LTD
East Lindsey District Council,http://statistics.data.gov.uk/id/local-authority/32UC,Corporate Accounting,Grants and Contributions to Outside Bodies- No Service Recei,19/09/13,IJ00025963,7490.50,HORNCASTLE TOWN COUNCIL
East Lindsey District Council,http://statistics.data.gov.uk/id/local-authority/32UC,Corporate Management,Parish Council Precepts,19/09/13,IJ00025939,48077.00,HORNCASTLE TOWN COUNCIL
East Lindsey District Council,http://statistics.data.gov.uk/id/local-authority/32UC,Enforcement Team Leader,Payments to Bodies in Respect of Income Collected,19/09/13,IJ00026054,2027.28,INNES ENGLAND COMMERCIAL PROPERTY
East Lindsey District Council,http://statistics.data.gov.uk/id/local-authority/32UC,Leisure Operations,Furniture and Equipment,19/09/13,IJ00025967,1039.60,RODDEN & COOPER
East Lindsey District Council,http://statistics.data.gov.uk/id/local-authority/32UC,Development Control,Agency Staff,19/09/13,IJ00026086,8091.59,LGS LIMITED
East Lindsey District Council,http://statistics.data.gov.uk/id/local-authority/32UC,Neighbourhood Services,Agency Staff,19/09/13,IJ00026001,1677.21,THE WORKSHOP (WISBECH) LIMITED
East Lindsey District Council,http://statistics.data.gov.uk/id/local-authority/32UC,Neighbourhood Services,Agency Staff,19/09/13,IJ00026001,1677.21,THE WORKSHOP (WISBECH) LIMITED
East Lindsey District Council,http://statistics.data.gov.uk/id/local-authority/32UC,Cultural & Related Services,Professional & Contractors Fees,19/09/13,IJ00026153,7450.00,MAGNETIC EVENTS LTD
East Lindsey District Council,http://statistics.data.gov.uk/id/local-authority/32UC,Cultural & Related Services,Professional & Contractors Fees,19/09/13,IJ00026154,24087.00,MAGNETIC EVENTS LTD
East Lindsey District Council,http://statistics.data.gov.uk/id/local-authority/32UC,Development Control,Professional & Contractors Fees,19/09/13,IJ00025893,1687.00,GLOBE CONSULTANTS
East Lindsey District Council,http://statistics.data.gov.uk/id/local-authority/32UC,Development Control,Professional & Contractors Fees,19/09/13,IJ00025971,2478.30,GLOBE CONSULTANTS
East Lindsey District Council,http://statistics.data.gov.uk/id/local-authority/32UC,Communications Manager,Other Miscellaneous Expenses,19/09/13,IJ00025905,5883.30,BIBBY FACTORS NORTHWEST LIMITED
East Lindsey District Council,http://statistics.data.gov.uk/id/local-authority/32UC,Theatre Manager,Performers and Entertainers Fees,19/09/13,IJ00026022,5154.38,ARTISTES INTERNATIONAL MANAGEMENT LTD
East Lindsey District Council,http://statistics.data.gov.uk/id/local-authority/32UC,Theatre Manager,Performers and Entertainers Fees,19/09/13,IJ00026022,-234.00,ARTISTES INTERNATIONAL MANAGEMENT LTD
East Lindsey District Council,http://statistics.data.gov.uk/id/local-authority/32UC,Corporate Accounting,Grants and Contributions to Outside Bodies- No Service Recei,19/09/13,IJ00025951,1563.00,NORTH SOMERCOTES PARISH COUNCIL
East Lindsey District Council,http://statistics.data.gov.uk/id/local-authority/32UC,Corporate Management,Parish Council Precepts,19/09/13,IJ00025922,10305.00,NORTH SOMERCOTES PARISH COUNCIL
East Lindsey District Council,http://statistics.data.gov.uk/id/local-authority/32UC,Corporate Accounting,Grants and Contributions to Outside Bodies- No Service Recei,19/09/13,IJ00025961,1603.00,WRAGBY PARISH COUNCIL
East Lindsey District Council,http://statistics.data.gov.uk/id/local-authority/32UC,Corporate Management,Parish Council Precepts,19/09/13,IJ00025936,10197.00,WRAGBY PARISH COUNCIL
East Lindsey District Council,http://statistics.data.gov.uk/id/local-authority/32UC,Hsg Private Sector TL,Other Income,19/09/13,IJ00025891,-412.63,THM CONSTRUCTION
East Lindsey District Council,http://statistics.data.gov.uk/id/local-authority/32UC,Hsg Private Sector TL,Grants and Contributions to Outside Bodies- No Service Recei,19/09/13,IJ00025891,1613.03,THM CONSTRUCTION
East Lindsey District Council,http://statistics.data.gov.uk/id/local-authority/32UC,Hsg Private Sector TL,Grants and Contributions to Outside Bodies- No Service Recei,19/09/13,IJ00025891,2685.84,THM CONSTRUCTION
East Lindsey District Council,http://statistics.data.gov.uk/id/local-authority/32UC,Neighbourhood Services,Water and Sewerage Charges,19/09/13,IJ00026117,2005.66,ANGLIAN WATER
East Lindsey District Council,http://statistics.data.gov.uk/id/local-authority/32UC,Neighbourhood Services,Water and Sewerage Charges,19/09/13,IJ00026151,1419.57,ANGLIAN WATER
East Lindsey District Council,http://statistics.data.gov.uk/id/local-authority/32UC,Neighbourhood Services,Water and Sewerage Charges,19/09/13,IJ00026152,2702.56,ANGLIAN WATER
East Lindsey District Council,http://statistics.data.gov.uk/id/local-authority/32UC,TL Property,Cleaning Contract,19/09/13,IJ00026129,586.00,OLSEN CONTRACT CLEANERS
East Lindsey District Council,http://statistics.data.gov.uk/id/local-authority/32UC,Customer Services Manager,Payments to Bodies in Respect of Income Collected,19/09/13,IJ00026049,704.76,RUSSELLS CIRCUS
East Lindsey District Council,http://statistics.data.gov.uk/id/local-authority/32UC,Corporate Accounting,Professional & Contractors Fees,19/09/13,IJ00025968,936.00,KINGS ARMOURED SECURITY SERVICES LTD
East Lindsey District Council,http://statistics.data.gov.uk/id/local-authority/32UC,Waste Services Manager,Telephones,19/09/13,IJ00025894,11.22,DAISY COMMUNICATIONS LTD
East Lindsey District Council,http://statistics.data.gov.uk/id/local-authority/32UC,Enforcement Team Leader,Other agencies,19/09/13,IJ00025894,22.34,DAISY COMMUNICATIONS LTD
East Lindsey District Council,http://statistics.data.gov.uk/id/local-authority/32UC,Customer Services Manager,Telephones,19/09/13,IJ00025894,46.08,DAISY COMMUNICATIONS LTD
East Lindsey District Council,http://statistics.data.gov.uk/id/local-authority/32UC,Theatre Manager,Telephones,19/09/13,IJ00025894,54.95,DAISY COMMUNICATIONS LTD
East Lindsey District Council,http://statistics.data.gov.uk/id/local-authority/32UC,Theatre Manager,Telephones,19/09/13,IJ00025894,58.04,DAISY COMMUNICATIONS LTD
East Lindsey District Council,http://statistics.data.gov.uk/id/local-authority/32UC,Hsg Private Sector TL,Telephones,19/09/13,IJ00025894,11.11,DAISY COMMUNICATIONS LTD
East Lindsey District Council,http://statistics.data.gov.uk/id/local-authority/32UC,Enforcement Team Leader,Telephones,19/09/13,IJ00025894,10.99,DAISY COMMUNICATIONS LTD
East Lindsey District Council,http://statistics.data.gov.uk/id/local-authority/32UC,Building Control,Telephones,19/09/13,IJ00025894,49.16,DAISY COMMUNICATIONS LTD
East Lindsey District Council,http://statistics.data.gov.uk/id/local-authority/32UC,Economic & Tourism,Grants and Contributions to Outside Bodies- No Service Recei,19/09/13,IJ00025894,15.34,DAISY COMMUNICATIONS LTD
East Lindsey District Council,http://statistics.data.gov.uk/id/local-authority/32UC,Housing Support TL,Telephones,19/09/13,IJ00025894,10.99,DAISY COMMUNICATIONS LTD
East Lindsey District Council,http://statistics.data.gov.uk/id/local-authority/32UC,Economic & Tourism,Telephones,19/09/13,IJ00025894,27.39,DAISY COMMUNICATIONS LTD
East Lindsey District Council,http://statistics.data.gov.uk/id/local-authority/32UC,Corporate Management,Telephones,19/09/13,IJ00025894,1781.87,DAISY COMMUNICATIONS LTD
East Lindsey District Council,http://statistics.data.gov.uk/id/local-authority/32UC,Corporate Management,Telephones,19/09/13,IJ00025894,807.73,DAISY COMMUNICATIONS LTD
East Lindsey District Council,http://statistics.data.gov.uk/id/local-authority/32UC,Commercial Team Leader,Telephones,19/09/13,IJ00025894,11.00,DAISY COMMUNICATIONS LTD
East Lindsey District Council,http://statistics.data.gov.uk/id/local-authority/32UC,TL Property,Telephones,19/09/13,IJ00025894,10.99,DAISY COMMUNICATIONS LTD
East Lindsey District Council,http://statistics.data.gov.uk/id/local-authority/32UC,Information Technology,Telephones,19/09/13,IJ00025894,83.88,DAISY COMMUNICATIONS LTD
East Lindsey District Council,http://statistics.data.gov.uk/id/local-authority/32UC,Information Technology,Telephones,19/09/13,IJ00025894,21.98,DAISY COMMUNICATIONS LTD
East Lindsey District Council,http://statistics.data.gov.uk/id/local-authority/32UC,Leisure Operations,Telephones,19/09/13,IJ00025894,64.86,DAISY COMMUNICATIONS LTD
East Lindsey District Council,http://statistics.data.gov.uk/id/local-authority/32UC,Economic & Tourism,Telephones,19/09/13,IJ00025894,422.74,DAISY COMMUNICATIONS LTD
East Lindsey District Council,http://statistics.data.gov.uk/id/local-authority/32UC,Economic & Tourism,Telephones,19/09/13,IJ00025894,427.83,DAISY COMMUNICATIONS LTD
East Lindsey District Council,http://statistics.data.gov.uk/id/local-authority/32UC,Economic & Tourism,Telephones,19/09/13,IJ00025894,310.98,DAISY COMMUNICATIONS LTD
East Lindsey District Council,http://statistics.data.gov.uk/id/local-authority/32UC,Leisure Operations,Telephones,19/09/13,IJ00025894,37.84,DAISY COMMUNICATIONS LTD
East Lindsey District Council,http://statistics.data.gov.uk/id/local-authority/32UC,Leisure Operations,Telephones,19/09/13,IJ00025894,10.99,DAISY COMMUNICATIONS LTD
East Lindsey District Council,http://statistics.data.gov.uk/id/local-authority/32UC,Leisure Operations,Telephones,19/09/13,IJ00025894,10.99,DAISY COMMUNICATIONS LTD
East Lindsey District Council,http://statistics.data.gov.uk/id/local-authority/32UC,Leisure Operations,Telephones,19/09/13,IJ00025894,57.71,DAISY COMMUNICATIONS LTD
East Lindsey District Council,http://statistics.data.gov.uk/id/local-authority/32UC,TL Property,Telephones,19/09/13,IJ00025894,10.99,DAISY COMMUNICATIONS LTD
East Lindsey District Council,http://statistics.data.gov.uk/id/local-authority/32UC,TL Property,Telephones,19/09/13,IJ00025894,11.05,DAISY COMMUNICATIONS LTD
East Lindsey District Council,http://statistics.data.gov.uk/id/local-authority/32UC,TL Property,Telephones,19/09/13,IJ00025894,22.36,DAISY COMMUNICATIONS LTD
East Lindsey District Council,http://statistics.data.gov.uk/id/local-authority/32UC,TL Property,Telephones,19/09/13,IJ00025894,10.99,DAISY COMMUNICATIONS LTD
East Lindsey District Council,http://statistics.data.gov.uk/id/local-authority/32UC,TL Property,Telephones,19/09/13,IJ00025894,50.41,DAISY COMMUNICATIONS LTD
East Lindsey District Council,http://statistics.data.gov.uk/id/local-authority/32UC,Leisure Operations,Telephones,19/09/13,IJ00025894,23.58,DAISY COMMUNICATIONS LTD
East Lindsey District Council,http://statistics.data.gov.uk/id/local-authority/32UC,Leisure Operations,Telephones,19/09/13,IJ00025894,40.74,DAISY COMMUNICATIONS LTD
East Lindsey District Council,http://statistics.data.gov.uk/id/local-authority/32UC,Leisure Operations,Telephones,19/09/13,IJ00025894,10.99,DAISY COMMUNICATIONS LTD
East Lindsey District Council,http://statistics.data.gov.uk/id/local-authority/32UC,Neighbourhood Services,Telephones,19/09/13,IJ00025894,1.93,DAISY COMMUNICATIONS LTD
East Lindsey District Council,http://statistics.data.gov.uk/id/local-authority/32UC,Neighbourhood Services,Telephones,19/09/13,IJ00025894,10.99,DAISY COMMUNICATIONS LTD
East Lindsey District Council,http://statistics.data.gov.uk/id/local-authority/32UC,Neighbourhood Services,Telephones,19/09/13,IJ00025894,22.79,DAISY COMMUNICATIONS LTD
East Lindsey District Council,http://statistics.data.gov.uk/id/local-authority/32UC,TL Property,Telephones,19/09/13,IJ00025894,20.44,DAISY COMMUNICATIONS LTD
East Lindsey District Council,http://statistics.data.gov.uk/id/local-authority/32UC,TL Property,Telephones,19/09/13,IJ00025894,11.27,DAISY COMMUNICATIONS LTD
East Lindsey District Council,http://statistics.data.gov.uk/id/local-authority/32UC,TL Property,Telephones,19/09/13,IJ00025894,10.99,DAISY COMMUNICATIONS LTD
East Lindsey District Council,http://statistics.data.gov.uk/id/local-authority/32UC,Theatre Manager,Telephones,19/09/13,IJ00025894,14.80,DAISY COMMUNICATIONS LTD
East Lindsey District Council,http://statistics.data.gov.uk/id/local-authority/32UC,TL Property,Telephones,19/09/13,IJ00025894,33.82,DAISY COMMUNICATIONS LTD
East Lindsey District Council,http://statistics.data.gov.uk/id/local-authority/32UC,Corporate Management,Telephones,19/09/13,IJ00025894,10.99,DAISY COMMUNICATIONS LTD
East Lindsey District Council,http://statistics.data.gov.uk/id/local-authority/32UC,Leisure Operations,Telephones,19/09/13,IJ00025894,148.51,DAISY COMMUNICATIONS LTD
East Lindsey District Council,http://statistics.data.gov.uk/id/local-authority/32UC,TL Property,Telephones,19/09/13,IJ00025894,21.98,DAISY COMMUNICATIONS LTD
East Lindsey District Council,http://statistics.data.gov.uk/id/local-authority/32UC,Neighbourhood Services,Furniture and Equipment,19/09/13,IJ00026142,4699.00,Broxap Ltd
East Lindsey District Council,http://statistics.data.gov.uk/id/local-authority/32UC,TL Property,Buildings Maintenance - Responsive,19/09/13,IJ00026139,512.00,NORTHERN POWERGRID (YORKSHIRE) PLC
East Lindsey District Council,http://statistics.data.gov.uk/id/local-authority/32UC,Neighbourhood Services,Clothing Uniforms And Laundry,19/09/13,IJ00025998,630.10,SAFETY MANAGEMENT INT GROUP
East Lindsey District Council,http://statistics.data.gov.uk/id/local-authority/32UC,Economic & Tourism,Other Miscellaneous Expenses,19/09/13,IJ00025884,819.90,CARRIER DIRECT LIMITED
East Lindsey District Council,http://statistics.data.gov.uk/id/local-authority/32UC,Waste Services Manager,Maintenance,19/09/13,IJ00026077,647.85,MAY GURNEY FLEET & PASSENGER SERVICES LTD
East Lindsey District Council,http://statistics.data.gov.uk/id/local-authority/32UC,Capital WIP,VAT Customs and Excise,19/09/13,IJ00026155,8579.58,LINDUM GROUP LTD
East Lindsey District Council,http://statistics.data.gov.uk/id/local-authority/32UC,Capital WIP,Works to Buildings (Sub Contractors),19/09/13,IJ00026156,42897.92,LINDUM GROUP LTD
East Lindsey District Council,http://statistics.data.gov.uk/id/local-authority/32UC,Economic & Tourism,Grants and Contributions to Outside Bodies- No Service Recei,19/09/13,IJ00026100,3398.17,Lincolshire Shooting Centre
East Lindsey District Council,http://statistics.data.gov.uk/id/local-authority/32UC,Economic & Tourism,Other Miscellaneous Expenses,19/09/13,IJ00025889,4000.00,J H Walter
East Lindsey District Council,http://statistics.data.gov.uk/id/local-authority/32UC,Hsg Private Sector TL,Grants and Contributions to Outside Bodies- No Service Recei,19/09/13,IJ00026144,9020.00,Brothertoft Build Ltd
East Lindsey District Council,http://statistics.data.gov.uk/id/local-authority/32UC,"Performance, Governance & Commissioning",Postages,19/09/13,IJ00026017,506.89,Print.UK.com
East Lindsey District Council,http://statistics.data.gov.uk/id/local-authority/32UC,"Performance, Governance & Commissioning",Stationery,19/09/13,IJ00026018,769.98,Print.UK.com
East Lindsey District Council,http://statistics.data.gov.uk/id/local-authority/32UC,Development Control,Agency Staff,19/09/13,IJ00025979,559.85,For Ward Planning Consultancy Ltd
East Lindsey District Council,http://statistics.data.gov.uk/id/local-authority/32UC,Development Control,Agency Staff,19/09/13,IJ00025980,569.75,For Ward Planning Consultancy Ltd
East Lindsey District Council,http://statistics.data.gov.uk/id/local-authority/32UC,Economic & Tourism,Grants and Contributions to Outside Bodies- No Service Recei,19/09/13,IJ00026160,3365.40,OLD NICKS TAVERN
East Lindsey District Council,http://statistics.data.gov.uk/id/local-authority/32UC,Corporate Management,Other Miscellaneous Expenses,19/09/13,IJ00026084,850.00,Moore Stephens
East Lindsey District Council,http://statistics.data.gov.uk/id/local-authority/32UC,Neighbourhood Services,Fuel & Oil,19/09/13,IJ00025966,515.54,Fuel Card Services Ltd
East Lindsey District Council,http://statistics.data.gov.uk/id/local-authority/32UC,Neighbourhood Services,Fuel & Oil,19/09/13,IJ00026105,703.13,Fuel Card Services Ltd
East Lindsey District Council,http://statistics.data.gov.uk/id/local-authority/32UC,TL Property,Professional & Contractors Fees,19/09/13,IJ00026013,11893.75,Mr Simon Adamyk
East Lindsey District Council,http://statistics.data.gov.uk/id/local-authority/32UC,TL Property,Professional & Contractors Fees,19/09/13,IJ00026012,6500.00,Mr George Laurence QC
East Lindsey District Council,http://statistics.data.gov.uk/id/local-authority/32UC,Environment Team Leader,Other Private Contractors,19/09/13,IJ00025900,525.00,ADAS UK Ltd
East Lindsey District Council,http://statistics.data.gov.uk/id/local-authority/32UC,Theatre Manager,Performers and Entertainers Fees,19/09/13,IJ00025987,14765.21,BBC Worldwide Limited,
East Lindsey District Council,http://statistics.data.gov.uk/id/local-authority/32UC,"Performance, Governance & Commissioning",Grants and Contributions to Outside Bodies- No Service Recei,19/09/13,IJ00026000,620.00,Louth Disability Sports Forum,
East Lindsey District Council,http://statistics.data.gov.uk/id/local-authority/32UC,Theatre Manager,Performers and Entertainers Fees,19/09/13,IJ00026023,1257.40,JW3 Ltd,
East Lindsey District Council,http://statistics.data.gov.uk/id/local-authority/32UC,Theatre Manager,Performers and Entertainers Fees,19/09/13,IJ00026023,-390.00,JW3 Ltd,
East Lindsey District Council,http://statistics.data.gov.uk/id/local-authority/32UC,Enforcement Team Leader,Lincolnshire Legal Services,26/09/13,IJ00026193,1007.28,LOCAL GOVERNMENT ASSOCIATION,
East Lindsey District Council,http://statistics.data.gov.uk/id/local-authority/32UC,Hsg Advice & Homelessness TL,Other Miscellaneous Expenses,26/09/13,IJ00026223,1350.00,REDACTED PERSONAL INFORMATION,Redacted
East Lindsey District Council,http://statistics.data.gov.uk/id/local-authority/32UC,Neighbourhood Services,Professional & Contractors Fees,26/09/13,IJ00026266,180.00,SID DENNIS & SONS LTD,
East Lindsey District Council,http://statistics.data.gov.uk/id/local-authority/32UC,Neighbourhood Services,Professional & Contractors Fees,26/09/13,IJ00026266,330.00,SID DENNIS & SONS LTD,
East Lindsey District Council,http://statistics.data.gov.uk/id/local-authority/32UC,Leisure Operations,Cleaning Contract,26/09/13,IJ00026229,676.12,STOWLIN LTD,
East Lindsey District Council,http://statistics.data.gov.uk/id/local-authority/32UC,Neighbourhood Services,Materials and Consumables,26/09/13,IJ00026272,852.50,STOWLIN LTD,
East Lindsey District Council,http://statistics.data.gov.uk/id/local-authority/32UC,Neighbourhood Services,Materials and Consumables,26/09/13,IJ00026273,872.50,STOWLIN LTD,
East Lindsey District Council,http://statistics.data.gov.uk/id/local-authority/32UC,Theatre Manager,Performers and Entertainers Fees,26/09/13,IJ00026274,1511.81,JANICE SUTTON,
East Lindsey District Council,http://statistics.data.gov.uk/id/local-authority/32UC,Theatre Manager,Performers and Entertainers Fees,26/09/13,IJ00026274,-648.00,JANICE SUTTON,
East Lindsey District Council,http://statistics.data.gov.uk/id/local-authority/32UC,Theatre Manager,Performers and Entertainers Fees,26/09/13,IJ00026276,3885.49,JANICE SUTTON,
East Lindsey District Council,http://statistics.data.gov.uk/id/local-authority/32UC,Theatre Manager,Performers and Entertainers Fees,26/09/13,IJ00026276,-1219.64,JANICE SUTTON,
East Lindsey District Council,http://statistics.data.gov.uk/id/local-authority/32UC,Economic & Tourism,Other Miscellaneous Expenses,26/09/13,IJ00026219,2000.00,HERITAGE TRUST OF LINCOLNSHIRE LTD,
East Lindsey District Council,http://statistics.data.gov.uk/id/local-authority/32UC,Neighbourhood Services,Buildings Maintenance - Programmed,26/09/13,IJ00026275,953.40,KENMOR BUILDING & CONSTRUCTION SERVICES
East Lindsey District Council,http://statistics.data.gov.uk/id/local-authority/32UC,Enforcement Team Leader,Buildings Maintenance - Responsive,26/09/13,IJ00026318,852.00,KENMOR BUILDING & CONSTRUCTION SERVICES
East Lindsey District Council,http://statistics.data.gov.uk/id/local-authority/32UC,Corporate Accounting,Postages,26/09/13,IJ00026362,51.47,ROYAL MAIL
East Lindsey District Council,http://statistics.data.gov.uk/id/local-authority/32UC,Corporate Management,Postages,26/09/13,IJ00026362,261.09,ROYAL MAIL
East Lindsey District Council,http://statistics.data.gov.uk/id/local-authority/32UC,Corporate Management,Postages,26/09/13,IJ00026362,163.58,ROYAL MAIL
East Lindsey District Council,http://statistics.data.gov.uk/id/local-authority/32UC,Corporate Management,Postages,26/09/13,IJ00026362,537.15,ROYAL MAIL
East Lindsey District Council,http://statistics.data.gov.uk/id/local-authority/32UC,Corporate Management,Postages,26/09/13,IJ00026362,409.88,ROYAL MAIL
East Lindsey District Council,http://statistics.data.gov.uk/id/local-authority/32UC,Corporate Management,Postages,26/09/13,IJ00026362,36.14,ROYAL MAIL
East Lindsey District Council,http://statistics.data.gov.uk/id/local-authority/32UC,Corporate Management,Postages,26/09/13,IJ00026362,12.46,ROYAL MAIL
East Lindsey District Council,http://statistics.data.gov.uk/id/local-authority/32UC,Corporate Management,Postages,26/09/13,IJ00026362,49.50,ROYAL MAIL
East Lindsey District Council,http://statistics.data.gov.uk/id/local-authority/32UC,Corporate Accounting,Postages,26/09/13,IJ00026363,88.10,ROYAL MAIL
East Lindsey District Council,http://statistics.data.gov.uk/id/local-authority/32UC,Corporate Management,Postages,26/09/13,IJ00026363,791.79,ROYAL MAIL
East Lindsey District Council,http://statistics.data.gov.uk/id/local-authority/32UC,Corporate Management,Postages,26/09/13,IJ00026363,358.47,ROYAL MAIL
East Lindsey District Council,http://statistics.data.gov.uk/id/local-authority/32UC,Corporate Management,Postages,26/09/13,IJ00026363,812.22,ROYAL MAIL
East Lindsey District Council,http://statistics.data.gov.uk/id/local-authority/32UC,Corporate Management,Postages,26/09/13,IJ00026363,300.55,ROYAL MAIL
East Lindsey District Council,http://statistics.data.gov.uk/id/local-authority/32UC,Corporate Management,Postages,26/09/13,IJ00026363,26.45,ROYAL MAIL
East Lindsey District Council,http://statistics.data.gov.uk/id/local-authority/32UC,Corporate Management,Postages,26/09/13,IJ00026363,6.26,ROYAL MAIL
East Lindsey District Council,http://statistics.data.gov.uk/id/local-authority/32UC,Corporate Management,Postages,26/09/13,IJ00026363,87.56,ROYAL MAIL
East Lindsey District Council,http://statistics.data.gov.uk/id/local-authority/32UC,"Performance, Governance & Commissioning",Chairman's Costs,26/09/13,IJ00026175,1139.50,L PETERSEN
East Lindsey District Council,http://statistics.data.gov.uk/id/local-authority/32UC,Leisure Operations,Purchase Of Goods For Resale,26/09/13,IJ00026168,1216.50,ASA AWARDS CENTRE
East Lindsey District Council,http://statistics.data.gov.uk/id/local-authority/32UC,Leisure Operations,Purchase Of Goods For Resale,26/09/13,IJ00026228,628.60,ASA AWARDS CENTRE
East Lindsey District Council,http://statistics.data.gov.uk/id/local-authority/32UC,TL Property,Buildings Maintenance - Responsive,26/09/13,IJ00026326,538.30,SEYMOUR & CASTLE LTD
East Lindsey District Council,http://statistics.data.gov.uk/id/local-authority/32UC,Economic & Tourism,Fuel & Oil,26/09/13,IJ00026242,661.57,WATSON PETROLEUM LTD
East Lindsey District Council,http://statistics.data.gov.uk/id/local-authority/32UC,Waste Services Manager,Fuel & Oil,26/09/13,IJ00026243,20801.06,WATSON PETROLEUM LTD
East Lindsey District Council,http://statistics.data.gov.uk/id/local-authority/32UC,Waste Services Manager,Fuel & Oil,26/09/13,IJ00026244,13900.90,WATSON PETROLEUM LTD
East Lindsey District Council,http://statistics.data.gov.uk/id/local-authority/32UC,BALANCE  SHEET,Payroll-Unison,26/09/13,IJ00026251,1622.20,UNISON
East Lindsey District Council,http://statistics.data.gov.uk/id/local-authority/32UC,Theatre Manager,Electricity,26/09/13,IJ00026349,1301.97,SOUTHERN ELECTRIC PLC
East Lindsey District Council,http://statistics.data.gov.uk/id/local-authority/32UC,TL Property,Electricity,26/09/13,IJ00026349,64.22,SOUTHERN ELECTRIC PLC
East Lindsey District Council,http://statistics.data.gov.uk/id/local-authority/32UC,TL Property,Electricity,26/09/13,IJ00026349,-175.07,SOUTHERN ELECTRIC PLC
East Lindsey District Council,http://statistics.data.gov.uk/id/local-authority/32UC,TL Property,Electricity,26/09/13,IJ00026349,3671.89,SOUTHERN ELECTRIC PLC
East Lindsey District Council,http://statistics.data.gov.uk/id/local-authority/32UC,Waste Services Manager,Electricity,26/09/13,IJ00026349,51.13,SOUTHERN ELECTRIC PLC
East Lindsey District Council,http://statistics.data.gov.uk/id/local-authority/32UC,Neighbourhood Services,Electricity,26/09/13,IJ00026349,211.71,SOUTHERN ELECTRIC PLC
East Lindsey District Council,http://statistics.data.gov.uk/id/local-authority/32UC,TL Property,Electricity,26/09/13,IJ00026349,206.67,SOUTHERN ELECTRIC PLC
East Lindsey District Council,http://statistics.data.gov.uk/id/local-authority/32UC,Leisure Operations,Electricity,26/09/13,IJ00026349,432.55,SOUTHERN ELECTRIC PLC
East Lindsey District Council,http://statistics.data.gov.uk/id/local-authority/32UC,Economic & Tourism,Electricity,26/09/13,IJ00026349,-1903.01,SOUTHERN ELECTRIC PLC
East Lindsey District Council,http://statistics.data.gov.uk/id/local-authority/32UC,TL Property,Electricity,26/09/13,IJ00026349,57.38,SOUTHERN ELECTRIC PLC
East Lindsey District Council,http://statistics.data.gov.uk/id/local-authority/32UC,Commercial Team Leader,Electricity,26/09/13,IJ00026345,24.56,SOUTHERN ELECTRIC PLC
East Lindsey District Council,http://statistics.data.gov.uk/id/local-authority/32UC,Economic & Tourism,Electricity,26/09/13,IJ00026345,8093.75,SOUTHERN ELECTRIC PLC
East Lindsey District Council,http://statistics.data.gov.uk/id/local-authority/32UC,Leisure Operations,Electricity,26/09/13,IJ00026345,336.38,SOUTHERN ELECTRIC PLC
East Lindsey District Council,http://statistics.data.gov.uk/id/local-authority/32UC,Neighbourhood Services,Electricity,26/09/13,IJ00026345,21.53,SOUTHERN ELECTRIC PLC
East Lindsey District Council,http://statistics.data.gov.uk/id/local-authority/32UC,Economic & Tourism,Electricity,26/09/13,IJ00026345,366.37,SOUTHERN ELECTRIC PLC
East Lindsey District Council,http://statistics.data.gov.uk/id/local-authority/32UC,Neighbourhood Services,Electricity,26/09/13,IJ00026345,178.75,SOUTHERN ELECTRIC PLC
East Lindsey District Council,http://statistics.data.gov.uk/id/local-authority/32UC,Enforcement Team Leader,Electricity,26/09/13,IJ00026345,76.61,SOUTHERN ELECTRIC PLC
East Lindsey District Council,http://statistics.data.gov.uk/id/local-authority/32UC,TL Property,Electricity,26/09/13,IJ00026345,295.12,SOUTHERN ELECTRIC PLC
East Lindsey District Council,http://statistics.data.gov.uk/id/local-authority/32UC,Neighbourhood Services,Electricity,26/09/13,IJ00026345,357.23,SOUTHERN ELECTRIC PLC
East Lindsey District Council,http://statistics.data.gov.uk/id/local-authority/32UC,Leisure Operations,Electricity,26/09/13,IJ00026345,3258.78,SOUTHERN ELECTRIC PLC
East Lindsey District Council,http://statistics.data.gov.uk/id/local-authority/32UC,Leisure Operations,Electricity,26/09/13,IJ00026339,5553.71,SOUTHERN ELECTRIC PLC
East Lindsey District Council,http://statistics.data.gov.uk/id/local-authority/32UC,TL Property,Electricity,26/09/13,IJ00026339,241.96,SOUTHERN ELECTRIC PLC
East Lindsey District Council,http://statistics.data.gov.uk/id/local-authority/32UC,Leisure Operations,Electricity,26/09/13,IJ00026339,96.78,SOUTHERN ELECTRIC PLC
East Lindsey District Council,http://statistics.data.gov.uk/id/local-authority/32UC,TL Property,Electricity,26/09/13,IJ00026339,629.08,SOUTHERN ELECTRIC PLC
East Lindsey District Council,http://statistics.data.gov.uk/id/local-authority/32UC,Neighbourhood Services,Electricity,26/09/13,IJ00026339,128.33,SOUTHERN ELECTRIC PLC
East Lindsey District Council,http://statistics.data.gov.uk/id/local-authority/32UC,TL Property,Electricity,26/09/13,IJ00026339,30.96,SOUTHERN ELECTRIC PLC
East Lindsey District Council,http://statistics.data.gov.uk/id/local-authority/32UC,Neighbourhood Services,Electricity,26/09/13,IJ00026339,107.23,SOUTHERN ELECTRIC PLC
East Lindsey District Council,http://statistics.data.gov.uk/id/local-authority/32UC,TL Property,Electricity,26/09/13,IJ00026339,-17.36,SOUTHERN ELECTRIC PLC
East Lindsey District Council,http://statistics.data.gov.uk/id/local-authority/32UC,Leisure Operations,Electricity,26/09/13,IJ00026339,-0.29,SOUTHERN ELECTRIC PLC
East Lindsey District Council,http://statistics.data.gov.uk/id/local-authority/32UC,TL Property,Electricity,26/09/13,IJ00026339,1141.20,SOUTHERN ELECTRIC PLC
East Lindsey District Council,http://statistics.data.gov.uk/id/local-authority/32UC,Waste Services Manager,Electricity,26/09/13,IJ00026358,27.58,SOUTHERN ELECTRIC PLC
East Lindsey District Council,http://statistics.data.gov.uk/id/local-authority/32UC,TL Property,Electricity,26/09/13,IJ00026358,674.98,SOUTHERN ELECTRIC PLC
East Lindsey District Council,http://statistics.data.gov.uk/id/local-authority/32UC,Economic & Tourism,Electricity,26/09/13,IJ00026358,798.73,SOUTHERN ELECTRIC PLC
East Lindsey District Council,http://statistics.data.gov.uk/id/local-authority/32UC,Neighbourhood Services,Electricity,26/09/13,IJ00026358,152.30,SOUTHERN ELECTRIC PLC
East Lindsey District Council,http://statistics.data.gov.uk/id/local-authority/32UC,TL Property,Electricity,26/09/13,IJ00026358,19.76,SOUTHERN ELECTRIC PLC
East Lindsey District Council,http://statistics.data.gov.uk/id/local-authority/32UC,Neighbourhood Services,Electricity,26/09/13,IJ00026358,454.27,SOUTHERN ELECTRIC PLC
East Lindsey District Council,http://statistics.data.gov.uk/id/local-authority/32UC,Neighbourhood Services,Electricity,26/09/13,IJ00026358,329.36,SOUTHERN ELECTRIC PLC
East Lindsey District Council,http://statistics.data.gov.uk/id/local-authority/32UC,Leisure Operations,Buildings Maintenance - Responsive,26/09/13,IJ00026316,940.50,POOLSIDE LEISURE
East Lindsey District Council,http://statistics.data.gov.uk/id/local-authority/32UC,Leisure Operations,Buildings Maintenance - Responsive,26/09/13,IJ00026317,940.50,POOLSIDE LEISURE
East Lindsey District Council,http://statistics.data.gov.uk/id/local-authority/32UC,Neighbourhood Services,Professional & Contractors Fees,26/09/13,IJ00026289,1392.50,EKM LTD
East Lindsey District Council,http://statistics.data.gov.uk/id/local-authority/32UC,Theatre Manager,Film and Entertainment Costs,26/09/13,IJ00026278,4386.83,PERFORMING RIGHT SOCIETY LTD
East Lindsey District Council,http://statistics.data.gov.uk/id/local-authority/32UC,Enforcement Team Leader,Other Miscellaneous Expenses,26/09/13,IJ00026164,3451.50,METRIC GROUP LTD
East Lindsey District Council,http://statistics.data.gov.uk/id/local-authority/32UC,Theatre Manager,Gas,26/09/13,IJ00026374,533.94,ESPO
East Lindsey District Council,http://statistics.data.gov.uk/id/local-authority/32UC,Leisure Operations,Gas,26/09/13,IJ00026374,1131.25,ESPO
East Lindsey District Council,http://statistics.data.gov.uk/id/local-authority/32UC,Leisure Operations,Gas,26/09/13,IJ00026374,8312.14,ESPO
East Lindsey District Council,http://statistics.data.gov.uk/id/local-authority/32UC,Leisure Operations,Gas,26/09/13,IJ00026374,59.17,ESPO
East Lindsey District Council,http://statistics.data.gov.uk/id/local-authority/32UC,Leisure Operations,Gas,26/09/13,IJ00026374,5118.70,ESPO
East Lindsey District Council,http://statistics.data.gov.uk/id/local-authority/32UC,Leisure Operations,Gas,26/09/13,IJ00026374,42.33,ESPO
East Lindsey District Council,http://statistics.data.gov.uk/id/local-authority/32UC,TL Property,Gas,26/09/13,IJ00026374,11.06,ESPO
East Lindsey District Council,http://statistics.data.gov.uk/id/local-authority/32UC,TL Property,Gas,26/09/13,IJ00026374,246.52,ESPO
East Lindsey District Council,http://statistics.data.gov.uk/id/local-authority/32UC,TL Property,Gas,26/09/13,IJ00026374,31.53,ESPO
East Lindsey District Council,http://statistics.data.gov.uk/id/local-authority/32UC,Economic & Tourism,Gas,26/09/13,IJ00026374,204.28,ESPO
East Lindsey District Council,http://statistics.data.gov.uk/id/local-authority/32UC,Leisure Operations,Gas,26/09/13,IJ00026374,111.39,ESPO
East Lindsey District Council,http://statistics.data.gov.uk/id/local-authority/32UC,Economic & Tourism,Gas,26/09/13,IJ00026374,118.29,ESPO
East Lindsey District Council,http://statistics.data.gov.uk/id/local-authority/32UC,TL Property,Gas,26/09/13,IJ00026374,115.03,ESPO
East Lindsey District Council,http://statistics.data.gov.uk/id/local-authority/32UC,Leisure Operations,Gas,26/09/13,IJ00026374,204.87,ESPO
East Lindsey District Council,http://statistics.data.gov.uk/id/local-authority/32UC,TL Property,Gas,26/09/13,IJ00026374,65.26,ESPO
East Lindsey District Council,http://statistics.data.gov.uk/id/local-authority/32UC,TL Property,Gas,26/09/13,IJ00026374,132.65,ESPO
East Lindsey District Council,http://statistics.data.gov.uk/id/local-authority/32UC,Neighbourhood Services,Gas,26/09/13,IJ00026374,27.58,ESPO
East Lindsey District Council,http://statistics.data.gov.uk/id/local-authority/32UC,Economic & Tourism,Gas,26/09/13,IJ00026374,33.73,ESPO
East Lindsey District Council,http://statistics.data.gov.uk/id/local-authority/32UC,Leisure Operations,Gas,26/09/13,IJ00026374,26.04,ESPO
East Lindsey District Council,http://statistics.data.gov.uk/id/local-authority/32UC,Housing Support TL,Rent and Lease Payments,26/09/13,IJ00026186,1001.64,NEW LINX HOUSING TRUST
East Lindsey District Council,http://statistics.data.gov.uk/id/local-authority/32UC,Housing Support TL,Rent and Lease Payments,26/09/13,IJ00026187,1005.00,NEW LINX HOUSING TRUST
East Lindsey District Council,http://statistics.data.gov.uk/id/local-authority/32UC,Housing Support TL,Rent and Lease Payments,26/09/13,IJ00026188,852.60,NEW LINX HOUSING TRUST
East Lindsey District Council,http://statistics.data.gov.uk/id/local-authority/32UC,Housing Support TL,Rent and Lease Payments,26/09/13,IJ00026189,914.52,NEW LINX HOUSING TRUST
East Lindsey District Council,http://statistics.data.gov.uk/id/local-authority/32UC,Collection Fund,Transitional Protection Payments,26/09/13,IJ00026208,-13409.00,DEPARTMENT FOR COMMUNITIES AND LOCAL
East Lindsey District Council,http://statistics.data.gov.uk/id/local-authority/32UC,Corporate Accounting,Business Rates Tariff,26/09/13,IJ00026208,728224.00,DEPARTMENT FOR COMMUNITIES AND LOCAL
East Lindsey District Council,http://statistics.data.gov.uk/id/local-authority/32UC,Collection Fund,Income - Non Domestic Rates,26/09/13,IJ00026208,1669598.00,DEPARTMENT FOR COMMUNITIES AND LOCAL
East Lindsey District Council,http://statistics.data.gov.uk/id/local-authority/32UC,Waste Services Manager,Agency Staff,26/09/13,IJ00026379,6629.40,CLOSE INVOICE FINANCE LTD
East Lindsey District Council,http://statistics.data.gov.uk/id/local-authority/32UC,Environment Team Leader,Grants and Contributions to Outside Bodies- No Service Recei,26/09/13,IJ00026196,1660.00,PELL PLANT HIRE LTD
East Lindsey District Council,http://statistics.data.gov.uk/id/local-authority/32UC,"Performance, Governance & Commissioning",Grants and Contributions to Outside Bodies- No Service Recei,26/09/13,IJ00026231,600.00,TATTERSHALL LUNCHEON CLUB
East Lindsey District Council,http://statistics.data.gov.uk/id/local-authority/32UC,BALANCE  SHEET,Payroll-Gmbatu,26/09/13,IJ00026264,635.52,GMB NATIONAL ADMINISTRATION UNIT
East Lindsey District Council,http://statistics.data.gov.uk/id/local-authority/32UC,Enforcement Team Leader,Payments to Bodies in Respect of Income Collected,26/09/13,IJ00026241,1776.76,INNES ENGLAND COMMERCIAL PROPERTY
East Lindsey District Council,http://statistics.data.gov.uk/id/local-authority/32UC,Hsg Private Sector TL,Other Income,26/09/13,IJ00026348,-443.00,DOLPHIN MOBILITY EAST MIDLANDS
East Lindsey District Council,http://statistics.data.gov.uk/id/local-authority/32UC,Hsg Private Sector TL,Grants and Contributions to Outside Bodies- No Service Recei,26/09/13,IJ00026348,4961.60,DOLPHIN MOBILITY EAST MIDLANDS
East Lindsey District Council,http://statistics.data.gov.uk/id/local-authority/32UC,Leisure Operations,Buildings Maintenance - Programmed,26/09/13,IJ00026336,1366.00,SLEAFORD BUILDING SERVICES LTD
East Lindsey District Council,http://statistics.data.gov.uk/id/local-authority/32UC,"Performance, Governance & Commissioning",Grants and Contributions to Outside Bodies- No Service Recei,26/09/13,IJ00026191,13900.00,EAST LINDSEY CITIZENS ADVICE BUREAU
East Lindsey District Council,http://statistics.data.gov.uk/id/local-authority/32UC,Neighbourhood Services,Agency Staff,26/09/13,IJ00026287,1635.08,THE WORKSHOP (WISBECH) LIMITED
East Lindsey District Council,http://statistics.data.gov.uk/id/local-authority/32UC,Neighbourhood Services,Agency Staff,26/09/13,IJ00026287,1635.07,THE WORKSHOP (WISBECH) LIMITED
East Lindsey District Council,http://statistics.data.gov.uk/id/local-authority/32UC,Neighbourhood Services,Agency Staff,26/09/13,IJ00026297,1614.99,THE WORKSHOP (WISBECH) LIMITED
East Lindsey District Council,http://statistics.data.gov.uk/id/local-authority/32UC,Neighbourhood Services,Agency Staff,26/09/13,IJ00026297,1614.99,THE WORKSHOP (WISBECH) LIMITED
East Lindsey District Council,http://statistics.data.gov.uk/id/local-authority/32UC,Information Technology,Computer Software Licence Costs,26/09/13,IJ00026218,1000.00,IDOX SOFTWARE LTD
East Lindsey District Council,http://statistics.data.gov.uk/id/local-authority/32UC,Housing Support TL,Rent and Lease Payments,26/09/13,IJ00026366,937.50,TOTEMIC LTD
East Lindsey District Council,http://statistics.data.gov.uk/id/local-authority/32UC,Economic & Tourism,Clothing Uniforms And Laundry,26/09/13,IJ00026292,1396.42,PHS LAUNDRYSERV
East Lindsey District Council,http://statistics.data.gov.uk/id/local-authority/32UC,Building Control,Buildings Maintenance - Responsive,26/09/13,IJ00026338,95.93,J TOMLINSON LTD
East Lindsey District Council,http://statistics.data.gov.uk/id/local-authority/32UC,Theatre Manager,Buildings Maintenance - Responsive,26/09/13,IJ00026338,609.40,J TOMLINSON LTD
East Lindsey District Council,http://statistics.data.gov.uk/id/local-authority/32UC,TL Property,Buildings Maintenance - Responsive,26/09/13,IJ00026338,166.18,J TOMLINSON LTD
East Lindsey District Council,http://statistics.data.gov.uk/id/local-authority/32UC,Neighbourhood Services,Professional & Contractors Fees,26/09/13,IJ00026338,67.36,J TOMLINSON LTD
East Lindsey District Council,http://statistics.data.gov.uk/id/local-authority/32UC,TL Property,Buildings Maintenance - Programmed,26/09/13,IJ00026338,429.75,J TOMLINSON LTD
East Lindsey District Council,http://statistics.data.gov.uk/id/local-authority/32UC,Economic & Tourism,Buildings Maintenance - Responsive,26/09/13,IJ00026338,192.73,J TOMLINSON LTD
East Lindsey District Council,http://statistics.data.gov.uk/id/local-authority/32UC,Economic & Tourism,Buildings Maintenance - Responsive,26/09/13,IJ00026338,87.84,J TOMLINSON LTD
East Lindsey District Council,http://statistics.data.gov.uk/id/local-authority/32UC,Economic & Tourism,Buildings Maintenance - Responsive,26/09/13,IJ00026338,105.60,J TOMLINSON LTD
East Lindsey District Council,http://statistics.data.gov.uk/id/local-authority/32UC,Theatre Manager,Buildings Maintenance - Responsive,26/09/13,IJ00026338,131.00,J TOMLINSON LTD
East Lindsey District Council,http://statistics.data.gov.uk/id/local-authority/32UC,Leisure Operations,Buildings Maintenance - Responsive,26/09/13,IJ00026338,328.42,J TOMLINSON LTD
East Lindsey District Council,http://statistics.data.gov.uk/id/local-authority/32UC,Leisure Operations,Buildings Maintenance - Responsive,26/09/13,IJ00026338,232.41,J TOMLINSON LTD
East Lindsey District Council,http://statistics.data.gov.uk/id/local-authority/32UC,Leisure Operations,Buildings Maintenance - Responsive,26/09/13,IJ00026338,737.01,J TOMLINSON LTD
East Lindsey District Council,http://statistics.data.gov.uk/id/local-authority/32UC,Neighbourhood Services,Buildings Maintenance - Responsive,26/09/13,IJ00026338,115.02,J TOMLINSON LTD
East Lindsey District Council,http://statistics.data.gov.uk/id/local-authority/32UC,Neighbourhood Services,Buildings Maintenance - Responsive,26/09/13,IJ00026338,42.67,J TOMLINSON LTD
East Lindsey District Council,http://statistics.data.gov.uk/id/local-authority/32UC,Neighbourhood Services,Buildings Maintenance - Responsive,26/09/13,IJ00026338,78.60,J TOMLINSON LTD
East Lindsey District Council,http://statistics.data.gov.uk/id/local-authority/32UC,Neighbourhood Services,Buildings Maintenance - Responsive,26/09/13,IJ00026338,81.12,J TOMLINSON LTD
East Lindsey District Council,http://statistics.data.gov.uk/id/local-authority/32UC,Neighbourhood Services,Buildings Maintenance - Responsive,26/09/13,IJ00026338,1849.64,J TOMLINSON LTD
East Lindsey District Council,http://statistics.data.gov.uk/id/local-authority/32UC,Neighbourhood Services,Buildings Maintenance - Responsive,26/09/13,IJ00026338,87.17,J TOMLINSON LTD
East Lindsey District Council,http://statistics.data.gov.uk/id/local-authority/32UC,Neighbourhood Services,Buildings Maintenance - Responsive,26/09/13,IJ00026338,68.43,J TOMLINSON LTD
East Lindsey District Council,http://statistics.data.gov.uk/id/local-authority/32UC,Neighbourhood Services,Buildings Maintenance - Responsive,26/09/13,IJ00026338,72.73,J TOMLINSON LTD
East Lindsey District Council,http://statistics.data.gov.uk/id/local-authority/32UC,Neighbourhood Services,Buildings Maintenance - Responsive,26/09/13,IJ00026338,101.62,J TOMLINSON LTD
East Lindsey District Council,http://statistics.data.gov.uk/id/local-authority/32UC,Neighbourhood Services,Buildings Maintenance - Responsive,26/09/13,IJ00026338,64.54,J TOMLINSON LTD
East Lindsey District Council,http://statistics.data.gov.uk/id/local-authority/32UC,Neighbourhood Services,Buildings Maintenance - Responsive,26/09/13,IJ00026338,191.46,J TOMLINSON LTD
East Lindsey District Council,http://statistics.data.gov.uk/id/local-authority/32UC,Neighbourhood Services,Buildings Maintenance - Responsive,26/09/13,IJ00026338,384.93,J TOMLINSON LTD
East Lindsey District Council,http://statistics.data.gov.uk/id/local-authority/32UC,Neighbourhood Services,Buildings Maintenance - Responsive,26/09/13,IJ00026338,165.42,J TOMLINSON LTD
East Lindsey District Council,http://statistics.data.gov.uk/id/local-authority/32UC,Theatre Manager,Buildings Maintenance - Responsive,26/09/13,IJ00026338,685.69,J TOMLINSON LTD
East Lindsey District Council,http://statistics.data.gov.uk/id/local-authority/32UC,Theatre Manager,Buildings Maintenance - Responsive,26/09/13,IJ00026338,27.58,J TOMLINSON LTD
East Lindsey District Council,http://statistics.data.gov.uk/id/local-authority/32UC,Theatre Manager,Buildings Maintenance - Responsive,26/09/13,IJ00026338,338.28,J TOMLINSON LTD
East Lindsey District Council,http://statistics.data.gov.uk/id/local-authority/32UC,Theatre Manager,Buildings Maintenance - Responsive,26/09/13,IJ00026338,44.90,J TOMLINSON LTD
East Lindsey District Council,http://statistics.data.gov.uk/id/local-authority/32UC,Theatre Manager,Buildings Maintenance - Responsive,26/09/13,IJ00026338,73.38,J TOMLINSON LTD
East Lindsey District Council,http://statistics.data.gov.uk/id/local-authority/32UC,Theatre Manager,Buildings Maintenance - Responsive,26/09/13,IJ00026338,26.20,J TOMLINSON LTD
East Lindsey District Council,http://statistics.data.gov.uk/id/local-authority/32UC,Theatre Manager,Buildings Maintenance - Responsive,26/09/13,IJ00026338,34.45,J TOMLINSON LTD
East Lindsey District Council,http://statistics.data.gov.uk/id/local-authority/32UC,Theatre Manager,Buildings Maintenance - Responsive,26/09/13,IJ00026338,20.00,J TOMLINSON LTD
East Lindsey District Council,http://statistics.data.gov.uk/id/local-authority/32UC,TL Property,Buildings Maintenance - Responsive,26/09/13,IJ00026338,52.40,J TOMLINSON LTD
East Lindsey District Council,http://statistics.data.gov.uk/id/local-authority/32UC,Economic & Tourism,Buildings Maintenance - Responsive,26/09/13,IJ00026338,62.06,J TOMLINSON LTD
East Lindsey District Council,http://statistics.data.gov.uk/id/local-authority/32UC,Neighbourhood Services,Buildings Maintenance - Responsive,26/09/13,IJ00026338,47.16,J TOMLINSON LTD
East Lindsey District Council,http://statistics.data.gov.uk/id/local-authority/32UC,Neighbourhood Services,Buildings Maintenance - Responsive,26/09/13,IJ00026338,703.44,J TOMLINSON LTD
East Lindsey District Council,http://statistics.data.gov.uk/id/local-authority/32UC,Neighbourhood Services,Buildings Maintenance - Responsive,26/09/13,IJ00026338,147.29,J TOMLINSON LTD
East Lindsey District Council,http://statistics.data.gov.uk/id/local-authority/32UC,TL Property,Buildings Maintenance - Responsive,26/09/13,IJ00026338,67.28,J TOMLINSON LTD
East Lindsey District Council,http://statistics.data.gov.uk/id/local-authority/32UC,TL Property,Buildings Maintenance - Responsive,26/09/13,IJ00026338,50.03,J TOMLINSON LTD
East Lindsey District Council,http://statistics.data.gov.uk/id/local-authority/32UC,TL Property,Buildings Maintenance - Responsive,26/09/13,IJ00026338,20.00,J TOMLINSON LTD
East Lindsey District Council,http://statistics.data.gov.uk/id/local-authority/32UC,TL Property,Buildings Maintenance - Responsive,26/09/13,IJ00026338,27.58,J TOMLINSON LTD
East Lindsey District Council,http://statistics.data.gov.uk/id/local-authority/32UC,TL Property,Buildings Maintenance - Responsive,26/09/13,IJ00026338,39.96,J TOMLINSON LTD
East Lindsey District Council,http://statistics.data.gov.uk/id/local-authority/32UC,TL Property,Buildings Maintenance - Responsive,26/09/13,IJ00026338,20.00,J TOMLINSON LTD
East Lindsey District Council,http://statistics.data.gov.uk/id/local-authority/32UC,TL Property,Buildings Maintenance - Responsive,26/09/13,IJ00026338,81.60,J TOMLINSON LTD
East Lindsey District Council,http://statistics.data.gov.uk/id/local-authority/32UC,TL Property,Buildings Maintenance - Responsive,26/09/13,IJ00026338,20.00,J TOMLINSON LTD
East Lindsey District Council,http://statistics.data.gov.uk/id/local-authority/32UC,TL Property,Buildings Maintenance - Responsive,26/09/13,IJ00026338,41.92,J TOMLINSON LTD
East Lindsey District Council,http://statistics.data.gov.uk/id/local-authority/32UC,TL Property,Buildings Maintenance - Responsive,26/09/13,IJ00026338,373.21,J TOMLINSON LTD
East Lindsey District Council,http://statistics.data.gov.uk/id/local-authority/32UC,TL Property,Buildings Maintenance - Responsive,26/09/13,IJ00026338,151.96,J TOMLINSON LTD
East Lindsey District Council,http://statistics.data.gov.uk/id/local-authority/32UC,TL Property,Buildings Maintenance - Responsive,26/09/13,IJ00026338,65.61,J TOMLINSON LTD
East Lindsey District Council,http://statistics.data.gov.uk/id/local-authority/32UC,TL Property,Buildings Maintenance - Responsive,26/09/13,IJ00026338,41.92,J TOMLINSON LTD
East Lindsey District Council,http://statistics.data.gov.uk/id/local-authority/32UC,TL Property,Buildings Maintenance - Responsive,26/09/13,IJ00026338,31.44,J TOMLINSON LTD
East Lindsey District Council,http://statistics.data.gov.uk/id/local-authority/32UC,TL Property,Buildings Maintenance - Responsive,26/09/13,IJ00026338,80.77,J TOMLINSON LTD
East Lindsey District Council,http://statistics.data.gov.uk/id/local-authority/32UC,TL Property,Buildings Maintenance - Responsive,26/09/13,IJ00026338,182.77,J TOMLINSON LTD
East Lindsey District Council,http://statistics.data.gov.uk/id/local-authority/32UC,Leisure Operations,Buildings Maintenance - Responsive,26/09/13,IJ00026338,356.60,J TOMLINSON LTD
East Lindsey District Council,http://statistics.data.gov.uk/id/local-authority/32UC,Leisure Operations,Buildings Maintenance - Responsive,26/09/13,IJ00026338,411.72,J TOMLINSON LTD
East Lindsey District Council,http://statistics.data.gov.uk/id/local-authority/32UC,Leisure Operations,Buildings Maintenance - Responsive,26/09/13,IJ00026338,20.69,J TOMLINSON LTD
East Lindsey District Council,http://statistics.data.gov.uk/id/local-authority/32UC,TL Property,Buildings Maintenance - Responsive,26/09/13,IJ00026338,117.06,J TOMLINSON LTD
East Lindsey District Council,http://statistics.data.gov.uk/id/local-authority/32UC,TL Property,Buildings Maintenance - Responsive,26/09/13,IJ00026338,41.92,J TOMLINSON LTD
East Lindsey District Council,http://statistics.data.gov.uk/id/local-authority/32UC,TL Property,Buildings Maintenance - Responsive,26/09/13,IJ00026338,169.88,J TOMLINSON LTD
East Lindsey District Council,http://statistics.data.gov.uk/id/local-authority/32UC,Leisure Operations,Buildings Maintenance - Responsive,26/09/13,IJ00026338,29.09,J TOMLINSON LTD
East Lindsey District Council,http://statistics.data.gov.uk/id/local-authority/32UC,Leisure Operations,Buildings Maintenance - Responsive,26/09/13,IJ00026338,117.62,J TOMLINSON LTD
East Lindsey District Council,http://statistics.data.gov.uk/id/local-authority/32UC,Leisure Operations,Buildings Maintenance - Responsive,26/09/13,IJ00026338,34.48,J TOMLINSON LTD
East Lindsey District Council,http://statistics.data.gov.uk/id/local-authority/32UC,Neighbourhood Services,Buildings Maintenance - Responsive,26/09/13,IJ00026338,68.32,J TOMLINSON LTD
East Lindsey District Council,http://statistics.data.gov.uk/id/local-authority/32UC,Leisure Operations,Buildings Maintenance - Responsive,26/09/13,IJ00026338,397.33,J TOMLINSON LTD
East Lindsey District Council,http://statistics.data.gov.uk/id/local-authority/32UC,Neighbourhood Services,Buildings Maintenance - Responsive,26/09/13,IJ00026338,20.00,J TOMLINSON LTD
East Lindsey District Council,http://statistics.data.gov.uk/id/local-authority/32UC,Enforcement Team Leader,Buildings Maintenance - Responsive,26/09/13,IJ00026338,31.44,J TOMLINSON LTD
East Lindsey District Council,http://statistics.data.gov.uk/id/local-authority/32UC,Neighbourhood Services,Buildings Maintenance - Responsive,26/09/13,IJ00026338,20.00,J TOMLINSON LTD
East Lindsey District Council,http://statistics.data.gov.uk/id/local-authority/32UC,Neighbourhood Services,Buildings Maintenance - Responsive,26/09/13,IJ00026338,68.89,J TOMLINSON LTD
East Lindsey District Council,http://statistics.data.gov.uk/id/local-authority/32UC,Neighbourhood Services,Buildings Maintenance - Responsive,26/09/13,IJ00026338,20.00,J TOMLINSON LTD
East Lindsey District Council,http://statistics.data.gov.uk/id/local-authority/32UC,Neighbourhood Services,Buildings Maintenance - Responsive,26/09/13,IJ00026338,184.76,J TOMLINSON LTD
East Lindsey District Council,http://statistics.data.gov.uk/id/local-authority/32UC,Neighbourhood Services,Buildings Maintenance - Responsive,26/09/13,IJ00026338,24.44,J TOMLINSON LTD
East Lindsey District Council,http://statistics.data.gov.uk/id/local-authority/32UC,Neighbourhood Services,Buildings Maintenance - Responsive,26/09/13,IJ00026338,20.96,J TOMLINSON LTD
East Lindsey District Council,http://statistics.data.gov.uk/id/local-authority/32UC,Neighbourhood Services,Buildings Maintenance - Responsive,26/09/13,IJ00026338,20.00,J TOMLINSON LTD
East Lindsey District Council,http://statistics.data.gov.uk/id/local-authority/32UC,Neighbourhood Services,Buildings Maintenance - Responsive,26/09/13,IJ00026338,20.00,J TOMLINSON LTD
East Lindsey District Council,http://statistics.data.gov.uk/id/local-authority/32UC,Neighbourhood Services,Buildings Maintenance - Responsive,26/09/13,IJ00026338,20.00,J TOMLINSON LTD
East Lindsey District Council,http://statistics.data.gov.uk/id/local-authority/32UC,Neighbourhood Services,Buildings Maintenance - Responsive,26/09/13,IJ00026338,20.00,J TOMLINSON LTD
East Lindsey District Council,http://statistics.data.gov.uk/id/local-authority/32UC,Neighbourhood Services,Buildings Maintenance - Responsive,26/09/13,IJ00026338,20.00,J TOMLINSON LTD
East Lindsey District Council,http://statistics.data.gov.uk/id/local-authority/32UC,Neighbourhood Services,Buildings Maintenance - Responsive,26/09/13,IJ00026338,20.00,J TOMLINSON LTD
East Lindsey District Council,http://statistics.data.gov.uk/id/local-authority/32UC,Neighbourhood Services,Buildings Maintenance - Responsive,26/09/13,IJ00026338,20.00,J TOMLINSON LTD
East Lindsey District Council,http://statistics.data.gov.uk/id/local-authority/32UC,Neighbourhood Services,Buildings Maintenance - Responsive,26/09/13,IJ00026338,24.16,J TOMLINSON LTD
East Lindsey District Council,http://statistics.data.gov.uk/id/local-authority/32UC,Neighbourhood Services,Buildings Maintenance - Responsive,26/09/13,IJ00026338,35.91,J TOMLINSON LTD
East Lindsey District Council,http://statistics.data.gov.uk/id/local-authority/32UC,Neighbourhood Services,Buildings Maintenance - Responsive,26/09/13,IJ00026338,30.56,J TOMLINSON LTD
East Lindsey District Council,http://statistics.data.gov.uk/id/local-authority/32UC,Neighbourhood Services,Buildings Maintenance - Responsive,26/09/13,IJ00026338,53.78,J TOMLINSON LTD
East Lindsey District Council,http://statistics.data.gov.uk/id/local-authority/32UC,Neighbourhood Services,Buildings Maintenance - Responsive,26/09/13,IJ00026338,97.60,J TOMLINSON LTD
East Lindsey District Council,http://statistics.data.gov.uk/id/local-authority/32UC,Neighbourhood Services,Buildings Maintenance - Responsive,26/09/13,IJ00026338,20.00,J TOMLINSON LTD
East Lindsey District Council,http://statistics.data.gov.uk/id/local-authority/32UC,Neighbourhood Services,Buildings Maintenance - Responsive,26/09/13,IJ00026338,67.19,J TOMLINSON LTD
East Lindsey District Council,http://statistics.data.gov.uk/id/local-authority/32UC,Neighbourhood Services,Buildings Maintenance - Responsive,26/09/13,IJ00026338,27.58,J TOMLINSON LTD
East Lindsey District Council,http://statistics.data.gov.uk/id/local-authority/32UC,Neighbourhood Services,Buildings Maintenance - Responsive,26/09/13,IJ00026338,20.96,J TOMLINSON LTD
East Lindsey District Council,http://statistics.data.gov.uk/id/local-authority/32UC,Neighbourhood Services,Buildings Maintenance - Responsive,26/09/13,IJ00026338,673.19,J TOMLINSON LTD
East Lindsey District Council,http://statistics.data.gov.uk/id/local-authority/32UC,TL Property,Buildings Maintenance - Responsive,26/09/13,IJ00026338,105.60,J TOMLINSON LTD
East Lindsey District Council,http://statistics.data.gov.uk/id/local-authority/32UC,TL Property,Buildings Maintenance - Responsive,26/09/13,IJ00026338,27.58,J TOMLINSON LTD
East Lindsey District Council,http://statistics.data.gov.uk/id/local-authority/32UC,TL Property,Buildings Maintenance - Responsive,26/09/13,IJ00026338,26.20,J TOMLINSON LTD
East Lindsey District Council,http://statistics.data.gov.uk/id/local-authority/32UC,Neighbourhood Services,Buildings Maintenance - Responsive,26/09/13,IJ00026338,113.27,J TOMLINSON LTD
East Lindsey District Council,http://statistics.data.gov.uk/id/local-authority/32UC,Neighbourhood Services,Buildings Maintenance - Responsive,26/09/13,IJ00026338,29.68,J TOMLINSON LTD
East Lindsey District Council,http://statistics.data.gov.uk/id/local-authority/32UC,Neighbourhood Services,Buildings Maintenance - Responsive,26/09/13,IJ00026338,41.92,J TOMLINSON LTD
East Lindsey District Council,http://statistics.data.gov.uk/id/local-authority/32UC,Neighbourhood Services,Buildings Maintenance - Responsive,26/09/13,IJ00026338,344.84,J TOMLINSON LTD
East Lindsey District Council,http://statistics.data.gov.uk/id/local-authority/32UC,Neighbourhood Services,Buildings Maintenance - Responsive,26/09/13,IJ00026338,20.96,J TOMLINSON LTD
East Lindsey District Council,http://statistics.data.gov.uk/id/local-authority/32UC,Leisure Operations,Buildings Maintenance - Responsive,26/09/13,IJ00026338,121.72,J TOMLINSON LTD
East Lindsey District Council,http://statistics.data.gov.uk/id/local-authority/32UC,TL Property,Buildings Maintenance - Responsive,26/09/13,IJ00026338,31.44,J TOMLINSON LTD
East Lindsey District Council,http://statistics.data.gov.uk/id/local-authority/32UC,TL Property,Buildings Maintenance - Responsive,26/09/13,IJ00026338,151.96,J TOMLINSON LTD
East Lindsey District Council,http://statistics.data.gov.uk/id/local-authority/32UC,TL Property,Buildings Maintenance - Responsive,26/09/13,IJ00026338,20.00,J TOMLINSON LTD
East Lindsey District Council,http://statistics.data.gov.uk/id/local-authority/32UC,TL Property,Buildings Maintenance - Responsive,26/09/13,IJ00026338,61.63,J TOMLINSON LTD
East Lindsey District Council,http://statistics.data.gov.uk/id/local-authority/32UC,Enforcement Team Leader,Buildings Maintenance - Responsive,26/09/13,IJ00026338,47.16,J TOMLINSON LTD
East Lindsey District Council,http://statistics.data.gov.uk/id/local-authority/32UC,Enforcement Team Leader,Buildings Maintenance - Responsive,26/09/13,IJ00026338,322.58,J TOMLINSON LTD
East Lindsey District Council,http://statistics.data.gov.uk/id/local-authority/32UC,Neighbourhood Services,Buildings Maintenance - Responsive,26/09/13,IJ00026338,54.51,J TOMLINSON LTD
East Lindsey District Council,http://statistics.data.gov.uk/id/local-authority/32UC,Neighbourhood Services,Buildings Maintenance - Responsive,26/09/13,IJ00026338,160.18,J TOMLINSON LTD
East Lindsey District Council,http://statistics.data.gov.uk/id/local-authority/32UC,Neighbourhood Services,Buildings Maintenance - Responsive,26/09/13,IJ00026338,20.00,J TOMLINSON LTD
East Lindsey District Council,http://statistics.data.gov.uk/id/local-authority/32UC,Neighbourhood Services,Buildings Maintenance - Responsive,26/09/13,IJ00026338,66.32,J TOMLINSON LTD
East Lindsey District Council,http://statistics.data.gov.uk/id/local-authority/32UC,Neighbourhood Services,Buildings Maintenance - Responsive,26/09/13,IJ00026338,85.45,J TOMLINSON LTD
East Lindsey District Council,http://statistics.data.gov.uk/id/local-authority/32UC,Neighbourhood Services,Buildings Maintenance - Responsive,26/09/13,IJ00026338,28.73,J TOMLINSON LTD
East Lindsey District Council,http://statistics.data.gov.uk/id/local-authority/32UC,TL Property,Buildings Maintenance - Responsive,26/09/13,IJ00026338,57.84,J TOMLINSON LTD
East Lindsey District Council,http://statistics.data.gov.uk/id/local-authority/32UC,Leisure Operations,Buildings Maintenance - Responsive,26/09/13,IJ00026338,38.76,J TOMLINSON LTD
East Lindsey District Council,http://statistics.data.gov.uk/id/local-authority/32UC,Leisure Operations,Buildings Maintenance - Responsive,26/09/13,IJ00026338,101.29,J TOMLINSON LTD
East Lindsey District Council,http://statistics.data.gov.uk/id/local-authority/32UC,Enforcement Team Leader,Buildings Maintenance - Responsive,26/09/13,IJ00026338,31.44,J TOMLINSON LTD
East Lindsey District Council,http://statistics.data.gov.uk/id/local-authority/32UC,Neighbourhood Services,Buildings Maintenance - Responsive,26/09/13,IJ00026338,20.00,J TOMLINSON LTD
East Lindsey District Council,http://statistics.data.gov.uk/id/local-authority/32UC,Neighbourhood Services,Buildings Maintenance - Responsive,26/09/13,IJ00026338,64.96,J TOMLINSON LTD
East Lindsey District Council,http://statistics.data.gov.uk/id/local-authority/32UC,Neighbourhood Services,Buildings Maintenance - Responsive,26/09/13,IJ00026338,62.50,J TOMLINSON LTD
East Lindsey District Council,http://statistics.data.gov.uk/id/local-authority/32UC,Neighbourhood Services,Buildings Maintenance - Responsive,26/09/13,IJ00026338,36.68,J TOMLINSON LTD
East Lindsey District Council,http://statistics.data.gov.uk/id/local-authority/32UC,Neighbourhood Services,Buildings Maintenance - Responsive,26/09/13,IJ00026338,94.34,J TOMLINSON LTD
East Lindsey District Council,http://statistics.data.gov.uk/id/local-authority/32UC,Neighbourhood Services,Buildings Maintenance - Responsive,26/09/13,IJ00026338,52.40,J TOMLINSON LTD
East Lindsey District Council,http://statistics.data.gov.uk/id/local-authority/32UC,Neighbourhood Services,Buildings Maintenance - Responsive,26/09/13,IJ00026338,160.67,J TOMLINSON LTD
East Lindsey District Council,http://statistics.data.gov.uk/id/local-authority/32UC,Neighbourhood Services,Buildings Maintenance - Responsive,26/09/13,IJ00026338,47.16,J TOMLINSON LTD
East Lindsey District Council,http://statistics.data.gov.uk/id/local-authority/32UC,Neighbourhood Services,Buildings Maintenance - Responsive,26/09/13,IJ00026338,53.28,J TOMLINSON LTD
East Lindsey District Council,http://statistics.data.gov.uk/id/local-authority/32UC,Neighbourhood Services,Buildings Maintenance - Responsive,26/09/13,IJ00026338,20.00,J TOMLINSON LTD
East Lindsey District Council,http://statistics.data.gov.uk/id/local-authority/32UC,Neighbourhood Services,Buildings Maintenance - Responsive,26/09/13,IJ00026338,20.96,J TOMLINSON LTD
East Lindsey District Council,http://statistics.data.gov.uk/id/local-authority/32UC,Neighbourhood Services,Buildings Maintenance - Responsive,26/09/13,IJ00026338,144.46,J TOMLINSON LTD
East Lindsey District Council,http://statistics.data.gov.uk/id/local-authority/32UC,Enforcement Team Leader,Buildings Maintenance - Responsive,26/09/13,IJ00026338,962.72,J TOMLINSON LTD
East Lindsey District Council,http://statistics.data.gov.uk/id/local-authority/32UC,Leisure Operations,Buildings Maintenance - Responsive,26/09/13,IJ00026338,605.25,J TOMLINSON LTD
East Lindsey District Council,http://statistics.data.gov.uk/id/local-authority/32UC,Neighbourhood Services,Buildings Maintenance - Responsive,26/09/13,IJ00026338,41.37,J TOMLINSON LTD
East Lindsey District Council,http://statistics.data.gov.uk/id/local-authority/32UC,Enforcement Team Leader,Buildings Maintenance - Responsive,26/09/13,IJ00026338,172.92,J TOMLINSON LTD,
East Lindsey District Council,http://statistics.data.gov.uk/id/local-authority/32UC,TL Property,Buildings Maintenance - Responsive,26/09/13,IJ00026338,169.37,J TOMLINSON LTD,
East Lindsey District Council,http://statistics.data.gov.uk/id/local-authority/32UC,Neighbourhood Services,Buildings Maintenance - Responsive,26/09/13,IJ00026338,93.74,J TOMLINSON LTD,
East Lindsey District Council,http://statistics.data.gov.uk/id/local-authority/32UC,Neighbourhood Services,Buildings Maintenance - Responsive,26/09/13,IJ00026338,43.88,J TOMLINSON LTD,
East Lindsey District Council,http://statistics.data.gov.uk/id/local-authority/32UC,Enforcement Team Leader,Buildings Maintenance - Responsive,26/09/13,IJ00026338,20.96,J TOMLINSON LTD,
East Lindsey District Council,http://statistics.data.gov.uk/id/local-authority/32UC,Enforcement Team Leader,Buildings Maintenance - Responsive,26/09/13,IJ00026338,1811.69,J TOMLINSON LTD,
East Lindsey District Council,http://statistics.data.gov.uk/id/local-authority/32UC,TL Property,Buildings Maintenance - Responsive,26/09/13,IJ00026338,131.03,J TOMLINSON LTD,
East Lindsey District Council,http://statistics.data.gov.uk/id/local-authority/32UC,Enforcement Team Leader,Buildings Maintenance - Responsive,26/09/13,IJ00026338,185.71,J TOMLINSON LTD,
East Lindsey District Council,http://statistics.data.gov.uk/id/local-authority/32UC,Cultural & Related Services,Other Miscellaneous Expenses,26/09/13,IJ00026171,6500.00,GECKO LTD,
East Lindsey District Council,http://statistics.data.gov.uk/id/local-authority/32UC,Leisure Operations,Water and Sewerage Charges,26/09/13,IJ00026350,3327.48,ANGLIAN WATER,
East Lindsey District Council,http://statistics.data.gov.uk/id/local-authority/32UC,Neighbourhood Services,Water and Sewerage Charges,26/09/13,IJ00026351,1734.32,ANGLIAN WATER,
East Lindsey District Council,http://statistics.data.gov.uk/id/local-authority/32UC,Leisure Operations,Water and Sewerage Charges,26/09/13,IJ00026352,965.80,ANGLIAN WATER,
East Lindsey District Council,http://statistics.data.gov.uk/id/local-authority/32UC,Neighbourhood Services,Water and Sewerage Charges,26/09/13,IJ00026355,775.80,ANGLIAN WATER,
East Lindsey District Council,http://statistics.data.gov.uk/id/local-authority/32UC,Theatre Manager,Performers and Entertainers Fees,26/09/13,IJ00026277,5304.00,Graham Platts Management Client Account,
East Lindsey District Council,http://statistics.data.gov.uk/id/local-authority/32UC,Theatre Manager,Performers and Entertainers Fees,26/09/13,IJ00026277,-270.00,Graham Platts Management Client Account,
East Lindsey District Council,http://statistics.data.gov.uk/id/local-authority/32UC,BALANCE  SHEET,Payroll Advances,26/09/13,IJ00026370,550.00,REDACTED PERSONAL INFORMATION,Redacted
East Lindsey District Council,http://statistics.data.gov.uk/id/local-authority/32UC,Neighbourhood Services,Furniture and Equipment,26/09/13,IJ00026169,3005.00,Broxap Ltd
East Lindsey District Council,http://statistics.data.gov.uk/id/local-authority/32UC,"Performance, Governance & Commissioning",Grants and Contributions to Outside Bodies- No Service Recei,26/09/13,IJ00026195,2093.00,LOUTH THIRTEEN PLUS PROJECT
East Lindsey District Council,http://statistics.data.gov.uk/id/local-authority/32UC,Hsg Private Sector TL,Grants and Contributions to Outside Bodies- No Service Recei,26/09/13,IJ00026346,17670.00,ANDREW WRISDALE BUILDING CONTRACTOR
East Lindsey District Council,http://statistics.data.gov.uk/id/local-authority/32UC,Enforcement Team Leader,Buildings Maintenance - Programmed,26/09/13,IJ00026306,729.91,TECHPARC LIMITED
East Lindsey District Council,http://statistics.data.gov.uk/id/local-authority/32UC,Enforcement Team Leader,Professional & Contractors Fees,26/09/13,IJ00026197,1004.51,CHIPSIDE LIMITED
East Lindsey District Council,http://statistics.data.gov.uk/id/local-authority/32UC,TL Property,Rent and Lease Payments,26/09/13,IJ00026167,2925.29,Louth Education Community Interest Company
East Lindsey District Council,http://statistics.data.gov.uk/id/local-authority/32UC,TL Property,Rent and Lease Payments,26/09/13,IJ00026206,3705.21,Louth Education Community Interest Company
East Lindsey District Council,http://statistics.data.gov.uk/id/local-authority/32UC,TL Property,Professional & Contractors Fees,26/09/13,IJ00026364,562.50,Louth Education Community Interest Company
East Lindsey District Council,http://statistics.data.gov.uk/id/local-authority/32UC,BALANCE  SHEET,Lincolnshire Credit Union,26/09/13,IJ00026252,855.00,Lincolnshire Credit Union Ltd
East Lindsey District Council,http://statistics.data.gov.uk/id/local-authority/32UC,Leisure Operations,Advertising - Events,26/09/13,IJ00026225,500.25,Cleethorpes Chronicle
East Lindsey District Council,http://statistics.data.gov.uk/id/local-authority/32UC,Theatre Manager,Buildings Maintenance - Responsive,26/09/13,IJ00026301,548.00,Sleaford Electrical and Refrigeration Company Ltd
East Lindsey District Council,http://statistics.data.gov.uk/id/local-authority/32UC,"Performance, Governance & Commissioning","Books, Magazines and Other Publications",26/09/13,IJ00026184,1500.00,Xpress Software Solutions Ltd
East Lindsey District Council,http://statistics.data.gov.uk/id/local-authority/32UC,Information Technology,Computer Software Licence Costs,26/09/13,IJ00026200,12000.00,Xpress Software Solutions Ltd
East Lindsey District Council,http://statistics.data.gov.uk/id/local-authority/32UC,Information Technology,Computer Software Licence Costs,26/09/13,IJ00026201,1250.00,Xpress Software Solutions Ltd
East Lindsey District Council,http://statistics.data.gov.uk/id/local-authority/32UC,Leisure Operations,Furniture and Equipment,26/09/13,IJ00026247,2322.90,B G Sports International Ltd T-A Samba Sports
East Lindsey District Council,http://statistics.data.gov.uk/id/local-authority/32UC,Neighbourhood Services,Fuel & Oil,26/09/13,IJ00026194,644.64,Fuel Card Services Ltd
East Lindsey District Council,http://statistics.data.gov.uk/id/local-authority/32UC,"Performance, Governance & Commissioning",Grants and Contributions to Outside Bodies- No Service Recei,26/09/13,IJ00025997,540.00,Palms Tai Chi Club
East Lindsey District Council,http://statistics.data.gov.uk/id/local-authority/32UC,Economic & Tourism,Other Miscellaneous Expenses,26/09/13,IJ00026190,8000.00,Red Kite Environment Ltd
East Lindsey District Council,http://statistics.data.gov.uk/id/local-authority/32UC,Development Control,Professional & Contractors Fees,26/09/13,IJ00026226,5385.00,Turvey Consultancy Limited
